Workbook

Sheet 1. Information Sheet
U1: a | AA1: =IF(OR(F16="", F16="(if applicable)"), F14, F14 & " - " & F16) -> Atikokan Hydro Inc. - Atikokan
M12: Version | N12: 1.1
E14: Utility Name | F14: Atikokan Hydro Inc.
E16: Service Territory | F16: Atikokan
E18: Assigned EB Number | F18: ED:2014-0056
E20: Name of Contact and Title | F20: Wilf Thorburn, CEO Secretary/Treasurer
E22: Phone Number | F22: 807-597-6600
E24: Email Address | F24: wilf.thorburn@athydro.com
E26: We are applying for rates effective | F26: 2015-05-01
E28: Rate-Setting Method | F28: Price Cap IR
A30: Please indicate in which Rate Year the Group 1 accounts were last cleared1 | F30: 2012
A32: Please indicate the last Cost of Service Re-Basing Year | F32: 2012
B35: Notes
C37: Pale green cells represent input cells.
C39: Pale blue cells represent drop-down lists. The applicant should select the appropriate item from the drop-down list.
C41: White cells contain fixed values, automatically generated values or formulae.
A44: Note: 1. Rate year of application

Sheet 2. Related Links
A13: ● | B13: Ontario Energy Board's 2015 Electricity Distribution Rates Webpage
A15: ● | B15: An updated version of Chapter 3 of the Filing Requirements for Electricity Distribution Rate Applications for 2015 rates.

Sheet 3. Rate Class Selection
A12: Select the appropriate rate classes as they appear on your most recent Board-Approved Tariff of Rates and Charges, including the MicroFit Class.
A14: How many classes are on your most recent Board-Approved Tariff of Rates and Charges? | J14: 5
A16: Select Your Rate Classes from the Blue Cells below. Please ensure that a rate class is assigned to each shaded cell.
B18: Rate Class Classification | Q18: # of duplicates
A19: 1 | B19: RESIDENTIAL | P19: =COUNTIF($B$19:$J$40, B19) -> 1 | Q19: =COUNTIF(P19:P40, 2)/2 -> 0
A20: 2 | B20: GENERAL SERVICE LESS THAN 50 KW | P20: =COUNTIF($B$19:$J$40, B20) -> 1
A21: 3 | B21: GENERAL SERVICE 50 TO 4,999 KW | P21: 1
A22: 4 | B22: STREET LIGHTING | P22: 1
A23: 5 | B23: microFIT | P23: 1
P24: 0
P25: 0
P26: 0
P27: 0
P28: 0
P29: 0
P30: 0
P31: 0
P32: 0
P33: 0

Sheet 4. Current Tariff Schedule
Z1: 3 | AA1: January | AB1: ≥
AA2: February
AA3: March
AA4: April
AA5: May
AA6: June
AA7: July
AA8: August
AA9: September
AA10: October
AA11: November
B12: For each class, Applicants are required to copy and paste the class descriptions (located directly under the class name) and the description of the applicability of those rates (description is found under the class name and directly under the word "APPLICATION"). By using the drop-down lists located under the column labeled "Rate Description", please select the descriptions of the rates and charges that BEST MATCHES the descriptions on your most recent Board-Approved Tariff of Rates and Charges. If the description is not found in the drop-down list, please enter the description in the green cells under the correct class exactly as it appears on the tariff. Please do not enter more than one "Service Charge" for each class for which a base monthly fixed charge applies. | AA12: December
B21: =IF(ISBLANK('1. Information Sheet'!F14), "Please Choose Distributor Name on Sheet 1", '1. Information Sheet'!F14) -> Atikokan Hydro Inc.
B22: TARIFF OF RATES AND CHARGES
A24: RESIDENTIAL | B24: RESIDENTIAL Service Classification
A25: RESIDENTIAL
A26: RESIDENTIAL | B26: This classification applies to an account taking electricity at 750 volts or less where the electricity is used exclusively in a separate metered living accommodation. Customers shall be residing in single-dwelling units that consist of a detached house or one unit of a semi-detached, duplex, triplex or quadruplex house, with a residential zoning. Separately metered dwellings within a town house complex or apartment building also qualify as residential customers. All customers are single-phase. Further servicing details are available in the distributor’s Conditions of Service. This classification applies to an account taking electricity at 750 volts or less where the electricity is used exclusively in a separate metered living accommodation. Customers shall be residing in single-dwelling units that consist of a detached house or one unit of a semi-detached, duplex, triplex or quadruplex house, with a residential zoning. Separately metered dwellings within a town house complex or apartment building also qualify as residential customers. All customers are single-phase. Further servicing details are available in the distributor’s Conditions of Service.
A27: RESIDENTIAL
A28: RESIDENTIAL
A29: RESIDENTIAL
A30: RESIDENTIAL
A31: RESIDENTIAL
A32: RESIDENTIAL | B32: APPLICATION
A33: RESIDENTIAL
A34: RESIDENTIAL | B34: The application of these rates and charges shall be in accordance with the Licence of the Distributor and any Code or Order of the Board, and amendments thereto as approved by the Board, which may be applicable to the administration of this schedule.
A35: RESIDENTIAL
A36: RESIDENTIAL
A37: RESIDENTIAL | B37: No rates and charges for the distribution of electricity and charges to meet the costs of any work or service done or furnished for the purpose of the distribution of electricity shall be made except as permitted by this schedule, unless required by the Distributor's Licence or a Code or Order of the Board, and amendments thereto as approved by the Board, or as specified herein.
A38: RESIDENTIAL
A39: RESIDENTIAL
A40: RESIDENTIAL
A41: RESIDENTIAL | B41: Unless specifically noted, this schedule does not contain any charges for the electricity commodity, be it under the Regulated Price Plan, a contract with a retailer or the wholesale market price, as applicable. In addition, the charges in the MONTHLY RATES AND CHARGES - Regulatory Component of this schedule do not apply to a customer that is an embedded wholesale market participant.
A42: RESIDENTIAL
A43: RESIDENTIAL
A44: RESIDENTIAL | B44: It should be noted that this schedule does not list any charges or assessments that are required by law to be charged by a distributor and that are not subject to Board approval, such as the Debt Retirement Charge, charges for Ministry of Energy Conservation and Renewable Energy Program, the Provincial Benefit and any applicable taxes.
A45: RESIDENTIAL
A46: RESIDENTIAL
A47: RESIDENTIAL
A48: RESIDENTIAL | B48: MONTHLY RATES AND CHARGES - Delivery Component (If applicable, Effective Date MUST be included in rate description)
A49: RESIDENTIAL | B49: Service Charge | H49: $ | I49: 34.58 | K49: 1_C_MSC
A50: RESIDENTIAL | B50: Rate Rider for Disposition of Residual Historical Smart Meter Costs - effective until August 31, 2015 | H50: $ | I50: 0.48 | K50: 1_C_MSC_Rate_Rider_1 | L50: 2015-08-31
A51: RESIDENTIAL | B51: Rate Rider for Disposition of Residual Incremental Historical Smart Meter Costs - effective until August 31, 2015 | H51: $ | I51: 2.79 | K51: 1_C_MSC_Rate_Rider_2 | L51: 2015-08-31
A52: RESIDENTIAL | B52: Rate Rider for Recovery of Smart Meter Incremental Revenue Requirement - in effect until the effective date of the next cost of service-based rate order | H52: $ | I52: 1.06 | K52: 1_C_MSC_Rate_Rider_3
A53: RESIDENTIAL | B53: Rate Rider for Recovery of Stranded Meter Assets - effective until August 31, 2015 | H53: $ | I53: 0.39 | K53: 1_C_MSC_Rate_Rider_4 | L53: 2015-08-31
A54: RESIDENTIAL | B54: Rate Rider for Smart Metering Entity Charge - effective until October 31, 2018 | H54: $ | I54: 0.79 | K54: 1_C_SMEC | L54: 2018-10-31
A55: RESIDENTIAL | B55: Distribution Volumetric Rate | H55: $/kWh | I55: 0.0137 | K55: 1_C_VC_1
A56: RESIDENTIAL | B56: Rate Rider for Deferral/Variance Account (2012) - effective unitl April 30, 2016 | H56: $/kWh | I56: 0.0009 | K56: 1_C_VC_DEFVAR_kWh_1 | L56: 2016-04-30
A57: RESIDENTIAL | B57: Rate Rider for Disposition of Global Adjustment Sub-Account (2012) - effective until April 30, 2016 Applicable only for Non-RPP Customers | H57: $/kWh | I57: 0.0004 | K57: 1_C_VC_GA_Rate_Rider_kWh_1 | L57: 2016-04-30
A58: RESIDENTIAL | B58: Retail Transmission Rate - Network Service Rate | H58: $/kWh | I58: 0.0064 | K58: 1_C_RTSR_Network
A59: RESIDENTIAL | B59: Retail Transmission Rate - Transformation Connection Service Rate | H59: $/kWh | I59: 0.0038 | K59: 1_C_RTSR_Transformer_Connection
A60: RESIDENTIAL
A61: RESIDENTIAL
A62: RESIDENTIAL
A63: RESIDENTIAL
A64: RESIDENTIAL
A65: RESIDENTIAL
A66: RESIDENTIAL
A67: RESIDENTIAL
A68: RESIDENTIAL
A69: RESIDENTIAL
A70: RESIDENTIAL
A71: RESIDENTIAL
A72: RESIDENTIAL
A73: RESIDENTIAL
A74: RESIDENTIAL
A75: RESIDENTIAL
A76: RESIDENTIAL
A77: RESIDENTIAL
A78: RESIDENTIAL
A79: RESIDENTIAL | B79: MONTHLY RATES AND CHARGES - Regulatory Component
A80: RESIDENTIAL
A81: RESIDENTIAL | B81: Wholesale Market Service Rate | H81: $/kWh | I81: 0.0044 | K81: 1_C_WMSR
A82: RESIDENTIAL | B82: Rural or Remote Electricity Rate Protection Charge (RRRP) | H82: $/kWh | I82: 0.0013 | K82: 1_C_RRPC
A83: RESIDENTIAL | B83: Standard Supply Service - Administrative Charge (if applicable) | H83: $ | I83: 0.25 | K83: 1_C_SSS
A84: RESIDENTIAL
A87: GENERAL SERVICE LESS THAN 50 KW | B87: GENERAL SERVICE LESS THAN 50 KW Service Classification
A88: GENERAL SERVICE LESS THAN 50 KW
A89: GENERAL SERVICE LESS THAN 50 KW | B89: This classification applies to a non-residential account taking electricity at 750 volts or less whose average monthly maximum demand is less than, or is forecast to be less than, 50 kW. Further servicing details are available in the distributor's Conditions of Service
A90: GENERAL SERVICE LESS THAN 50 KW
A91: GENERAL SERVICE LESS THAN 50 KW
A92: GENERAL SERVICE LESS THAN 50 KW
A93: GENERAL SERVICE LESS THAN 50 KW
A94: GENERAL SERVICE LESS THAN 50 KW
A95: GENERAL SERVICE LESS THAN 50 KW | B95: APPLICATION
A96: GENERAL SERVICE LESS THAN 50 KW
A97: GENERAL SERVICE LESS THAN 50 KW | B97: The application of these rates and charges shall be in accordance with the Licence of the Distributor and any Code or Order of the Board, and amendments thereto as approved by the Board, which may be applicable to the administration of this schedule.
A98: GENERAL SERVICE LESS THAN 50 KW
A99: GENERAL SERVICE LESS THAN 50 KW
A100: GENERAL SERVICE LESS THAN 50 KW | B100: No rates and charges for the distribution of electricity and charges to meet the costs of any work or service done or furnished for the purpose of the distribution of electricity shall be made except as permitted by this schedule, unless required by the Distributor's Licence or a Code or Order of the Board, and amendments thereto as approved by the Board, or as specified herein.
A101: GENERAL SERVICE LESS THAN 50 KW
A102: GENERAL SERVICE LESS THAN 50 KW
A103: GENERAL SERVICE LESS THAN 50 KW
A104: GENERAL SERVICE LESS THAN 50 KW | B104: Unless specifically noted, this schedule does not contain any charges for the electricity commodity, be it under the Regulated Price Plan, a contract with a retailer or the wholesale market price, as applicable. In addition, the charges in the MONTHLY RATES AND CHARGES - Regulatory Component of this schedule do not apply to a customer that is an embedded wholesale market participant.
A105: GENERAL SERVICE LESS THAN 50 KW
A106: GENERAL SERVICE LESS THAN 50 KW
A107: GENERAL SERVICE LESS THAN 50 KW | B107: It should be noted that this schedule does not list any charges or assessments that are required by law to be charged by a distributor and that are not subject to Board approval, such as the Debt Retirement Charge, charges for Ministry of Energy Conservation and Renewable Energy Program, the Provincial Benefit and any applicable taxes.
A108: GENERAL SERVICE LESS THAN 50 KW
A109: GENERAL SERVICE LESS THAN 50 KW
A110: GENERAL SERVICE LESS THAN 50 KW
A111: GENERAL SERVICE LESS THAN 50 KW | B111: MONTHLY RATES AND CHARGES - Delivery Component (If applicable, Effective Date MUST be included in rate description)
A112: GENERAL SERVICE LESS THAN 50 KW | B112: Service Charge | H112: $ | I112: 75.36 | K112: 2_C_MSC
A113: GENERAL SERVICE LESS THAN 50 KW | B113: Rate Rider for Disposition of Residual Historical Smart Meter Costs - effective until August 31, 2015 | H113: $ | I113: 0.78 | K113: 2_C_MSC_Rate_Rider_1 | L113: 2015-08-31
A114: GENERAL SERVICE LESS THAN 50 KW | B114: Rate Rider for Disposition of Residual Incremental Historical Smart Meter Costs - effective until August 31, 2015 | H114: $ | I114: 3.21 | K114: 2_C_MSC_Rate_Rider_2 | L114: 2015-08-31
A115: GENERAL SERVICE LESS THAN 50 KW | B115: Rate Rider for Recovery of Smart Meter Incremental Revenue Requirement - in effect until the effective date of the next cost of service-based rate order | H115: $ | I115: 1.39 | K115: 2_C_MSC_Rate_Rider_3
A116: GENERAL SERVICE LESS THAN 50 KW | B116: Rate Rider for Recovery of Stranded Meter Assets - effective until August 31, 2015 | H116: $ | I116: 0.39 | K116: 2_C_MSC_Rate_Rider_4 | L116: 2015-08-31
A117: GENERAL SERVICE LESS THAN 50 KW | B117: Rate Rider for Smart Metering Entity Charge - effective until October 31, 2018 | H117: $ | I117: 0.79 | K117: 2_C_SMEC | L117: 2018-10-31
A118: GENERAL SERVICE LESS THAN 50 KW | B118: Distribution Volumetric Rate | H118: $/kWh | I118: 0.0095 | K118: 2_C_VC_1
A119: GENERAL SERVICE LESS THAN 50 KW | B119: Rate Rider for Deferral/Variance Account Disposition (2012) - effective until April 30, 2016 | H119: $/kWh | I119: 0.0007 | K119: 2_C_VC_DEFVAR_kWh_1 | L119: 2016-04-30
A120: GENERAL SERVICE LESS THAN 50 KW | B120: Rate Rider for Disposition of Global Adjustment Sub-Account (2012) - effective until April 30, 2016 Applicable only for Non-RPP Customers | H120: $/kWh | I120: 0.0004 | K120: 2_C_VC_GA_Rate_Rider_kWh_1 | L120: 2016-04-30
A121: GENERAL SERVICE LESS THAN 50 KW | B121: Retail Transmission Rate - Network Service Rate | H121: $/kWh | I121: 0.0057 | K121: 2_C_RTSR_Network
A122: GENERAL SERVICE LESS THAN 50 KW | B122: Retail Transmission Rate - Transformation Connection Service Rate | H122: $/kWh | I122: 0.0033 | K122: 2_C_RTSR_Transformer_Connection
A123: GENERAL SERVICE LESS THAN 50 KW
A124: GENERAL SERVICE LESS THAN 50 KW
A125: GENERAL SERVICE LESS THAN 50 KW
A126: GENERAL SERVICE LESS THAN 50 KW
A127: GENERAL SERVICE LESS THAN 50 KW
A128: GENERAL SERVICE LESS THAN 50 KW
A129: GENERAL SERVICE LESS THAN 50 KW
A130: GENERAL SERVICE LESS THAN 50 KW
A131: GENERAL SERVICE LESS THAN 50 KW
A132: GENERAL SERVICE LESS THAN 50 KW
A133: GENERAL SERVICE LESS THAN 50 KW
A134: GENERAL SERVICE LESS THAN 50 KW
A135: GENERAL SERVICE LESS THAN 50 KW
A136: GENERAL SERVICE LESS THAN 50 KW
A137: GENERAL SERVICE LESS THAN 50 KW
A138: GENERAL SERVICE LESS THAN 50 KW
A139: GENERAL SERVICE LESS THAN 50 KW
A140: GENERAL SERVICE LESS THAN 50 KW
A141: GENERAL SERVICE LESS THAN 50 KW
A142: GENERAL SERVICE LESS THAN 50 KW | B142: MONTHLY RATES AND CHARGES - Regulatory Component
A143: GENERAL SERVICE LESS THAN 50 KW
A144: GENERAL SERVICE LESS THAN 50 KW | B144: Wholesale Market Service Rate | H144: =H81 -> $/kWh | I144: 0.0044 | K144: 2_C_WMSR
A145: GENERAL SERVICE LESS THAN 50 KW | B145: Rural or Remote Electricity Rate Protection Charge (RRRP) | H145: $/kWh | I145: 0.0013 | K145: 2_C_RRPC
A146: GENERAL SERVICE LESS THAN 50 KW | B146: Standard Supply Service - Administrative Charge (if applicable) | H146: $ | I146: 0.25 | K146: 2_C_SSS
A147: GENERAL SERVICE LESS THAN 50 KW
A150: GENERAL SERVICE 50 TO 4,999 KW | B150: GENERAL SERVICE 50 TO 4,999 KW Service Classification
A151: GENERAL SERVICE 50 TO 4,999 KW
A152: GENERAL SERVICE 50 TO 4,999 KW | B152: This classification applies to a non residential account whose average monthly maxiumum demand used for billing purposes is equal to or greater than, or is forecast to be equal to or greater than, 50kW but less than 5,000kW. Further servicing details are available in the distributor's Conditions of Service.
A153: GENERAL SERVICE 50 TO 4,999 KW
A154: GENERAL SERVICE 50 TO 4,999 KW
A155: GENERAL SERVICE 50 TO 4,999 KW
A156: GENERAL SERVICE 50 TO 4,999 KW
A157: GENERAL SERVICE 50 TO 4,999 KW
A158: GENERAL SERVICE 50 TO 4,999 KW | B158: APPLICATION
A159: GENERAL SERVICE 50 TO 4,999 KW
A160: GENERAL SERVICE 50 TO 4,999 KW | B160: The application of these rates and charges shall be in accordance with the Licence of the Distributor and any Code or Order of the Board, and amendments thereto as approved by the Board, which may be applicable to the administration of this schedule.
A161: GENERAL SERVICE 50 TO 4,999 KW
A162: GENERAL SERVICE 50 TO 4,999 KW
A163: GENERAL SERVICE 50 TO 4,999 KW | B163: No rates and charges for the distribution of electricity and charges to meet the costs of any work or service done or furnished for the purpose of the distribution of electricity shall be made except as permitted by this schedule, unless required by the Distributor's Licence or a Code or Order of the Board, and amendments thereto as approved by the Board, or as specified herein.
A164: GENERAL SERVICE 50 TO 4,999 KW
A165: GENERAL SERVICE 50 TO 4,999 KW
A166: GENERAL SERVICE 50 TO 4,999 KW
A167: GENERAL SERVICE 50 TO 4,999 KW | B167: Unless specifically noted, this schedule does not contain any charges for the electricity commodity, be it under the Regulated Price Plan, a contract with a retailer or the wholesale market price, as applicable. In addition, the charges in the MONTHLY RATES AND CHARGES - Regulatory Component of this schedule do not apply to a customer that is an embedded wholesale market participant.
A168: GENERAL SERVICE 50 TO 4,999 KW
A169: GENERAL SERVICE 50 TO 4,999 KW
A170: GENERAL SERVICE 50 TO 4,999 KW | B170: It should be noted that this schedule does not list any charges or assessments that are required by law to be charged by a distributor and that are not subject to Board approval, such as the Debt Retirement Charge, charges for Ministry of Energy Conservation and Renewable Energy Program, the Provincial Benefit and any applicable taxes.
A171: GENERAL SERVICE 50 TO 4,999 KW
A172: GENERAL SERVICE 50 TO 4,999 KW
A173: GENERAL SERVICE 50 TO 4,999 KW
A174: GENERAL SERVICE 50 TO 4,999 KW | B174: MONTHLY RATES AND CHARGES - Delivery Component (If applicable, Effective Date MUST be included in rate description)
A175: GENERAL SERVICE 50 TO 4,999 KW | B175: Service Charge | H175: $ | I175: 557.28 | K175: 3_C_MSC
A176: GENERAL SERVICE 50 TO 4,999 KW | B176: Rate Rider for Disposition of Residual Historical Smart Meter Costs - effective until August 31, 2015 | H176: $ | I176: 3.8 | K176: 3_C_MSC_Rate_Rider_1 | L176: 2015-08-31
A177: GENERAL SERVICE 50 TO 4,999 KW | B177: Rate Rider for Disposition of Residual Incremental Historical Smart Meter Costs - effective until August 31, 2015 | H177: $ | I177: 6.12 | K177: 3_C_MSC_Rate_Rider_2 | L177: 2015-08-31
A178: GENERAL SERVICE 50 TO 4,999 KW | B178: Rate Rider for Recovery of Smart Meter Incremental Revenue Requirement - in effect until the effective date of the next cost of service-based rate order | H178: $ | I178: 3.71 | K178: 3_C_MSC_Rate_Rider_3
A179: GENERAL SERVICE 50 TO 4,999 KW | B179: Rate Rider for Recovery of Stranded Meter Assets - effective until August 31, 2015 | H179: $ | I179: 0.39 | K179: 3_C_MSC_Rate_Rider_4 | L179: 2015-08-31
A180: GENERAL SERVICE 50 TO 4,999 KW | B180: Distribution Volumetric Rate | H180: $/kW | I180: 2.2075 | K180: 3_C_VC_1
A181: GENERAL SERVICE 50 TO 4,999 KW | B181: Rate Rider for Disposition of Deferral/Variance Accounts (2012) - effective until April 30, 2016 | H181: $/kW | I181: 0.1984 | K181: 3_C_VC_DEFVAR_kW_1 | L181: 2016-04-30
A182: GENERAL SERVICE 50 TO 4,999 KW | B182: Rider for Global Adjustment Sub-Account Disposition (2012) - effective until April 30, 2016 Applicable only for Non-RPP Customers | H182: $/kW | I182: 0.141 | K182: 3_C_VC_GA_Rate_Rider_kW_1 | L182: 2016-04-30
A183: GENERAL SERVICE 50 TO 4,999 KW | B183: Retail Transmission Rate - Network Service Rate | H183: $/kW | I183: 2.3157 | K183: 3_C_RTSR_Network
A184: GENERAL SERVICE 50 TO 4,999 KW | B184: Retail Transmission Rate - Line and Transformation Connection Service Rate | H184: $/kW | I184: 1.3121 | K184: 3_C_RTSR_Connection
A185: GENERAL SERVICE 50 TO 4,999 KW | B185: Retail Transmission Rate - Network Service Rate - Interval Metered | H185: $/kW | I185: 2.4567 | K185: 3_C_RTSR_Network_Interval
A186: GENERAL SERVICE 50 TO 4,999 KW | B186: Retail Transmission Rate - Line and Transformation Connection Service Rate - Interval Metered | H186: $/kW | I186: 1.4501 | K186: 3_C_RTSR_Connection_Interval
A187: GENERAL SERVICE 50 TO 4,999 KW
A188: GENERAL SERVICE 50 TO 4,999 KW
A189: GENERAL SERVICE 50 TO 4,999 KW
A190: GENERAL SERVICE 50 TO 4,999 KW
A191: GENERAL SERVICE 50 TO 4,999 KW
A192: GENERAL SERVICE 50 TO 4,999 KW
A193: GENERAL SERVICE 50 TO 4,999 KW
A194: GENERAL SERVICE 50 TO 4,999 KW
A195: GENERAL SERVICE 50 TO 4,999 KW
A196: GENERAL SERVICE 50 TO 4,999 KW
A197: GENERAL SERVICE 50 TO 4,999 KW
A198: GENERAL SERVICE 50 TO 4,999 KW
A199: GENERAL SERVICE 50 TO 4,999 KW
A200: GENERAL SERVICE 50 TO 4,999 KW
A201: GENERAL SERVICE 50 TO 4,999 KW
A202: GENERAL SERVICE 50 TO 4,999 KW
A203: GENERAL SERVICE 50 TO 4,999 KW
A204: GENERAL SERVICE 50 TO 4,999 KW
A205: GENERAL SERVICE 50 TO 4,999 KW | B205: MONTHLY RATES AND CHARGES - Regulatory Component
A206: GENERAL SERVICE 50 TO 4,999 KW
A207: GENERAL SERVICE 50 TO 4,999 KW | B207: Wholesale Market Service Rate | H207: =H81 -> $/kWh | I207: 0.0044 | K207: 3_C_WMSR
A208: GENERAL SERVICE 50 TO 4,999 KW | B208: Rural or Remote Electricity Rate Protection Charge (RRRP) | H208: $/kWh | I208: 0.0013 | K208: 3_C_RRPC
A209: GENERAL SERVICE 50 TO 4,999 KW | B209: Standard Supply Service - Administrative Charge (if applicable) | H209: $ | I209: 0.25 | K209: 3_C_SSS
A210: GENERAL SERVICE 50 TO 4,999 KW
A213: STREET LIGHTING | B213: STREET LIGHTING Service Classification
A214: STREET LIGHTING
A215: STREET LIGHTING | B215: This classification applies to an account for roadway lighting with a Municipality, Regional Municipality, Ministry of Transportation and private roadway lighting, controlled by photo cells. The consumption for these customers will be based on the calculated connected load times the required lighting times established in the approved OEB street lighting load shape template. Further servicing details are available in the distributor's Conditions of Service.
... 113 more rows

Sheet 4. Hidden (hidden)
M1: Current Rate Classes | N1: Changed to Rate Classes | O1: Values in A that are NOT in B | P1: Values in B that are Not in A | Q1: Count of A | R1: Count of B
M2: RESIDENTIAL | N2: RESIDENTIAL | Q2: 5 | R2: 5
M3: GENERAL SERVICE LESS THAN 50 KW | N3: GENERAL SERVICE LESS THAN 50 KW
M4: GENERAL SERVICE 50 TO 4,999 KW | N4: GENERAL SERVICE 50 TO 4,999 KW
M5: STREET LIGHTING | N5: STREET LIGHTING
M6: microFIT | N6: microFIT
A24: RESIDENTIAL | B24: RESIDENTIAL Service Classification
A25: RESIDENTIAL
A26: RESIDENTIAL
A27: RESIDENTIAL
A28: RESIDENTIAL
A29: RESIDENTIAL
A30: RESIDENTIAL
A31: RESIDENTIAL
A32: RESIDENTIAL | B32: APPLICATION
A33: RESIDENTIAL
A34: RESIDENTIAL
A35: RESIDENTIAL
A36: RESIDENTIAL
A37: RESIDENTIAL
A38: RESIDENTIAL
A39: RESIDENTIAL
A40: RESIDENTIAL
A41: RESIDENTIAL
A42: RESIDENTIAL
A43: RESIDENTIAL
A44: RESIDENTIAL
A45: RESIDENTIAL
A46: RESIDENTIAL
A47: RESIDENTIAL
A48: RESIDENTIAL | B48: MONTHLY RATES AND CHARGES - Delivery Component (If applicable, Effective Date MUST be included in rate description)
A49: RESIDENTIAL
A50: RESIDENTIAL
A51: RESIDENTIAL
A52: RESIDENTIAL
A53: RESIDENTIAL
A54: RESIDENTIAL
A55: RESIDENTIAL
A56: RESIDENTIAL
A57: RESIDENTIAL
A58: RESIDENTIAL
A59: RESIDENTIAL
A60: RESIDENTIAL
A61: RESIDENTIAL
A62: RESIDENTIAL
A63: RESIDENTIAL
A64: RESIDENTIAL
A65: RESIDENTIAL
A66: RESIDENTIAL
A67: RESIDENTIAL
A68: RESIDENTIAL
A69: RESIDENTIAL
A70: RESIDENTIAL
A71: RESIDENTIAL
A72: RESIDENTIAL
A73: RESIDENTIAL
A74: RESIDENTIAL
A75: RESIDENTIAL
A76: RESIDENTIAL
A77: RESIDENTIAL
A78: RESIDENTIAL
A79: RESIDENTIAL | B79: MONTHLY RATES AND CHARGES - Regulatory Component
A80: RESIDENTIAL
A81: RESIDENTIAL | B81: Wholesale Market Service Rate | H81: $/kWh | I81: 0.0044
A82: RESIDENTIAL | B82: Rural or Remote Electricity Rate Protection Charge (RRRP) | H82: $/kWh | I82: 0.0013
A83: RESIDENTIAL | B83: Standard Supply Service - Administrative Charge (if applicable) | H83: $ | I83: 0.25
A84: RESIDENTIAL
A87: STREET LIGHTING | B87: STREET LIGHTING Service Classification
A88: STREET LIGHTING
A89: STREET LIGHTING
A90: STREET LIGHTING
A91: STREET LIGHTING
A92: STREET LIGHTING
A93: STREET LIGHTING
A94: STREET LIGHTING
A95: STREET LIGHTING | B95: APPLICATION
A96: STREET LIGHTING
A97: STREET LIGHTING
A98: STREET LIGHTING
A99: STREET LIGHTING
A100: STREET LIGHTING
A101: STREET LIGHTING
A102: STREET LIGHTING
A103: STREET LIGHTING
A104: STREET LIGHTING
A105: STREET LIGHTING
A106: STREET LIGHTING
A107: STREET LIGHTING
A108: STREET LIGHTING
A109: STREET LIGHTING
A110: STREET LIGHTING
A111: STREET LIGHTING | B111: MONTHLY RATES AND CHARGES - Delivery Component (If applicable, Effective Date MUST be included in rate description)
A112: STREET LIGHTING
A113: STREET LIGHTING
A114: STREET LIGHTING
A115: STREET LIGHTING
A116: STREET LIGHTING
A117: STREET LIGHTING
A118: STREET LIGHTING
A119: STREET LIGHTING
A120: STREET LIGHTING
A121: STREET LIGHTING
A122: STREET LIGHTING
A123: STREET LIGHTING
A124: STREET LIGHTING
A125: STREET LIGHTING
A126: STREET LIGHTING
A127: STREET LIGHTING
A128: STREET LIGHTING
A129: STREET LIGHTING
A130: STREET LIGHTING
A131: STREET LIGHTING
A132: STREET LIGHTING
A133: STREET LIGHTING
A134: STREET LIGHTING
A135: STREET LIGHTING
A136: STREET LIGHTING
A137: STREET LIGHTING
A138: STREET LIGHTING
A139: STREET LIGHTING
A140: STREET LIGHTING
A141: STREET LIGHTING
A142: STREET LIGHTING | B142: MONTHLY RATES AND CHARGES - Regulatory Component
A143: STREET LIGHTING
A144: STREET LIGHTING | B144: Wholesale Market Service Rate | H144: $/kWh | I144: 0.0044
A145: STREET LIGHTING | B145: Rural or Remote Electricity Rate Protection Charge (RRRP) | H145: $/kWh | I145: 0.0013
A146: STREET LIGHTING | B146: Standard Supply Service - Administrative Charge (if applicable) | H146: $ | I146: 0.25
A147: STREET LIGHTING
A150: STANDBY POWER | B150: STANDBY POWER Service Classification
A151: STANDBY POWER
A152: STANDBY POWER
A153: STANDBY POWER
A154: STANDBY POWER
A155: STANDBY POWER
A156: STANDBY POWER
A157: STANDBY POWER
A158: STANDBY POWER | B158: APPLICATION
A159: STANDBY POWER
A160: STANDBY POWER
A161: STANDBY POWER
A162: STANDBY POWER
A163: STANDBY POWER
A164: STANDBY POWER
A165: STANDBY POWER
A166: STANDBY POWER
A167: STANDBY POWER
A168: STANDBY POWER
A169: STANDBY POWER
A170: STANDBY POWER
A171: STANDBY POWER
A172: STANDBY POWER
A173: STANDBY POWER
A174: STANDBY POWER | B174: MONTHLY RATES AND CHARGES - Delivery Component (If applicable, Effective Date MUST be included in rate description)
A175: STANDBY POWER
A176: STANDBY POWER
A177: STANDBY POWER
A178: STANDBY POWER
A179: STANDBY POWER
A180: STANDBY POWER
A181: STANDBY POWER
A182: STANDBY POWER
A183: STANDBY POWER
A184: STANDBY POWER
A185: STANDBY POWER
A186: STANDBY POWER
A187: STANDBY POWER
A188: STANDBY POWER
A189: STANDBY POWER
A190: STANDBY POWER
A191: STANDBY POWER
A192: STANDBY POWER
A193: STANDBY POWER
A194: STANDBY POWER
A195: STANDBY POWER
A196: STANDBY POWER
A197: STANDBY POWER
A198: STANDBY POWER
A199: STANDBY POWER
A200: STANDBY POWER
A201: STANDBY POWER
A202: STANDBY POWER
A203: STANDBY POWER
A204: STANDBY POWER
A205: STANDBY POWER | B205: MONTHLY RATES AND CHARGES - Regulatory Component
A206: STANDBY POWER
A207: STANDBY POWER | B207: Wholesale Market Service Rate | H207: =H81 -> $/kWh | I207: 0.0044
A208: STANDBY POWER | B208: Rural or Remote Electricity Rate Protection Charge (RRRP) | H208: $/kWh | I208: 0.0013
A209: STANDBY POWER | B209: Standard Supply Service - Administrative Charge (if applicable) | H209: $ | I209: 0.25
A210: STANDBY POWER

Sheet 5. 2014 Continuity Schedule
C15: Please complete the following continuity schedule for the following Deferral / Variance Accounts. Enter information into green cells only. If you have received approval to dispose of balances from prior years, the starting point for entries in the 2015 DVA schedule below will be the balance sheet date as per your G/L for which you received approval. For example, if in the 2014 EDR process (CoS or IRM) you received approval for the December 31, 2012 balances, the starting point for your entries below should be the 2011 year. This will allow for the correct starting point for the 2012 opening balance columns for both principal and interest. Please refer to the footnotes for further instructions.
E19: 2010 | O19: 2011 | Y19: 2012 | AL19: 2013 | AY19: 2014 | BC19: Projected Interest on Dec-31-13 Balances | BF19: 2.1.7 RRR
C20: Account Descriptions | D20: Account Number | E20: Opening Principal Amounts as of Jan-1-10 | F20: Transactions Debit / (Credit) during 2010 excluding interest and adjustments 2 | G20: Board-Approved Disposition during 2010 | H20: Adjustments during 2010 - other 1 | I20: Closing Principal Balance as of Dec-31-10 | J20: Opening Interest Amounts as of Jan-1-10 | K20: Interest Jan-1 to Dec-31-10 | L20: Board-Approved Disposition during 2010 | M20: Adjustments during 2010 - other 2 | N20: Closing Interest Amounts as of Dec-31-10 | O20: Opening Principal Amounts as of Jan-1-11 | P20: Transactions Debit / (Credit) during 2011 excluding interest and adjustments 2 | Q20: Board-Approved Disposition during 2011 | R20: Adjustments during 2011 - other 1 | S20: Closing Principal Balance as of Dec-31-11 | T20: Opening Interest Amounts as of Jan-1-11 | U20: Interest Jan-1 to Dec-31-11 | V20: Board-Approved Disposition during 2011 | W20: Adjustments during 2011 - other 2 | X20: Closing Interest Amounts as of Dec-31-11 | Y20: Opening Principal Amounts as of Jan-1-12 | Z20: Transactions Debit / (Credit) during 2012 excluding interest and adjustments 2 | AA20: Board-Approved Disposition during 2012 | AB20: Other 1 Adjustments during Q1 2012 | AC20: Other 1 Adjustments during Q2 2012 | AD20: Other 1 Adjustments during Q3 2012 | AE20: Other 1 Adjustments during Q4 2012 | AF20: Closing Principal Balance as of Dec-31-12 | AG20: Opening Interest Amounts as of Jan-1-12 | AH20: Interest Jan-1 to Dec-31-12 | AI20: Board-Approved Disposition during 2012 | AJ20: Adjustments during 2012 - other 1 | AK20: Closing Interest Amounts as of Dec-31-12 | AL20: Opening Principal Amounts as of Jan-1-13 | AM20: Transactions Debit / (Credit) during 2013 excluding interest and adjustments 2 | AN20: Board-Approved Disposition during 2013 | AO20: Other 1 Adjustments during Q1 2013 | AP20: Other 1 Adjustments during Q2 2013 | AQ20: Other 1 Adjustments during Q3 2013 | AR20: Other 1 Adjustments during Q4 2013 | AS20: Closing Principal Balance as of Dec-31-13 | AT20: Opening Interest Amounts as of Jan-1-13 | AU20: Interest Jan-1 to Dec-31-13 | AV20: Board-Approved Disposition during 2013 | AW20: Adjustments during 2013 - other 1 | AX20: Closing Interest Amounts as of Dec-31-13 | AY20: Principal Disposition during 2014 - instructed by Board | AZ20: Interest Disposition during 2014 - instructed by Board | BA20: Closing Principal Balances as of Dec 31-13 Adjusted for Dispositions during 2014 | BB20: Closing Interest Balances as of Dec 31-13 Adjusted for Dispositions during 2014 | BC20: Projected Interest from Jan 1, 2014 to December 31, 2014 on Dec 31 -13 balance adjusted for disposition during 2014 3 | BD20: Projected Interest from January 1, 2015 to April 30, 2015 on Dec 31 -13 balance adjusted for disposition during 2014 3 | BE20: Total Claim | BF20: As of Dec 31-13 | BG20: Variance RRR vs. 2013 Balance (Principal + Interest)
BE22: Claim before Forecasted Transactions
C23: Group 1 Accounts
A24: 1 | C24: LV Variance Account | D24: 1550 | I24: =E24+F24-G24+H24 -> 0 | N24: =J24+K24-L24+M24 -> 0 | O24: =I24 -> 0 | S24: =O24+P24-Q24+R24 -> 0 | T24: =N24 -> 0 | X24: =T24+U24-V24+W24 -> 0 | Y24: =S24 -> 0 | AF24: =Y24+Z24-AA24+SUM(AB24:AE24) -> 0 | AG24: =X24 -> 0 | AK24: =AG24+AH24-AI24+AJ24 -> 0 | AL24: =AF24 -> 0 | AS24: =AL24+AM24-AN24+SUM(AO24:AR24) -> 0 | AT24: =AK24 -> 0 | AX24: =AT24+AU24-AV24+AW24 -> 0 | BA24: =AS24-AY24 -> 0 | BB24: =AX24-AZ24 -> 0 | BE24: =SUM(BA24:BD24) -> 0 | BG24: =BF24-SUM(AS24,AX24) -> 0
C25: Smart Metering Entity Charge Variance | D25: 1551 | AK25: 0 | AL25: =AK25 -> 0 | AS25: =AL25+AM25-AN25+SUM(AO25:AR25) -> 0 | AT25: =AK25 -> 0 | AX25: 0 | BA25: =AS25-AY25 -> 0 | BB25: =AX25-AZ25 -> 0 | BE25: =SUM(BA25:BD25) -> 0 | BG25: =BF25-SUM(AS25,AX25) -> 0
A26: 2 | C26: RSVA - Wholesale Market Service Charge | D26: 1580 | H26: -36935 | I26: =E26+F26-G26+SUM(H26:H26) -> -36935 | M26: 14276 | N26: =J26+K26-L26+M26 -> 14276 | O26: =I26 -> -36935 | P26: -21196.3 | S26: =O26+P26-Q26+SUM(R26:R26) -> -58131.3 | T26: 14276 | U26: 657.2 | X26: =T26+U26-V26+W26 -> 14933.2 | Y26: =S26 -> -58131.3 | Z26: -27402.86 | AA26: -36935 | AF26: -48599.16 | AG26: =X26 -> 14933.2 | AH26: -1203.06 | AI26: 14276 | AK26: -545.86 | AL26: =AF26 -> -48599.16 | AM26: -13667.66 | AS26: -62266.82 | AT26: =AK26 -> -545.86 | AU26: -978.04 | AX26: -1523.9 | BA26: -62266.82 | BB26: -1523.9 | BC26: -915.32 | BD26: -305.08 | BE26: =SUM(BA26:BD26) -> -65011.12 | BF26: -63790.65 | BG26: 0.07000000001
A27: 3 | C27: RSVA - Retail Transmission Network Charge | D27: 1584 | H27: 8932 | I27: 8932 | M27: -468.48 | N27: -468.48 | O27: 8932 | P27: -1930.84 | S27: 7001.16 | T27: -468.48 | U27: 131 | X27: -337.48 | Y27: 7001.16 | Z27: -253.6 | AA27: 8273 | AF27: -1525.44 | AG27: -337.48 | AH27: 101.54 | AI27: 765 | AK27: -1000.94 | AL27: -1525.44 | AM27: 562.72 | AS27: -962.72 | AT27: -1000.94 | AU27: -22.94 | AX27: -1023.88 | BA27: -962.72 | BB27: -1023.88 | BC27: -14.15 | BD27: -4.68 | BE27: -2005.43 | BF27: -1986.61 | BG27: -0.009999999999
A28: 4 | C28: RSVA - Retail Transmission Connection Charge | D28: 1586 | H28: 48514 | I28: 48514 | M28: -1054.23 | N28: -1054.23 | O28: 48514 | P28: 6549.6 | S28: 55063.6 | T28: -1054.23 | U28: 723.67 | X28: -330.56 | Y28: 55063.6 | Z28: -1757.84 | AA28: 34957 | AF28: 18348.76 | AG28: -330.56 | AH28: 807.65 | AI28: 13411 | AK28: -12933.91 | AL28: 18348.76 | AM28: -17819.11 | AS28: 529.65 | AT28: -12933.91 | AU28: 251.34 | AX28: -12682.57 | BA28: 529.65 | BB28: -12682.57 | BC28: 7.79 | BD28: 2.56 | BE28: -12142.57 | BF28: -12152.62 | BG28: 0.3
A29: 5 | C29: RSVA - Power (excluding Global Adjustment) | D29: 1588 | H29: -4773 | I29: -4773 | M29: 6124.89 | N29: 6124.89 | O29: -4773 | P29: -11451.25 | S29: -16224.25 | T29: 6124.89 | U29: -21.57 | X29: 6103.32 | Y29: -16224.25 | Z29: -45066.2 | AA29: -5710 | AF29: -55580.45 | AG29: 6103.32 | AH29: -363.53 | AI29: 8256 | AK29: -2516.21 | AL29: -55580.45 | AM29: -32680.14 | AS29: -88260.59 | AT29: -2516.21 | AU29: -839.03 | AX29: -3355.24 | BA29: -88260.59 | BB29: -3355.24 | BC29: -1297.43 | BD29: -432.44 | BE29: -93345.7 | BF29: -91615.37 | BG29: 0.46
A30: 6 | C30: RSVA - Global Adjustment | D30: 1589 | H30: 9626 | I30: 9626 | M30: 29.43 | N30: 29.43 | O30: 9626 | P30: 50852.86 | S30: 60478.86 | T30: 29.43 | U30: -242.65 | X30: -213.22 | Y30: 60478.86 | Z30: 46001.27 | AA30: 9626 | AF30: 96854.13 | AG30: -213.22 | AH30: 469.58 | AI30: 59 | AK30: 197.36 | AL30: 96854.13 | AM30: 47567.93 | AS30: 144422.06 | AT30: 197.36 | AU30: 1009.61 | AX30: 1206.97 | BA30: 144422.06 | BB30: 1206.97 | BC30: 2123 | BD30: 707.64 | BE30: 148459.67 | BF30: 145629.01 | BG30: -0.01999999999
A31: 7 | C31: Recovery of Regulatory Asset Balances | D31: 1590 | I31: 0 | N31: 0 | P31: 0 | AG31: 0 | AK31: 0 | AT31: 0 | AX31: 0 | BB31: 0 | BE31: 0 | BG31: 0
A32: 8 | C32: Disposition and Recovery/Refund of Regulatory Balances (2008)4 | D32: 1595 | I32: 0 | N32: 0 | O32: =I32 -> 0 | S32: 0 | T32: 0 | X32: 0 | Y32: 0 | AF32: 0 | AG32: 0 | AK32: 0 | AL32: 0 | AS32: 0 | AT32: 0 | AX32: 0 | BB32: 0 | BE32: 0
A33: 9 | C33: Disposition and Recovery/Refund of Regulatory Balances (2009)4 | D33: 1595 | I33: 0 | N33: 0 | O33: =I33 -> 0 | S33: 0 | T33: 0 | X33: 0 | Y33: 0 | AF33: 0 | AG33: 0 | AK33: 0 | AL33: 0 | AS33: 0 | AT33: 0 | AX33: 0 | BA33: 0 | BB33: 0 | BE33: 0 | BG33: 0
A34: 9 | C34: Disposition and Recovery/Refund of Regulatory Balances (2010)4 | D34: 1595 | H34: -82394 | I34: -82394 | M34: -581.81 | N34: -581.81 | O34: =I34 -> -82394 | P34: 67522.2 | S34: -14871.8 | T34: -581.81 | U34: -818.93 | X34: -1400.74 | Y34: -14871.8 | Z34: 15666.29 | AF34: 794.49 | AG34: -1400.74 | AH34: -110.68 | AK34: -1511.42 | AL34: 794.49 | AS34: 794.49 | AT34: -1511.42 | AU34: 11.67 | AX34: -1499.75 | BA34: 794.49 | BB34: -1499.75 | BC34: 11.67 | BD34: 4 | BE34: -689.59 | BF34: -705.55 | BG34: -0.29
A35: 9 | C35: Disposition and Recovery/Refund of Regulatory Balances (2011)4 | D35: 1595 | I35: 0 | N35: 0 | O35: =I35 -> 0 | S35: 0 | T35: 0 | X35: 0 | Y35: 0 | AF35: 0 | AG35: 0 | AK35: 0 | AL35: 0 | AS35: 0 | AT35: 0 | AX35: 0 | BA35: 0 | BB35: 0 | BE35: =SUM(BA35:BD35) -> 0 | BG35: 0
A36: 9 | C36: Disposition and Recovery/Refund of Regulatory Balances (2012)4 | D36: 1595 | I36: 0 | N36: 0 | O36: =I36 -> 0 | S36: 0 | T36: =N36 -> 0 | X36: 0 | Y36: =S36 -> 0 | AF36: =Y36+Z36-AA36+SUM(AB36:AE36) -> 0 | AG36: =X36 -> 0 | AK36: =AG36+AH36-AI36+AJ36 -> 0 | AL36: =AF36 -> 0 | AS36: =AL36+AM36-AN36+SUM(AO36:AR36) -> 0 | AT36: =AK36 -> 0 | AX36: =AT36+AU36-AV36+AW36 -> 0 | BA36: 0 | BB36: 0 | BE36: =SUM(BA36:BD36) -> 0 | BG36: 0
C38: RSVA - Global Adjustment | D38: 1589 | E38: =E30 -> 0 | F38: =F30 -> 0 | G38: 0 | H38: 9626 | I38: 9626 | J38: 0 | K38: 0 | L38: 0 | M38: 29.43 | N38: 29.43 | O38: =O30 -> 9626 | P38: =P30 -> 50852.86 | Q38: 0 | R38: 0 | S38: 60478.86 | T38: 29.43 | U38: -242.65 | V38: 0 | W38: 0 | X38: -213.22 | Y38: =Y30 -> 60478.86 | Z38: =Z30 -> 46001.27 | AA38: 9626 | AB38: 0 | AC38: 0 | AD38: 0 | AE38: 0 | AF38: =AF30 -> 96854.13 | AG38: -213.22 | AH38: 469.58 | AI38: 59 | AJ38: =AJ30 -> 0 | AK38: 197.36 | AL38: =AL30 -> 96854.13 | AM38: =AM30 -> 47567.93 | AN38: 0 | AO38: 0 | AP38: 0 | AQ38: 0 | AR38: 0 | AS38: 144422.06 | AT38: 197.36 | AU38: 1009.61 | AV38: 0 | AW38: 0 | AX38: 1206.97 | AY38: 0 | AZ38: =AZ30 -> 0 | BA38: 144422.06 | BB38: 1206.97 | BC38: 2123 | BD38: 707.64 | BE38: 148459.67 | BF38: 145629.01 | BG38: -0.01999999999
C39: Total Group 1 Balance excluding Account 1589 - Global Adjustment | E39: =SUM(E24:E29,E31:E36) -> 0 | F39: =SUM(F24:F29,F31:F36) -> 0 | G39: 0 | H39: -66656 | I39: -66656 | J39: 0 | K39: 0 | L39: 0 | M39: 18296.37 | N39: 18296.37 | O39: =SUM(O24:O29,O31:O36) -> -66656 | P39: =SUM(P24:P29,P31:P36) -> 39493.41 | Q39: 0 | R39: 0 | S39: -27162.59 | T39: 18296.37 | U39: 671.37 | V39: 0 | W39: 0 | X39: 18967.74 | Y39: =SUM(Y24:Y29,Y31:Y36) -> -27162.59 | Z39: =SUM(Z24:Z29,Z31:Z36) -> -58814.21 | AA39: 585 | AB39: 0 | AC39: 0 | AD39: 0 | AE39: 0 | AF39: =SUM(AF24:AF29,AF31:AF36) -> -86561.8 | AG39: 18967.74 | AH39: -768.08 | AI39: 36708 | AJ39: =SUM(AJ24:AJ29,AJ31:AJ36) -> 0 | AK39: -18508.34 | AL39: =SUM(AL24:AL29,AL31:AL36) -> -86561.8 | AM39: =SUM(AM24:AM29,AM31:AM36) -> -63604.19 | AN39: 0 | AO39: 0 | AP39: 0 | AQ39: 0 | AR39: 0 | AS39: -150165.99 | AT39: -18508.34 | AU39: -1577 | AV39: 0 | AW39: 0 | AX39: -20085.34 | AY39: 0 | AZ39: =SUM(AZ24:AZ29,AZ31:AZ36) -> 0 | BA39: -150165.99 | BB39: -20085.34 | BC39: -2207.44 | BD39: -735.64 | BE39: -173194.41 | BF39: -170250.8 | BG39: 0.53
C40: Total Group 1 Balance | E40: =SUM(E24:E36) -> 0 | F40: =SUM(F24:F36) -> 0 | G40: 0 | H40: -57030 | I40: -57030 | J40: 0 | K40: 0 | L40: 0 | M40: 18325.8 | N40: 18325.8 | O40: =SUM(O24:O36) -> -57030 | P40: =SUM(P24:P36) -> 90346.27 | Q40: 0 | R40: 0 | S40: 33316.27 | T40: 18325.8 | U40: 428.72 | V40: 0 | W40: 0 | X40: 18754.52 | Y40: =SUM(Y24:Y36) -> 33316.27 | Z40: =SUM(Z24:Z36) -> -12812.94 | AA40: 10211 | AB40: 0 | AC40: 0 | AD40: 0 | AE40: 0 | AF40: =SUM(AF24:AF36) -> 10292.33 | AG40: 18754.52 | AH40: -298.5 | AI40: 36767 | AJ40: =SUM(AJ24:AJ36) -> 0 | AK40: -18310.98 | AL40: =SUM(AL24:AL36) -> 10292.33 | AM40: =SUM(AM24:AM36) -> -16036.26 | AN40: 0 | AO40: 0 | AP40: 0 | AQ40: 0 | AR40: 0 | AS40: -5743.93 | AT40: -18310.98 | AU40: -567.39 | AV40: 0 | AW40: 0 | AX40: -18878.37 | AY40: 0 | AZ40: =SUM(AZ24:AZ36) -> 0 | BA40: -5743.93 | BB40: -18878.37 | BC40: -84.44 | BD40: -28 | BE40: -24734.74 | BF40: -24621.79 | BG40: 0.51
C42: LRAM Variance Account | D42: 1568 | I42: =E42+F42-G42+SUM(H42:H42) -> 0 | N42: =J42+K42-L42+M42 -> 0 | S42: =O42+P42-Q42+SUM(R42:R42) -> 0 | X42: =T42+U42-V42+W42 -> 0 | Y42: =S42 -> 0 | AF42: =Y42+Z42-AA42+SUM(AB42:AE42) -> 0 | AG42: =X42 -> 0 | AK42: =AG42+AH42-AI42+AJ42 -> 0 | AL42: =AF42 -> 0 | AM42: 1487.26 | AS42: =AL42+AM42-AN42+SUM(AO42:AR42) -> 1487.26 | AT42: =AK42 -> 0 | AU42: 20.13 | AX42: =AT42+AU42-AV42+AW42 -> 20.13 | AY42: 0 | AZ42: 0 | BA42: =AS42-AY42 -> 1487.26 | BB42: =AX42-AZ42 -> 20.13 | BC42: 21.37 | BD42: 7.28 | BE42: =SUM(BA42:BD42) -> 1536.04 | BF42: 1507.39 | BG42: =BF42-SUM(AS42,AX42) -> 0
C44: Total including Account 1568 | E44: =E42+E40 -> 0 | F44: =F42+F40 -> 0 | G44: 0 | H44: -57030 | I44: -57030 | J44: 0 | K44: 0 | L44: 0 | M44: 18325.8 | N44: 18325.8 | O44: -57030 | P44: 90346.27 | Q44: 0 | R44: 0 | S44: 33316.27 | T44: 18325.8 | U44: 428.72 | V44: 0 | W44: 0 | X44: 18754.52 | Y44: 33316.27 | Z44: -12812.94 | AA44: 10211 | AB44: 0 | AC44: 0 | AD44: 0 | AE44: 0 | AF44: 10292.33 | AG44: 18754.52 | AH44: -298.5 | AI44: 36767 | AJ44: 0 | AK44: -18310.98 | AL44: 10292.33 | AM44: -14549 | AN44: 0 | AO44: 0 | AP44: 0 | AQ44: 0 | AR44: 0 | AS44: -4256.67 | AT44: -18310.98 | AU44: -547.26 | AV44: 0 | AW44: 0 | AX44: -18858.24 | AY44: 0 | AZ44: 0 | BA44: -4256.67 | BB44: -18858.24 | BC44: -63.07 | BD44: -20.72 | BE44: -23198.7 | BF44: -23114.4 | BG44: 0.51
C47: For all Board-Approved dispositions, please ensure that the disposition amount has the same sign (e.g: debit balances are to have a positive figure and credit balance are to have a negative figure) as per the related Board decision.
B50: 1 | C50: Please provide explanations for the nature of the adjustments. If the adjustment relates to previously Board Approved disposed balances, please provide amounts for adjustments and include supporting documentations.
B51: 2 | C51: For RSVA accounts only, report the net variance to the account during the year. For all other accounts, record the transactions during the year.
B52: 3 | C52: If the LDC’s rate year begins on January 1, 2015, the projected interest is recorded from January 1, 2014 to December 31, 2014 on the December 31, 2013 balances adjusted for the disposed balances approved by the Board in the 2014 rate decision. If the LDC’s rate year begins on May 1, 2015, the projected interest is recorded from January 1, 2014 to April 30, 2015 on the December 31, 2013 balances adjusted for the disposed interest balances approved by the Board in the 2014 rate decision.
B53: 4 | C53: Include Account 1595 as part of Group 1 accounts (lines 31, 32, 33 and 34) for review and disposition if the recovery (or refund) period has been completed. If the recovery (or refund) period has not been completed, do not include the respective balance in Account 1595 for disposition at this time.

Sheet 6. Billing Det. for Def-Var
AS1: As per Section 3.2.3 of the 2015 Filing Requirements for Electricity Distribution Rate Applications, an applicant may elect to dispose of the Group 1 account balances below the threshold. If doing so, please select YES from the adjacent drop-down cell and also indicate so in the Manager's Summary. If not, please select NO.
A13: In the green shaded cells, enter the most recent Board Approved volumetric forecast. If there is a material difference between the latest Board-approved volumetric forecast and the most recent 12-month actual volumetric data, use the most recent 12-month actual data. Do not enter data for the MicroFit class.
E15: Billed kWh for Non-RPP Customers | F15: Estimated kW for Non-RPP Customers | H15: 1590 Recovery Share Proportion* | I15: 1595 Recovery Share Proportion (2008) 1 | J15: 1595 Recovery Share Proportion (2009) 1 | K15: 1595 Recovery Share Proportion (2010) 1 | L15: 1595 Recovery Share Proportion (2011) 1 | M15: 1595 Recovery Share Proportion (2012) 1 | N15: 1568 LRAM Variance Account Class Allocation ($ amounts) | O15: Number of Customers for Residential and GS<50 classes3
A16: Rate Class | B16: Unit | C16: Metered kWh | D16: Metered kW
A17: RESIDENTIAL | B17: $/kWh | C17: 11113021 | F17: =IF(ISERROR(D17/C17*E17), 0, D17/C17*E17) -> 0
A18: GENERAL SERVICE LESS THAN 50 KW | B18: $/kWh | C18: 6246087 | E18: 43364 | F18: =IF(ISERROR(D18/C18*E18), 0, D18/C18*E18) -> 0 | N18: 331.45 | O18: 1642
A19: GENERAL SERVICE 50 TO 4,999 KW | B19: $/kW | C19: 5218563 | D19: 13872 | E19: 3311465 | F19: =IF(ISERROR(D19/C19*E19), 0, D19/C19*E19) -> 8802.54631 | N19: 1200.33
A20: STREET LIGHTING | B20: $/kW | C20: 466493 | D20: 1316 | E20: 466493 | F20: =IF(ISERROR(D20/C20*E20), 0, D20/C20*E20) -> 1316 | N20: 4.26
A21: microFIT
B23: Total | C23: =SUM(C17:C21) -> 23044164 | D23: =SUM(D17:D21) -> 15188 | E23: 3821322 | F23: 10118.54631 | H23: 0 | I23: 0 | J23: 0 | K23: 0 | L23: 0 | M23: 0 | N23: 1536.04 | O23: 1642
M24: Balance as per Sheet 5 | N24: =ROUND('5. 2014 Continuity Schedule'!BE42, 0) -> 1536
M25: Variance | N25: =N23-N24 -> 0.04
A27: Threshold Test
A28: Total Claim (including Account 1568) | B28: ='5. 2014 Continuity Schedule'!BE44 -> -23198.7
A29: Total Claim for Threshold Test (All Group 1 Accounts) | B29: ='5. 2014 Continuity Schedule'!BE40 -> -24734.74
A30: Threshold Test (Total claim per kWh) 2 | B30: =IF(ISERROR(B29/C23), 0, B29/C23) -> -0.001073362436 | D30: =IF(AND(B30>-0.001,B30<0.001),"Claim does not meet the threshold test.","") -> 
A32: =IF(AND(B30>-0.001, B30<0.001), AS1, "") -> 
A36: 1 Residual Account balance to be allocated to rate classes in proportion to the recovery share as established when rate riders were implemented.
A37: 2 The Threshold Test does not include the amount in 1568.
A38: 3 The proportion of customers for the Residential and GS<50 Classes will be used to allocate Account 1551.

Sheet 6. hidden (hidden)
E1: Billed kWh for Non-RPP Customers | F1: Estimated kW for Non-RPP Customers | G1: Distribution Revenue 1 | H1: 1590 Recovery Share Proportion* | I1: 1595 Recovery Share Proportion (2008) 2 | J1: 1595 Recovery Share Proportion (2009) 2 | K1: 1595 Recovery Share Proportion (2010) 2 | L1: 1595 Recovery Share Proportion (2011) 2 | M1: 1568 LRAM Variance Account Class Allocation
A2: Rate Class | B2: Unit | C2: Metered kWh | D2: Metered kW
A3: RESIDENTIAL | B3: $/kWh | C3: 11113021 | D3: 0 | E3: 0 | G3: 0 | H3: 0 | I3: 0 | J3: 0 | K3: 0 | L3: 0 | M3: 0 | N3: 0 | O3: 0
A4: GENERAL SERVICE LESS THAN 50 KW | B4: $/kWh | C4: 6246087 | D4: 0 | E4: 43364 | G4: 0 | H4: 0 | I4: 0 | J4: 0 | K4: 0 | L4: 0 | M4: 0 | N4: 331.45 | O4: 1642
A5: GENERAL SERVICE 50 TO 4,999 KW | B5: $/kW | C5: 5218563 | D5: 13872 | E5: 3311465 | G5: 0 | H5: 0 | I5: 0 | J5: 0 | K5: 0 | L5: 0 | M5: 0 | N5: 1200.33 | O5: 0
A6: STREET LIGHTING | B6: $/kW | C6: 466493 | D6: 1316 | E6: 466493 | G6: 0 | H6: 0 | I6: 0 | J6: 0 | K6: 0 | L6: 0 | M6: 0 | N6: 4.26 | O6: 0
A7: microFIT | B7: 0 | C7: 0 | D7: 0 | E7: 0 | G7: 0 | H7: 0 | I7: 0 | J7: 0 | K7: 0 | L7: 0 | M7: 0 | N7: 0 | O7: 0

Sheet 7. Allocating Def-Var Balances
A13: No input required. This workshseet allocates the deferral/variance account balances (Group 1, 1589, and 1568) to the appropriate classes as per the EDDVAR Report dated July 31, 2009
A15: Allocation of Group 1 Accounts (including Account 1568)
C16: % of Total kWh | D16: % of Total non-RPP kWh | E16: % of Customer Numbers ** | N16: 1595 (2008) | O16: 1595 (2009) | P16: 1595 (2010) | Q16: 1595 (2011) | R16: 1595 (2012) | S16: 1568
A17: Rate Class | F17: 1550 | G17: 1551 | H17: 1580 | I17: 1584 | J17: 1586 | K17: 1588 | L17: 1589 | M17: 1590
A19: RESIDENTIAL | C19: =VLOOKUP(A19, '6. Billing Det. for Def-Var'!#REF!, 3,0)/'6. Billing Det. for Def-Var'!#REF! ->  | D19: =VLOOKUP(A19, '6. Billing Det. for Def-Var'!#REF!, 5,0)/'6. Billing Det. for Def-Var'!#REF! ->  | E19: =VLOOKUP(A19, '6. Billing Det. for Def-Var'!#REF!, 15,0)/'6. Billing Det. for Def-Var'!#REF! ->  | F19: =C19* '5. 2014 Continuity Schedule'!BE24 ->  | G19: =E19* '5. 2014 Continuity Schedule'!BE25 ->  | H19: =C19* '5. 2014 Continuity Schedule'!BE26 ->  | I19: =C19* '5. 2014 Continuity Schedule'!BE27 ->  | J19: =C19* '5. 2014 Continuity Schedule'!BE28 ->  | K19: =C19* '5. 2014 Continuity Schedule'!BE29 ->  | L19: =D19* '5. 2014 Continuity Schedule'!BE30 ->  | M19: ='6. Billing Det. for Def-Var'!#REF!* '5. 2014 Continuity Schedule'!BE31 ->  | N19: ='6. Billing Det. for Def-Var'!#REF!* '5. 2014 Continuity Schedule'!BE32 ->  | O19: ='6. Billing Det. for Def-Var'!#REF!* '5. 2014 Continuity Schedule'!BE33 ->  | P19: ='6. Billing Det. for Def-Var'!#REF!* '5. 2014 Continuity Schedule'!BE34 ->  | Q19: ='6. Billing Det. for Def-Var'!#REF!* '5. 2014 Continuity Schedule'!BE35 ->  | R19: ='6. Billing Det. for Def-Var'!#REF!* '5. 2014 Continuity Schedule'!BE36 ->  | S19: ='6. Billing Det. for Def-Var'!#REF! -> 
A20: GENERAL SERVICE LESS THAN 50 KW | C20: =VLOOKUP(A20, '6. Billing Det. for Def-Var'!#REF!, 3,0)/'6. Billing Det. for Def-Var'!#REF! ->  | D20: =VLOOKUP(A20, '6. Billing Det. for Def-Var'!#REF!, 5,0)/'6. Billing Det. for Def-Var'!#REF! ->  | E20: =VLOOKUP(A20, '6. Billing Det. for Def-Var'!#REF!, 15,0)/'6. Billing Det. for Def-Var'!#REF! ->  | F20: =C20* '5. 2014 Continuity Schedule'!BE24 ->  | G20: =E20* '5. 2014 Continuity Schedule'!BE25 ->  | H20: =C20* '5. 2014 Continuity Schedule'!BE26 ->  | I20: =C20* '5. 2014 Continuity Schedule'!BE27 ->  | J20: =C20* '5. 2014 Continuity Schedule'!BE28 ->  | K20: =C20* '5. 2014 Continuity Schedule'!BE29 ->  | L20: =D20* '5. 2014 Continuity Schedule'!BE30 ->  | M20: ='6. Billing Det. for Def-Var'!#REF!* '5. 2014 Continuity Schedule'!BE31 ->  | N20: ='6. Billing Det. for Def-Var'!#REF!* '5. 2014 Continuity Schedule'!BE32 ->  | O20: ='6. Billing Det. for Def-Var'!#REF!* '5. 2014 Continuity Schedule'!BE33 ->  | P20: ='6. Billing Det. for Def-Var'!#REF!* '5. 2014 Continuity Schedule'!BE34 ->  | Q20: ='6. Billing Det. for Def-Var'!#REF!* '5. 2014 Continuity Schedule'!BE35 ->  | R20: ='6. Billing Det. for Def-Var'!#REF!* '5. 2014 Continuity Schedule'!BE36 ->  | S20: ='6. Billing Det. for Def-Var'!#REF! -> 
A21: GENERAL SERVICE 50 TO 4,999 KW | C21: =VLOOKUP(A21, '6. Billing Det. for Def-Var'!#REF!, 3,0)/'6. Billing Det. for Def-Var'!#REF! ->  | D21: =VLOOKUP(A21, '6. Billing Det. for Def-Var'!#REF!, 5,0)/'6. Billing Det. for Def-Var'!#REF! ->  | F21: =C21* '5. 2014 Continuity Schedule'!BE24 ->  | G21: =E21* '5. 2014 Continuity Schedule'!BE25 -> 0 | H21: =C21* '5. 2014 Continuity Schedule'!BE26 ->  | I21: =C21* '5. 2014 Continuity Schedule'!BE27 ->  | J21: =C21* '5. 2014 Continuity Schedule'!BE28 ->  | K21: =C21* '5. 2014 Continuity Schedule'!BE29 ->  | L21: =D21* '5. 2014 Continuity Schedule'!BE30 ->  | M21: ='6. Billing Det. for Def-Var'!#REF!* '5. 2014 Continuity Schedule'!BE31 ->  | N21: ='6. Billing Det. for Def-Var'!#REF!* '5. 2014 Continuity Schedule'!BE32 ->  | O21: ='6. Billing Det. for Def-Var'!#REF!* '5. 2014 Continuity Schedule'!BE33 ->  | P21: ='6. Billing Det. for Def-Var'!#REF!* '5. 2014 Continuity Schedule'!BE34 ->  | Q21: ='6. Billing Det. for Def-Var'!#REF!* '5. 2014 Continuity Schedule'!BE35 ->  | R21: ='6. Billing Det. for Def-Var'!#REF!* '5. 2014 Continuity Schedule'!BE36 ->  | S21: ='6. Billing Det. for Def-Var'!#REF! -> 
A22: STREET LIGHTING | C22: =VLOOKUP(A22, '6. Billing Det. for Def-Var'!#REF!, 3,0)/'6. Billing Det. for Def-Var'!#REF! ->  | D22: =VLOOKUP(A22, '6. Billing Det. for Def-Var'!#REF!, 5,0)/'6. Billing Det. for Def-Var'!#REF! ->  | F22: =C22* '5. 2014 Continuity Schedule'!BE24 ->  | G22: =E22* '5. 2014 Continuity Schedule'!BE25 -> 0 | H22: =C22* '5. 2014 Continuity Schedule'!BE26 ->  | I22: =C22* '5. 2014 Continuity Schedule'!BE27 ->  | J22: =C22* '5. 2014 Continuity Schedule'!BE28 ->  | K22: =C22* '5. 2014 Continuity Schedule'!BE29 ->  | L22: =D22* '5. 2014 Continuity Schedule'!BE30 ->  | M22: ='6. Billing Det. for Def-Var'!#REF!* '5. 2014 Continuity Schedule'!BE31 ->  | N22: ='6. Billing Det. for Def-Var'!#REF!* '5. 2014 Continuity Schedule'!BE32 ->  | O22: ='6. Billing Det. for Def-Var'!#REF!* '5. 2014 Continuity Schedule'!BE33 ->  | P22: ='6. Billing Det. for Def-Var'!#REF!* '5. 2014 Continuity Schedule'!BE34 ->  | Q22: ='6. Billing Det. for Def-Var'!#REF!* '5. 2014 Continuity Schedule'!BE35 ->  | R22: ='6. Billing Det. for Def-Var'!#REF!* '5. 2014 Continuity Schedule'!BE36 ->  | S22: ='6. Billing Det. for Def-Var'!#REF! -> 
A23: microFIT | C23: 0 | D23: 0 | E23: 0 | F23: =C23* '5. 2014 Continuity Schedule'!BE24 -> 0 | G23: =E23* '5. 2014 Continuity Schedule'!BE25 -> 0 | H23: =C23* '5. 2014 Continuity Schedule'!BE26 -> 0 | I23: =C23* '5. 2014 Continuity Schedule'!BE27 -> 0 | J23: =C23* '5. 2014 Continuity Schedule'!BE28 -> 0 | K23: =C23* '5. 2014 Continuity Schedule'!BE29 -> 0 | L23: =D23* '5. 2014 Continuity Schedule'!BE30 -> 0 | M23: ='6. Billing Det. for Def-Var'!#REF!* '5. 2014 Continuity Schedule'!BE31 ->  | N23: ='6. Billing Det. for Def-Var'!#REF!* '5. 2014 Continuity Schedule'!BE32 ->  | O23: ='6. Billing Det. for Def-Var'!#REF!* '5. 2014 Continuity Schedule'!BE33 ->  | P23: ='6. Billing Det. for Def-Var'!#REF!* '5. 2014 Continuity Schedule'!BE34 ->  | Q23: ='6. Billing Det. for Def-Var'!#REF!* '5. 2014 Continuity Schedule'!BE35 ->  | R23: ='6. Billing Det. for Def-Var'!#REF!* '5. 2014 Continuity Schedule'!BE36 ->  | S23: ='6. Billing Det. for Def-Var'!#REF! -> 
A25: Total | C25: =SUM(C19:C23) -> 
A28: * RSVA - Power (Excluding Global Adjustment)
A29: ** Used to allocate Account 1551 as this account records the variances arising from the Smart Metering Entity Charges to Residential and GS<50 customers.

Sheet 8. Calculation of Def-Var RR
A12: Input required at cell C15 only. This workshseet calculates rate riders related to the Deferral/Variance Account Disposition (if applicable), associated rate riders for the global adjustment account (1589) and Account 1568. Rate Riders will not be generated for the microFIT class.
A15: Please indicate the Rate Rider Recovery Period (in years) | C15: 4
E17: Balance of Accounts Allocated by kWh/kW (RPP) or Distribution Revenue | F17: Deferral/Variance Account Rate Rider | G17: Allocation of Balance in Account 1589 | H17: Billed kWh or Estimated kW for Non-RPP Customers | I17: Global Adjustment Rate Rider | J17: Allocation of Account 1568 | K17: Account 1568 Rate Rider
A18: Rate Class | B18: Unit | C18: Billed kWh | D18: Billed kW or kVA
A20: RESIDENTIAL | B20: $/kWh | C20: 11113021 | E20: =SUM('7. Allocating Def-Var Balances'!F19:K19)+SUM('7. Allocating Def-Var Balances'!M19:R19) ->  | F20: -0.0019 | G20: 0 | I20: 0 | K20: 0
A21: GENERAL SERVICE LESS THAN 50 KW | B21: $/kWh | C21: 6246087 | E21: =SUM('7. Allocating Def-Var Balances'!F20:K20)+SUM('7. Allocating Def-Var Balances'!M20:R20) ->  | F21: -0.0019 | G21: 1684.706269 | H21: 43364 | I21: 0.0097 | J21: 331.45 | K21: 0
A22: GENERAL SERVICE 50 TO 4,999 KW | B22: $/kW | C22: 5218563 | D22: 13872 | E22: =SUM('7. Allocating Def-Var Balances'!F21:K21)+SUM('7. Allocating Def-Var Balances'!M21:R21) ->  | F22: -0.704 | G22: 128651.5507 | H22: 8802.54631 | I22: 3.6538 | J22: 1200.33 | K22: 0.0216
A23: STREET LIGHTING | B23: $/kW | C23: 466493 | D23: 1316 | E23: =SUM('7. Allocating Def-Var Balances'!F22:K22)+SUM('7. Allocating Def-Var Balances'!M22:R22) ->  | F23: -0.6634 | G23: 18123.41301 | H23: 1316 | I23: 3.4429 | J23: 4.26 | K23: 0.0008
A24: microFIT
A25: Total | C25: =SUM(C20:C24) -> 23044164 | D25: =SUM(D20:D24) -> 15188 | E25: =SUM(E20:E24) ->  | G25: =SUM(G20:G24) -> 148459.67 | H25: =SUM(H20:H24) -> 53482.54631 | J25: =SUM(J20:J24) -> 1536.04
A29: One or more rate classes appear to have negligible rate riders in columns F and/or I. As per Appendix B of the Filing Requirements, please provide details of the Applicant's proposal in the Manager's Summary.

Sheet 9. STS - Billing Det & Rates
A11: Shared Tax Savings
A13: ="Enter your " & '1. Information Sheet'!F32 & " Board-Approved Billing Determinents into columns B, C and D." -> Enter your 2012 Board-Approved Billing Determinents into columns B, C and D.
A14: ="Enter your " & '1. Information Sheet'!F32 & " Board-Approved Base monthly service and volumetric charges into columns G, H and I." -> Enter your 2012 Board-Approved Base monthly service and volumetric charges into columns G, H and I.
A16: Rate Class | B16: Units | C16: Re-based Billed Customers or Connections | D16: Re-based Billed kWh | E16: Re-based Billed kW (if applicable) | G16: ='1. Information Sheet'!F32 &" Base Monthly Service Charge" -> 2012 Base Monthly Service Charge | H16: ='1. Information Sheet'!F32 &" Base Distribution Volumetric Rate kWh" -> 2012 Base Distribution Volumetric Rate kWh | I16: ='1. Information Sheet'!F32 &" Base Distribution Volumetric Rate kW" -> 2012 Base Distribution Volumetric Rate kW
A17: RESIDENTIAL | B17: $/kWh | C17: 1424 | D17: 11113021 | E17: 0 | G17: 33.99 | H17: 0.0134 | I17: 0
A18: GENERAL SERVICE LESS THAN 50 KW | B18: $/kWh | C18: 235 | D18: 6246087 | E18: 13872 | G18: 74.07 | H18: 0.0094 | I18: 0
A19: GENERAL SERVICE 50 TO 4,999 KW | B19: $/kW | C19: 15 | D19: 5218563 | E19: 1316 | G19: 547.77 | H19: 0 | I19: 2.1698
A20: STREET LIGHTING | B20: $/kW | C20: 635 | D20: 466493 | E20: 0 | G20: 11.87 | H20: 0 | I20: 14.6362
A21: microFIT

Sheet 10. STS - Rebased Rev
A12: Calculation of Rebased Revenue Requirement. No input required.
A15: Rate Class | C15: Re-based Billed Customers or Connections | D15: Re-based Billed kWh | E15: Re-based Billed kW | G15: Rate ReBal Base Service Charge | H15: Rate ReBal Base Distribution Volumetric Rate kWh | I15: Rate ReBal Base Distribution Volumetric Rate kW | K15: Service Charge Revenue | L15: Distribution Volumetric Rate Revenue kWh | M15: Distribution Volumetric Rate Revenue kW | N15: Revenue Requirement from Rates | P15: Service Charge % Revenue | Q15: Distribution Volumetric Rate % Revenue kWh | R15: Distribution Volumetric Rate % Revenue kW | S15: Total % Revenue
C16: A | D16: B | E16: C | G16: D | H16: E | I16: F | K16: G = A * D *12 | L16: H = B * E | M16: I = C * F | N16: J = G + H + I | P16: K = G / J | Q16: L = H / J | R16: M = I / J | S16: N = J / R
A17: RESIDENTIAL | C17: 1424 | D17: 11113021 | E17: 0 | G17: 33.99 | H17: 0.0134 | I17: 0 | K17: =G17*C17*12 -> 580821.12 | L17: =H17*D17 -> 148914.4814 | M17: 0 | N17: =SUM(K17,L17,M17) -> 729735.6014 | P17: =IF(ISERROR(K17/N17),0,K17/N17) -> 0.795933649 | Q17: =IF(ISERROR(L17/N17),0,L17/N17) -> 0.204066351 | R17: =IF(ISERROR(M17/N17),0,M17/N17) -> 0 | S17: =N17/N22 -> 0.6454887022
A18: GENERAL SERVICE LESS THAN 50 KW | C18: 235 | D18: 6246087 | E18: 13872 | G18: 74.07 | H18: 0.0094 | I18: 0 | K18: =G18*C18*12 -> 208877.4 | L18: 0 | M18: =I18*E18 -> 0 | N18: =SUM(K18,L18,M18) -> 208877.4 | P18: =IF(ISERROR(K18/N18),0,K18/N18) -> 1 | Q18: =IF(ISERROR(L18/N18),0,L18/N18) -> 0 | R18: =IF(ISERROR(M18/N18),0,M18/N18) -> 0 | S18: =N18/N22 -> 0.1847628122
A19: GENERAL SERVICE 50 TO 4,999 KW | C19: 15 | D19: 5218563 | E19: 1316 | G19: 547.77 | H19: 0 | I19: 2.1698 | K19: =G19*C19*12 -> 98598.6 | L19: 0 | M19: =I19*E19 -> 2855.4568 | N19: =SUM(K19,L19,M19) -> 101454.0568 | P19: =IF(ISERROR(K19/N19),0,K19/N19) -> 0.9718546809 | Q19: =IF(ISERROR(L19/N19),0,L19/N19) -> 0 | R19: =IF(ISERROR(M19/N19),0,M19/N19) -> 0.02814531907 | S19: =N19/N22 -> 0.08974133553
A20: STREET LIGHTING | C20: 635 | D20: 466493 | E20: 0 | G20: 11.87 | H20: 0 | I20: 14.6362 | K20: =G20*C20*12 -> 90449.4 | L20: =H20*D20 -> 0 | M20: 0 | N20: =SUM(K20,L20,M20) -> 90449.4 | P20: =IF(ISERROR(K20/N20),0,K20/N20) -> 1 | Q20: =IF(ISERROR(L20/N20),0,L20/N20) -> 0 | R20: =IF(ISERROR(M20/N20),0,M20/N20) -> 0 | S20: =N20/N22 -> 0.08000715013
A21: microFIT | K21: =G21*C21*12 -> 0 | L21: 0 | M21: 0 | N21: =SUM(K21,L21,M21) -> 0 | P21: =IF(ISERROR(K21/N21),0,K21/N21) -> 0 | Q21: =IF(ISERROR(L21/N21),0,L21/N21) -> 0 | R21: =IF(ISERROR(M21/N21),0,M21/N21) -> 0 | S21: =N21/N22 -> 0
A22: Total | C22: =SUM(C17:C21) -> 2309 | D22: =SUM(D17:D21) -> 23044164 | E22: =SUM(E17:E21) -> 15188 | K22: =SUM(K17:K21) -> 978746.52 | L22: =SUM(L17:L21) -> 148914.4814 | M22: =SUM(M17:M21) -> 2855.4568 | N22: =SUM(N17:N21) -> 1130516.458 | S22: =SUM(S17:S21) -> 1

Sheet 9. STS - Billing Det & Rate HID (hidden)
A11: Shared Tax Savings
A12: ="Enter your " & '1. Information Sheet'!F32 & " Board-Approved Billing Determinents into columns B, C and D." -> Enter your 2012 Board-Approved Billing Determinents into columns B, C and D.
A16: Rate Class | B16: Units | C16: Re-based Billed Customers or Connections | D16: Re-based Billed kWh | E16: Re-based Billed kW (if applicable) | G16: ='1. Information Sheet'!F32 &" Base Monthly Service Charge" -> 2012 Base Monthly Service Charge | H16: ='1. Information Sheet'!F32 &" Base Distribution Volumetric Rate kWh" -> 2012 Base Distribution Volumetric Rate kWh | I16: ='1. Information Sheet'!F32 &" Base Distribution Volumetric Rate kW" -> 2012 Base Distribution Volumetric Rate kW
A17: RESIDENTIAL | B17: $/kWh | C17: 1424 | D17: 11113021 | E17: 0 | G17: 33.99 | H17: 0.0134 | I17: 0
A18: GENERAL SERVICE LESS THAN 50 KW | B18: $/kWh | C18: 235 | D18: 6246087 | E18: 13872 | G18: 74.07 | H18: 0.0094 | I18: 0
A19: GENERAL SERVICE 50 TO 4,999 KW | B19: $/kW | C19: 15 | D19: 5218563 | E19: 1316 | G19: 547.77 | H19: 0 | I19: 2.1698
A20: STREET LIGHTING | B20: $/kW | C20: 635 | D20: 466493 | E20: 0 | G20: 11.87 | H20: 0 | I20: 14.6362
A21: microFIT | B21: 0 | C21: 0 | D21: 0 | E21: 0 | G21: 0 | H21: 0 | I21: 0

Sheet 11. STS - Tax Change
T1: Rate Base | U1: Federal Tax Rate
T2: 500000 | U2: 0.11
T3: 10000000 | U3: 0.11
T4: =T3+100000 -> 10100000 | U4: 0.11
T5: =T4+100000 -> 10200000 | U5: 0.11
T6: 10300000 | U6: 0.11
T7: 10400000 | U7: 0.11
T8: 10500000 | U8: 0.11
T9: 10600000 | U9: 0.11
T10: 10700000 | U10: 0.11
T11: 10800000 | U11: 0.11
T12: 10900000 | U12: 0.11
A13: Summary - Sharing of Tax Change Forecast Amounts | T13: 11000000 | U13: 0.11
T14: 11100000 | U14: 0.111
A15: ="For the " & '1. Information Sheet'!F32 & " year, enter any Tax Credits from the Cost of Service Tax Calculation (Positive #)" -> For the 2012 year, enter any Tax Credits from the Cost of Service Tax Calculation (Positive #) | L15: 750 | T15: 11200000 | U15: =U14+0.13% -> 0.1123 | V15: =U15-U14 -> 0.0013
T16: 11300000 | U16: =U15+0.13% -> 0.1136 | V16: =U16-U15 -> 0.0013
T17: 11400000 | U17: 0.1149 | V17: 0.0013
A18: 1. Tax Related Amounts Forecast from Capital Tax Rate Changes | L18: ='1. Information Sheet'!F32 -> 2012 | N18: 2015 | T18: 11500000 | U18: 0.1162 | V18: 0.0013
A19: Taxable Capital (if you are not claiming capital tax, please enter your Board-Approved Rate Base) | L19: 2799500 | N19: =L19 -> 2799500 | T19: 11600000 | U19: =U18+0.12% -> 0.1174 | V19: 0.0012
T20: 11700000 | U20: =U19+0.12% -> 0.1186 | V20: 0.0012
A21: Deduction from taxable capital up to $15,000,000 | N21: =L21 -> 0 | T21: 11800000 | U21: 0.1198 | V21: 0.0012
T22: 11900000 | U22: 0.121 | V22: 0.0012
A23: Net Taxable Capital | L23: =L19-L21 -> 2799500 | N23: =N19-N21 -> 2799500 | T23: 12000000 | U23: =U22+0.112% -> 0.12212 | V23: 0.00112
T24: 12100000 | U24: =U23+0.112% -> 0.12324 | V24: 0.00112
A25: Rate | L25: 0 | N25: 0 | T25: 12200000 | U25: 0.12436 | V25: 0.00112
T26: 12300000 | U26: 0.12548 | V26: 0.00112
A27: Ontario Capital Tax (Deductible, not grossed-up) | L27: =IF(L23>0, L23*L25, 0)*181/365 -> 0 | N27: 0 | T27: 12400000 | U27: 0.1266 | V27: 0.00112
T28: 12500000 | U28: 0.12772 | V28: 0.00112
A29: 2. Tax Related Amounts Forecast from lncome Tax Rate Changes | T29: 12600000 | U29: =U28+0.102% -> 0.12874 | V29: 0.00102
A30: Regulatory Taxable Income | L30: 50684 | N30: =L30 -> 50684 | T30: 12700000 | U30: =U29+0.102% -> 0.12976 | V30: 0.00102
T31: 12800000 | U31: 0.13078 | V31: 0.00102
A32: Corporate Tax Rate | L32: 0.155 | N32: =IF(N30=0,0,IF(N30<=500000,4.5%+11%,IF(N30>500000,(11.5%*N30-35000)/N30+VLOOKUP(N19,T:U,2,TRUE),""))) -> 0.155 | T32: 12900000 | U32: 0.1318 | V32: 0.00102
T33: 13000000 | U33: 0.13282 | V33: 0.00102
A34: Tax Impact | N34: =N30*N32-L15 -> 7106.02 | T34: 13100000 | U34: =U33+0.096% -> 0.13378 | V34: 0.00096
T35: 13200000 | U35: =U34+0.096% -> 0.13474 | V35: 0.00096
A36: Grossed-up Tax Amount | L36: 7856 | N36: =N34/(1-N32) -> 8409.491124 | T36: 13300000 | U36: 0.1357 | V36: 0.00096
T37: 13400000 | U37: 0.13666 | V37: 0.00096
A38: Tax Related Amounts Forecast from Capital Tax Rate Changes | L38: =L27 -> 0 | N38: =N27 -> 0 | T38: 13500000 | U38: 0.13762 | V38: 0.00096
T39: 13600000 | U39: =U38+0.088% -> 0.1385 | V39: 0.00088
A40: Tax Related Amounts Forecast from lncome Tax Rate Changes | L40: =L36 -> 7856 | N40: =N36 -> 8409.491124 | T40: 13700000 | U40: =U39+0.088% -> 0.13938 | V40: 0.00088
T41: 13800000 | U41: 0.14026 | V41: 0.00088
A42: Total Tax Related Amounts | L42: =SUM(L40,L38) -> 7856 | N42: =SUM(N40,N38) -> 8409.491124 | T42: 13900000 | U42: 0.14114 | V42: 0.00088
T43: 14000000 | U43: 0.14202 | V43: 0.00088
A44: Incremental Tax Savings | N44: =N42-L42 -> 553.4911243 | T44: 14100000 | U44: =U43+0.082% -> 0.14284 | V44: 0.00082
T45: 14200000 | U45: =U44+0.082% -> 0.14366 | V45: 0.00082
A46: Sharing of Tax Savings (50%) | N46: =0.5*N44 -> 276.7455621 | T46: 14300000 | U46: 0.14448 | V46: 0.00082
T47: 14400000 | U47: 0.1453 | V47: 0.00082
T48: 14500000 | U48: 0.14612 | V48: 0.00082
T49: 14600000 | U49: =U48+0.076% -> 0.14688 | V49: 0.00076
T50: 14700000 | U50: =U49+0.076% -> 0.14764 | V50: 0.00076
T51: 14800000 | U51: 0.1484 | V51: 0.00076
T52: 14900000 | U52: 0.14916 | V52: 0.00076
T53: 15000000 | U53: 0.15 | V53: 0.00084

Sheet 12. STS - Tax Change Rate Rider
A11: This worksheet calculates a tax change volumetric rate rider. If the rate riders are material (round to 4 decimal places), then the outputs in columns M and O will appear on Sheet 27 - Final Tariff Schedule.
A15: Rate Class | C15: Total Revenue $ by Rate Class | E15: Total Revenue % by Rate Class | G15: Allocation of Tax Savings by Rate Class | I15: Billed kWh | K15: Billed kW | M15: Distribution Volumetric Rate kWh Rate Rider | O15: Distribution Volumetric Rate kW Rate Rider
A17: RESIDENTIAL | C17: 729735.6014 | E17: =C17/C22 -> 0.6454887022 | G17: =E17*G22 -> 178.6389983 | I17: 11113021 | K17: 0 | M17: =ROUND(G17/I17,4) -> 0
A18: GENERAL SERVICE LESS THAN 50 KW | C18: 208877.4 | E18: =C18/C22 -> 0.1847628122 | G18: =E18*G22 -> 51.13310826 | I18: 6246087 | K18: 13872 | O18: =ROUND(G18/K18,4) -> 0.0037
A19: GENERAL SERVICE 50 TO 4,999 KW | C19: 101454.0568 | E19: =C19/C22 -> 0.08974133553 | G19: =E19*G22 -> 24.83591461 | I19: 5218563 | K19: 1316 | O19: =ROUND(G19/K19,4) -> 0.0189
A20: STREET LIGHTING | C20: 90449.4 | E20: =C20/C22 -> 0.08000715013 | G20: =E20*G22 -> 22.1419788 | I20: 466493 | K20: 0 | M20: =ROUND(G20/I20,4) -> 0
A21: microFIT | C21: 0 | E21: =C21/C22 -> 0 | G21: =E21*G22 -> 0
A22: Total | C22: =SUM(C17:C21) -> 1130516.458 | E22: =SUM(E17:E21) -> 1 | G22: 276.75 | I22: =SUM(I17:I21) -> 23044164 | K22: =SUM(K17:K21) -> 15188
A24: One or more rate classes appear to have negligible rate riders in columns M and/or O. As per Appendix B of the Filing Requirements, please provide details of the Applicant's proposal in the Manager's Summary.

Sheet 13. RTSR Rate Sheet
A13: No input required. This sheet consolidates all Current Retail Transmission Rates entered on Sheet 4.
A15: Rate Class | B15: Rate Description | C15: Unit | D15: RTSR-Network | E15: RTSR-Connection
A17: RESIDENTIAL | B17: Retail Transmission Rate - Network Service Rate | C17: $/kWh | D17: 0.0064
A18: RESIDENTIAL | B18: Retail Transmission Rate - Transformation Connection Service Rate | C18: $/kWh | E18: 0.0038
A19: GENERAL SERVICE LESS THAN 50 KW | B19: Retail Transmission Rate - Network Service Rate | C19: $/kWh | D19: 0.0057
A20: GENERAL SERVICE LESS THAN 50 KW | B20: Retail Transmission Rate - Transformation Connection Service Rate | C20: $/kWh | E20: 0.0033
A21: GENERAL SERVICE 50 TO 4,999 KW | B21: Retail Transmission Rate - Network Service Rate | C21: $/kW | D21: 2.3157
A22: GENERAL SERVICE 50 TO 4,999 KW | B22: Retail Transmission Rate - Line and Transformation Connection Service Rate | C22: $/kW | E22: 1.3121
A23: GENERAL SERVICE 50 TO 4,999 KW | B23: Retail Transmission Rate - Network Service Rate - Interval Metered | C23: $/kW | D23: 2.4567
A24: GENERAL SERVICE 50 TO 4,999 KW | B24: Retail Transmission Rate - Line and Transformation Connection Service Rate - Interval Metered | C24: $/kW | E24: 1.4501
A25: STREET LIGHTING | B25: Retail Transmission Rate - Network Service Rate | C25: $/kW | D25: 1.7465
A26: STREET LIGHTING | B26: Retail Transmission Rate - Line and Transformation Connection Service Rate | C26: $/kW | E26: 1.0142

Sheet 14. RTSR RRR Data
A12: In the green shaded cells, enter the most recent reported RRR billing determinants. Please ensure that billing determinants are non-loss adjusted.
A14: Rate Class | B14: Rate Description | C14: Unit | D14: Non-Loss Adjusted Metered kWh | E14: Non-Loss Adjusted Metered kW | F14: Applicable Loss Factor | H14: Load Factor | I14: Loss Adjusted Billed kWh | J14: Billed kW
A15: RESIDENTIAL | B15: Retail Transmission Rate - Network Service Rate | C15: $/kWh | D15: 9693709 | E15: 0 | F15: 1.0778 | H15: =IF(C15="$/kW", D15/(E15* 30.4 * 24), "" ) ->  | I15: =IF(OR(F15=0, OR(ISBLANK(F15), TRIM(F15)="")), F15, F15 * D15) -> 10447879.56 | J15: =IF(OR(F15=0, OR(ISBLANK(F15), TRIM(F15)="")), E15, E15) -> 0
A16: RESIDENTIAL | B16: Retail Transmission Rate - Transformation Connection Service Rate | C16: $/kWh | D16: 9693709 | E16: 0 | F16: 1.0778 | H16: =IF(C16="$/kW", D16/(E16* 30.4 * 24), "" ) ->  | I16: 10447879.56 | J16: 0
A17: GENERAL SERVICE LESS THAN 50 KW | B17: Retail Transmission Rate - Network Service Rate | C17: $/kWh | D17: 5184540.9 | E17: 0 | F17: 1.0778 | H17: =IF(C17="$/kW", D17/(E17* 30.4 * 24), "" ) ->  | I17: 5587898.182 | J17: 0
A18: GENERAL SERVICE LESS THAN 50 KW | B18: Retail Transmission Rate - Transformation Connection Service Rate | C18: $/kWh | D18: 5184540.9 | E18: 0 | F18: 1.0778 | H18: =IF(C18="$/kW", D18/(E18* 30.4 * 24), "" ) ->  | I18: 5587898.182 | J18: 0
A19: GENERAL SERVICE 50 TO 4,999 KW | B19: Retail Transmission Rate - Network Service Rate | C19: $/kW | D19: 6284989.9 | E19: 19319 | F19: 0 | H19: 0 | I19: 0 | J19: 19319
A20: GENERAL SERVICE 50 TO 4,999 KW | B20: Retail Transmission Rate - Line and Transformation Connection Service Rate | C20: $/kW | D20: 6284989.9 | E20: 19319 | F20: 0 | H20: 0 | I20: 0 | J20: 19319
A21: GENERAL SERVICE 50 TO 4,999 KW | B21: Retail Transmission Rate - Network Service Rate - Interval Metered | C21: $/kW | D21: 696391.9 | E21: 23650 | F21: 0 | H21: 0 | I21: 0 | J21: 23650
A22: GENERAL SERVICE 50 TO 4,999 KW | B22: Retail Transmission Rate - Line and Transformation Connection Service Rate - Interval Metered | C22: $/kW | D22: 696391.9 | E22: 2360.19 | F22: 0 | H22: 0 | I22: 0 | J22: 2360.19
A23: STREET LIGHTING | B23: Retail Transmission Rate - Network Service Rate | C23: $/kW | D23: 46723.6 | E23: 1450 | F23: 0 | H23: 0 | I23: 0 | J23: 1450
A24: STREET LIGHTING | B24: Retail Transmission Rate - Line and Transformation Connection Service Rate | C24: $/kW | D24: 46723.6 | E24: 1450 | F24: 0 | H24: 0 | I24: 0 | J24: 1450

Sheet 14. RTSR RRR Data Copy (hidden)
A12: In the green shaded cells, enter the most recent reported RRR billing determinants. Please ensure that billing determinants are non-loss adjusted.
A14: Rate Class | B14: Rate Description | C14: Unit | D14: Non-Loss Adjusted Metered kWh | E14: Non-Loss Adjusted Metered kW | F14: Applicable Loss Factor | H14: Load Factor | I14: Loss Adjusted Billed kWh | J14: Billed kW
A15: RESIDENTIAL | B15: Retail Transmission Rate - Network Service Rate | C15: $/kWh | D15: 9693709 | E15: 0 | F15: 1.0778
A16: RESIDENTIAL | B16: Retail Transmission Rate - Transformation Connection Service Rate | C16: $/kWh | D16: 9693709 | E16: 0 | F16: 1.0778
A17: GENERAL SERVICE LESS THAN 50 KW | B17: Retail Transmission Rate - Network Service Rate | C17: $/kWh | D17: 5184540.9 | E17: 0 | F17: 1.0778
A18: GENERAL SERVICE LESS THAN 50 KW | B18: Retail Transmission Rate - Transformation Connection Service Rate | C18: $/kWh | D18: 5184540.9 | E18: 0 | F18: 1.0778
A19: GENERAL SERVICE 50 TO 4,999 KW | B19: Retail Transmission Rate - Network Service Rate | C19: $/kW | D19: 6284989.9 | E19: 19319 | F19: 0
A20: GENERAL SERVICE 50 TO 4,999 KW | B20: Retail Transmission Rate - Line and Transformation Connection Service Rate | C20: $/kW | D20: 6284989.9 | E20: 19319 | F20: 0
A21: GENERAL SERVICE 50 TO 4,999 KW | B21: Retail Transmission Rate - Network Service Rate - Interval Metered | C21: $/kW | D21: 696391.9 | E21: 23650 | F21: 0
A22: GENERAL SERVICE 50 TO 4,999 KW | B22: Retail Transmission Rate - Line and Transformation Connection Service Rate - Interval Metered | C22: $/kW | D22: 696391.9 | E22: 2360.19 | F22: 0
A23: STREET LIGHTING | B23: Retail Transmission Rate - Network Service Rate | C23: $/kW | D23: 46723.6 | E23: 1450 | F23: 0
A24: STREET LIGHTING | B24: Retail Transmission Rate - Line and Transformation Connection Service Rate | C24: $/kW | D24: 46723.6 | E24: 1450 | F24: 0

Sheet 15. RTSR - UTRs & Sub-Tx
B18: Uniform Transmission Rates | C18: Unit | E18: Effective January 1, 2013 | G18: Effective January 1, 2014 | I18: Effective January 1, 2015
B20: Rate Description | E20: Rate | G20: Rate | I20: Rate
B22: Network Service Rate | C22: kW | E22: 3.63 | G22: 3.82 | I22: 3.82
B24: Line Connection Service Rate | C24: kW | E24: 0.75 | G24: 0.82 | I24: 0.82
B26: Transformation Connection Service Rate | C26: kW | E26: 1.85 | G26: 1.98 | I26: 1.98
B29: Hydro One Sub-Transmission Rates | C29: Unit | E29: Effective January 1, 2013 | G29: Effective January 1, 2014 | I29: Effective January 1, 2015
B33: Rate Description | E33: Rate | G33: Rate | I33: Rate
B35: Network Service Rate | C35: kW | E35: 3.18 | G35: 3.23 | I35: =+G35 -> 3.23
B37: Line Connection Service Rate | C37: kW | E37: 0.7 | G37: 0.65 | I37: =+G37 -> 0.65
B39: Transformation Connection Service Rate | C39: kW | E39: 1.63 | G39: 1.62 | I39: =+G39 -> 1.62
B41: Both Line and Transformation Connection Service Rate | C41: kW | E41: =E39+E37 -> 2.33 | G41: =G39+G37 -> 2.27 | I41: =I39+I37 -> 2.27
B44: If needed , add extra host here (I) | C44: Unit | E44: Effective January 1, 2013 | G44: Effective January 1, 2014 | I44: Effective January 1, 2015
B48: Rate Description | E48: Rate | G48: Rate | I48: Rate
B50: Network Service Rate | C50: kW
B52: Line Connection Service Rate | C52: kW
B54: Transformation Connection Service Rate | C54: kW
B56: Both Line and Transformation Connection Service Rate | C56: kW | E56: =E54+E52 -> 0 | G56: =G54+G52 -> 0 | I56: =I54+I52 -> 0
B59: If needed , add extra host here (II) | C59: Unit | E59: Effective January 1, 2013 | G59: Effective January 1, 2014 | I59: Effective January 1, 2015
B63: Rate Description | E63: Rate | G63: Rate | I63: Rate
B65: Network Service Rate | C65: kW
B67: Line Connection Service Rate | C67: kW
B69: Transformation Connection Service Rate | C69: kW
B71: Both Line and Transformation Connection Service Rate | C71: kW | E71: =E69+E67 -> 0 | G71: =G69+G67 -> 0 | I71: =I69+I67 -> 0
B75: Hydro One Sub-Transmission Rate Rider 9A | C75: Unit | E75: Effective January 1, 2013 | G75: Effective January 1, 2014 | I75: Effective January 1, 2015
B77: Rate Description | E77: Rate | G77: Rate | I77: Rate
B79: RSVA Transmission network – 4714 – which affects 1584 | C79: kW | E79: 0 | G79: 0.1465 | I79: 0.1465
B81: RSVA Transmission connection – 4716 – which affects 1586 | C81: kW | E81: 0 | G81: 0.0667 | I81: 0.0667
B83: RSVA LV – 4750 – which affects 1550 | C83: kW | E83: 0 | G83: 0.0475 | I83: 0.0475
B85: RARA 1 – 2252 – which affects 1590 | C85: kW | E85: 0 | G85: 0.0419 | I85: 0.0419
B87: RARA 1 – 2252 – which affects 1590 (2008) | C87: kW | E87: 0 | G87: -0.027 | I87: -0.027
B89: RARA 1 – 2252 – which affects 1590 (2009) | C89: kW | E89: 0 | G89: -0.0006 | I89: -0.0006
B91: Hydro One Sub-Transmission Rate Rider 9A | C91: kW | E91: =SUM(E79:E89) -> 0 | G91: =SUM(G79:G89) -> 0.275 | I91: =SUM(I79:I89) -> 0.275
E94: Historical 2013 | G94: Current 2014 | I94: Forecast 2015
B95: Low Voltage Switchgear Credit (if applicable, enter as a negative value) | C95: $

Sheet 16. RTSR - Historical Wholesale
B13: In the green shaded cells, enter billing detail for wholesale transmission for the same reporting period as the billing determinants on Sheet "14. RTSR RRR Data". For Hydro One Sub-transmission Rates, if you are charged a combined Line and Transformer connection rate, please ensure that both the line connection and transformer connection columns are completed.
B16: IESO | D16: Network | H16: Line Connection | L16: Transformation Connection | P16: Total Line
B17: Month | D17: Units Billed | E17: Rate | F17: Amount | H17: Units Billed | I17: Rate | J17: Amount | L17: Units Billed | M17: Rate | N17: Amount | P17: Amount
B19: January | D19: 3903.39 | E19: =IF(D19<>0,F19/D19,0) -> 3.630006225 | F19: 14169.33 | I19: =IF(H19<>0,J19/H19,0) -> 0 | L19: 4041.62 | M19: =IF(L19<>0,N19/L19,0) -> 1.850050227 | N19: 7477.2 | P19: =J19+N19 -> 7477.2
B20: February | D20: 4401 | E20: 3.63 | F20: 15975.63 | I20: 0 | L20: 4478.91 | M20: 1.850037174 | N20: 8286.15 | P20: 8286.15
B21: March | D21: 4123.96 | E21: 3.630035209 | F21: 14970.12 | I21: 0 | L21: 4263.24 | M21: 1.849895854 | N21: 7886.55 | P21: 7886.55
B22: April | D22: 3504.68 | E22: 3.62992627 | F22: =12715.89+5.84 -> 12721.73 | I22: 0 | L22: 3596.21 | M22: 1.850086619 | N22: =6648.9+4.4 -> 6653.3 | P22: 6653.3
B23: May | D23: 3015.97 | E23: 3.630036108 | F23: 10948.08 | I23: 0 | L23: 3388.1 | M23: 1.849945397 | N23: 6267.8 | P23: 6267.8
B24: June | D24: 3017.9 | E24: 3.630120282 | F24: 10955.34 | I24: 0 | L24: 3550.27 | M24: 1.849859306 | N24: 6567.5 | P24: 6567.5
B25: July | D25: 2934.98 | E25: 3.630024736 | F25: 10654.05 | I25: 0 | L25: 3452.97 | M25: 1.850016073 | N25: 6388.05 | P25: 6388.05
B26: August | D26: 3485.95 | E26: 3.630052066 | F26: 12654.18 | I26: 0 | L26: 3802.16 | M26: 1.84992215 | N26: 7033.7 | P26: 7033.7
B27: September | D27: 3431.12 | E27: 3.629873044 | F27: 12454.53 | I27: 0 | L27: 4035.21 | M27: 1.850362187 | N27: 7466.6 | P27: 7466.6
B28: October | D28: 2509.09 | E28: 3.629869793 | F28: 9107.67 | I28: 0 | L28: 3057.83 | M28: 1.850102851 | N28: 5657.3 | P28: 5657.3
B29: November | D29: 3871.07 | E29: 3.629934359 | F29: 14051.73 | I29: 0 | L29: 3870.81 | M29: 1.850090808 | N29: 7161.35 | P29: 7161.35
B30: December | D30: 3646 | E30: 3.63 | F30: 13234.98 | I30: 0 | L30: 3978.91 | M30: 1.850041846 | N30: 7361.15 | P30: 7361.15
B32: Total | D32: =SUM(D19:D30) -> 41845.11 | E32: =IF(D32<>0,F32/D32,0) -> 3.629990936 | F32: =SUM(F19:F30) -> 151897.37 | H32: =SUM(H19:H30) -> 0 | I32: =IF(H32<>0,J32/H32,0) -> 0 | J32: =SUM(J19:J30) -> 0 | L32: =SUM(L19:L30) -> 45516.24 | M32: =IF(L32<>0,N32/L32,0) -> 1.850035284 | N32: =SUM(N19:N30) -> 84206.65 | P32: =SUM(P19:P30) -> 84206.65
B34: Hydro One | D34: Network | H34: Line Connection | L34: Transformation Connection | P34: Total Line
B36: Month | D36: Units Billed | E36: Rate | F36: Amount | H36: Units Billed | I36: Rate | J36: Amount | L36: Units Billed | M36: Rate | N36: Amount | P36: Amount
B38: January | E38: =IF(D38<>0,F38/D38,0) -> 0 | I38: =IF(H38<>0,J38/H38,0) -> 0 | M38: =IF(L38<>0,N38/L38,0) -> 0 | P38: =J38+N38 -> 0
B39: February | E39: 0 | I39: 0 | M39: 0 | P39: 0
B40: March | E40: 0 | I40: 0 | M40: 0 | P40: 0
B41: April | E41: 0 | I41: 0 | M41: 0 | P41: 0
B42: May | E42: 0 | I42: 0 | M42: 0 | P42: 0
B43: June | E43: 0 | I43: 0 | M43: 0 | P43: 0
B44: July | E44: 0 | I44: 0 | M44: 0 | P44: 0
B45: August | E45: 0 | I45: 0 | M45: 0 | P45: 0
B46: September | E46: 0 | I46: 0 | M46: 0 | P46: 0
B47: October | E47: 0 | I47: 0 | M47: 0 | P47: 0
B48: November | E48: 0 | I48: 0 | M48: 0 | P48: 0
B49: December | E49: 0 | I49: 0 | M49: 0 | P49: 0
B51: Total | D51: =SUM(D38:D49) -> 0 | E51: =IF(D51<>0,F51/D51,0) -> 0 | F51: =SUM(F38:F49) -> 0 | H51: =SUM(H38:H49) -> 0 | I51: =IF(H51<>0,J51/H51,0) -> 0 | J51: =SUM(J38:J49) -> 0 | L51: =SUM(L38:L49) -> 0 | M51: =IF(L51<>0,N51/L51,0) -> 0 | N51: =SUM(N38:N49) -> 0 | P51: =SUM(P38:P49) -> 0
B53: Add Extra Host Here (I) | D53: Network | H53: Line Connection | L53: Transformation Connection | P53: Total Line
B54: (if needed)
B55: Month | D55: Units Billed | E55: Rate | F55: Amount | H55: Units Billed | I55: Rate | J55: Amount | L55: Units Billed | M55: Rate | N55: Amount | P55: Amount
B57: January | E57: =IF(D57<>0,F57/D57,0) -> 0 | I57: =IF(H57<>0,J57/H57,0) -> 0 | M57: =IF(L57<>0,N57/L57,0) -> 0 | P57: =J57+N57 -> 0
B58: February | E58: 0 | I58: 0 | M58: 0 | P58: 0
B59: March | E59: 0 | I59: 0 | M59: 0 | P59: 0
B60: April | E60: 0 | I60: 0 | M60: 0 | P60: 0
B61: May | E61: 0 | I61: 0 | M61: 0 | P61: 0
B62: June | E62: 0 | I62: 0 | M62: 0 | P62: 0
B63: July | E63: 0 | I63: 0 | M63: 0 | P63: 0
B64: August | E64: 0 | I64: 0 | M64: 0 | P64: 0
B65: September | E65: 0 | I65: 0 | M65: 0 | P65: 0
B66: October | E66: 0 | I66: 0 | M66: 0 | P66: 0
B67: November | E67: 0 | I67: 0 | M67: 0 | P67: 0
B68: December | E68: 0 | I68: 0 | M68: 0 | P68: 0
B70: Total | D70: =SUM(D57:D68) -> 0 | E70: =IF(D70<>0,F70/D70,0) -> 0 | F70: =SUM(F57:F68) -> 0 | H70: =SUM(H57:H68) -> 0 | I70: =IF(H70<>0,J70/H70,0) -> 0 | J70: =SUM(J57:J68) -> 0 | L70: =SUM(L57:L68) -> 0 | M70: =IF(L70<>0,N70/L70,0) -> 0 | N70: =SUM(N57:N68) -> 0 | P70: =SUM(P57:P68) -> 0
B72: Add Extra Host Here (II) | D72: Network | H72: Line Connection | L72: Transformation Connection | P72: Total Line
B73: (if needed)
B74: Month | D74: Units Billed | E74: Rate | F74: Amount | H74: Units Billed | I74: Rate | J74: Amount | L74: Units Billed | M74: Rate | N74: Amount | P74: Amount
B76: January | E76: =IF(D76<>0,F76/D76,0) -> 0 | I76: =IF(H76<>0,J76/H76,0) -> 0 | M76: =IF(L76<>0,N76/L76,0) -> 0 | P76: =J76+N76 -> 0
B77: February | E77: 0 | I77: 0 | M77: 0 | P77: 0
B78: March | E78: 0 | I78: 0 | M78: 0 | P78: 0
B79: April | E79: 0 | I79: 0 | M79: 0 | P79: 0
B80: May | E80: 0 | I80: 0 | M80: 0 | P80: 0
B81: June | E81: 0 | I81: 0 | M81: 0 | P81: 0
B82: July | E82: 0 | I82: 0 | M82: 0 | P82: 0
B83: August | E83: 0 | I83: 0 | M83: 0 | P83: 0
B84: September | E84: 0 | I84: 0 | M84: 0 | P84: 0
B85: October | E85: 0 | I85: 0 | M85: 0 | P85: 0
B86: November | E86: 0 | I86: 0 | M86: 0 | P86: 0
B87: December | E87: 0 | I87: 0 | M87: 0 | P87: 0
B89: Total | D89: =SUM(D76:D87) -> 0 | E89: =IF(D89<>0,F89/D89,0) -> 0 | F89: =SUM(F76:F87) -> 0 | H89: =SUM(H76:H87) -> 0 | I89: =IF(H89<>0,J89/H89,0) -> 0 | J89: =SUM(J76:J87) -> 0 | L89: =SUM(L76:L87) -> 0 | M89: =IF(L89<>0,N89/L89,0) -> 0 | N89: =SUM(N76:N87) -> 0 | P89: =SUM(P76:P87) -> 0
B91: Total | D91: Network | H91: Line Connection | L91: Transformation Connection | P91: Total Line
B93: Month | D93: Units Billed | E93: Rate | F93: Amount | H93: Units Billed | I93: Rate | J93: Amount | L93: Units Billed | M93: Rate | N93: Amount | P93: Amount
B95: January | D95: =D19+D38+D57+D76 -> 3903.39 | E95: =IF(D95<>0,F95/D95,0) -> 3.630006225 | F95: =F19+F38+F57+F76 -> 14169.33 | H95: =H19+H38+H57+H76 -> 0 | I95: =IF(H95<>0,J95/H95,0) -> 0 | J95: =J19+J38+J57+J76 -> 0 | L95: =L19+L38+L57+L76 -> 4041.62 | M95: =IF(L95<>0,N95/L95,0) -> 1.850050227 | N95: =N19+N38+N57+N76 -> 7477.2 | P95: =J95+N95 -> 7477.2
B96: February | D96: =D20+D39+D58+D77 -> 4401 | E96: 3.63 | F96: =F20+F39+F58+F77 -> 15975.63 | H96: =H20+H39+H58+H77 -> 0 | I96: 0 | J96: =J20+J39+J58+J77 -> 0 | L96: =L20+L39+L58+L77 -> 4478.91 | M96: 1.850037174 | N96: =N20+N39+N58+N77 -> 8286.15 | P96: 8286.15
B97: March | D97: 4123.96 | E97: 3.630035209 | F97: 14970.12 | H97: 0 | I97: 0 | J97: 0 | L97: 4263.24 | M97: 1.849895854 | N97: 7886.55 | P97: 7886.55
B98: April | D98: 3504.68 | E98: 3.62992627 | F98: 12721.73 | H98: 0 | I98: 0 | J98: 0 | L98: 3596.21 | M98: 1.850086619 | N98: 6653.3 | P98: 6653.3
B99: May | D99: 3015.97 | E99: 3.630036108 | F99: 10948.08 | H99: 0 | I99: 0 | J99: 0 | L99: 3388.1 | M99: 1.849945397 | N99: 6267.8 | P99: 6267.8
B100: June | D100: 3017.9 | E100: 3.630120282 | F100: 10955.34 | H100: 0 | I100: 0 | J100: 0 | L100: 3550.27 | M100: 1.849859306 | N100: 6567.5 | P100: 6567.5
B101: July | D101: 2934.98 | E101: 3.630024736 | F101: 10654.05 | H101: 0 | I101: 0 | J101: 0 | L101: 3452.97 | M101: 1.850016073 | N101: 6388.05 | P101: 6388.05
B102: August | D102: 3485.95 | E102: 3.630052066 | F102: 12654.18 | H102: 0 | I102: 0 | J102: 0 | L102: 3802.16 | M102: 1.84992215 | N102: 7033.7 | P102: 7033.7
B103: September | D103: 3431.12 | E103: 3.629873044 | F103: 12454.53 | H103: 0 | I103: 0 | J103: 0 | L103: 4035.21 | M103: 1.850362187 | N103: 7466.6 | P103: 7466.6
B104: October | D104: 2509.09 | E104: 3.629869793 | F104: 9107.67 | H104: 0 | I104: 0 | J104: 0 | L104: 3057.83 | M104: 1.850102851 | N104: 5657.3 | P104: 5657.3
B105: November | D105: 3871.07 | E105: 3.629934359 | F105: 14051.73 | H105: 0 | I105: 0 | J105: 0 | L105: 3870.81 | M105: 1.850090808 | N105: 7161.35 | P105: 7161.35
B106: December | D106: 3646 | E106: 3.63 | F106: 13234.98 | H106: 0 | I106: 0 | J106: 0 | L106: 3978.91 | M106: 1.850041846 | N106: 7361.15 | P106: 7361.15
B108: Total | D108: =SUM(D95:D106) -> 41845.11 | E108: =IF(D108<>0,F108/D108,0) -> 3.629990936 | F108: =SUM(F95:F106) -> 151897.37 | H108: =SUM(H95:H106) -> 0 | I108: =IF(H108<>0,J108/H108,0) -> 0 | J108: =SUM(J95:J106) -> 0 | L108: =SUM(L95:L106) -> 45516.24 | M108: =IF(L108<>0,N108/L108,0) -> 1.850035284 | N108: =SUM(N95:N106) -> 84206.65 | P108: =SUM(P95:P106) -> 84206.65
N110: Transformer Allowance Credit (if applicable) | P110: ='15. RTSR - UTRs & Sub-Tx'!E95 -> 0
N112: Total including deduction for Transformer Allowance Credit | P112: =P108+P110 -> 84206.65

Sheet 17. RTSR - Current Wholesale
B13: The purpose of this sheet is to calculate the expected billing when current 2014 Uniform Transmission Rates are applied against historical 2013 transmission units.
B16: IESO | D16: Network | H16: Line Connection | L16: Transformation Connection | P16: Total Line
B18: Month | D18: Units Billed | E18: Rate | F18: Amount | H18: Units Billed | I18: Rate | J18: Amount | L18: Units Billed | M18: Rate | N18: Amount | P18: Amount
B20: January | D20: ='16. RTSR - Historical Wholesale'!D19 -> 3903.39 | E20: ='15. RTSR - UTRs & Sub-Tx'!G22 -> 3.82 | F20: =D20*E20 -> 14910.9498 | H20: ='16. RTSR - Historical Wholesale'!H19 -> 0 | I20: ='15. RTSR - UTRs & Sub-Tx'!G24 -> 0.82 | J20: =H20*I20 -> 0 | L20: ='16. RTSR - Historical Wholesale'!L19 -> 4041.62 | M20: ='15. RTSR - UTRs & Sub-Tx'!G26 -> 1.98 | N20: =L20*M20 -> 8002.4076 | P20: =J20+N20 -> 8002.4076
B21: February | D21: ='16. RTSR - Historical Wholesale'!D20 -> 4401 | E21: =E20 -> 3.82 | F21: =D21*E21 -> 16811.82 | H21: ='16. RTSR - Historical Wholesale'!H20 -> 0 | I21: =I20 -> 0.82 | J21: =H21*I21 -> 0 | L21: ='16. RTSR - Historical Wholesale'!L20 -> 4478.91 | M21: =M20 -> 1.98 | N21: =L21*M21 -> 8868.2418 | P21: 8868.2418
B22: March | D22: ='16. RTSR - Historical Wholesale'!D21 -> 4123.96 | E22: =E21 -> 3.82 | F22: 15753.5272 | H22: ='16. RTSR - Historical Wholesale'!H21 -> 0 | I22: =I21 -> 0.82 | J22: 0 | L22: ='16. RTSR - Historical Wholesale'!L21 -> 4263.24 | M22: =M21 -> 1.98 | N22: 8441.2152 | P22: 8441.2152
B23: April | D23: ='16. RTSR - Historical Wholesale'!D22 -> 3504.68 | E23: 3.82 | F23: 13387.8776 | H23: ='16. RTSR - Historical Wholesale'!H22 -> 0 | I23: 0.82 | J23: 0 | L23: ='16. RTSR - Historical Wholesale'!L22 -> 3596.21 | M23: 1.98 | N23: 7120.4958 | P23: 7120.4958
B24: May | D24: ='16. RTSR - Historical Wholesale'!D23 -> 3015.97 | E24: 3.82 | F24: 11521.0054 | H24: ='16. RTSR - Historical Wholesale'!H23 -> 0 | I24: 0.82 | J24: 0 | L24: ='16. RTSR - Historical Wholesale'!L23 -> 3388.1 | M24: 1.98 | N24: 6708.438 | P24: 6708.438
B25: June | D25: ='16. RTSR - Historical Wholesale'!D24 -> 3017.9 | E25: 3.82 | F25: 11528.378 | H25: ='16. RTSR - Historical Wholesale'!H24 -> 0 | I25: 0.82 | J25: 0 | L25: ='16. RTSR - Historical Wholesale'!L24 -> 3550.27 | M25: 1.98 | N25: 7029.5346 | P25: 7029.5346
B26: July | D26: ='16. RTSR - Historical Wholesale'!D25 -> 2934.98 | E26: 3.82 | F26: 11211.6236 | H26: ='16. RTSR - Historical Wholesale'!H25 -> 0 | I26: 0.82 | J26: 0 | L26: ='16. RTSR - Historical Wholesale'!L25 -> 3452.97 | M26: 1.98 | N26: 6836.8806 | P26: 6836.8806
B27: August | D27: ='16. RTSR - Historical Wholesale'!D26 -> 3485.95 | E27: 3.82 | F27: 13316.329 | H27: ='16. RTSR - Historical Wholesale'!H26 -> 0 | I27: 0.82 | J27: 0 | L27: ='16. RTSR - Historical Wholesale'!L26 -> 3802.16 | M27: 1.98 | N27: 7528.2768 | P27: 7528.2768
B28: September | D28: ='16. RTSR - Historical Wholesale'!D27 -> 3431.12 | E28: 3.82 | F28: 13106.8784 | H28: ='16. RTSR - Historical Wholesale'!H27 -> 0 | I28: 0.82 | J28: 0 | L28: ='16. RTSR - Historical Wholesale'!L27 -> 4035.21 | M28: 1.98 | N28: 7989.7158 | P28: 7989.7158
B29: October | D29: ='16. RTSR - Historical Wholesale'!D28 -> 2509.09 | E29: 3.82 | F29: 9584.7238 | H29: ='16. RTSR - Historical Wholesale'!H28 -> 0 | I29: 0.82 | J29: 0 | L29: ='16. RTSR - Historical Wholesale'!L28 -> 3057.83 | M29: 1.98 | N29: 6054.5034 | P29: 6054.5034
B30: November | D30: ='16. RTSR - Historical Wholesale'!D29 -> 3871.07 | E30: 3.82 | F30: 14787.4874 | H30: ='16. RTSR - Historical Wholesale'!H29 -> 0 | I30: 0.82 | J30: 0 | L30: ='16. RTSR - Historical Wholesale'!L29 -> 3870.81 | M30: 1.98 | N30: 7664.2038 | P30: 7664.2038
B31: December | D31: ='16. RTSR - Historical Wholesale'!D30 -> 3646 | E31: 3.82 | F31: 13927.72 | H31: ='16. RTSR - Historical Wholesale'!H30 -> 0 | I31: 0.82 | J31: 0 | L31: ='16. RTSR - Historical Wholesale'!L30 -> 3978.91 | M31: 1.98 | N31: 7878.2418 | P31: 7878.2418
B33: Total | D33: =SUM(D20:D31) -> 41845.11 | E33: =IF(D33<>0,F33/D33,0) -> 3.82 | F33: =SUM(F20:F31) -> 159848.3202 | H33: =SUM(H20:H31) -> 0 | I33: =IF(H33<>0,J33/H33,0) -> 0 | J33: =SUM(J20:J31) -> 0 | L33: =SUM(L20:L31) -> 45516.24 | M33: =IF(L33<>0,N33/L33,0) -> 1.98 | N33: =SUM(N20:N31) -> 90122.1552 | P33: =SUM(P20:P31) -> 90122.1552
B35: Hydro One | D35: Network | H35: Line Connection | L35: Transformation Connection | P35: Total Line
B37: Month | D37: Units Billed | E37: Rate | F37: Amount | H37: Units Billed | I37: Rate | J37: Amount | L37: Units Billed | M37: Rate | N37: Amount | P37: Amount
B39: January | D39: ='16. RTSR - Historical Wholesale'!D38 -> 0 | E39: ='15. RTSR - UTRs & Sub-Tx'!G35+'15. RTSR - UTRs & Sub-Tx'!G79 -> 3.3765 | F39: =D39*E39 -> 0 | H39: ='16. RTSR - Historical Wholesale'!H38 -> 0 | I39: ='15. RTSR - UTRs & Sub-Tx'!G37+'15. RTSR - UTRs & Sub-Tx'!G81 -> 0.7167 | J39: =H39*I39 -> 0 | L39: ='16. RTSR - Historical Wholesale'!L38 -> 0 | M39: ='15. RTSR - UTRs & Sub-Tx'!G39 -> 1.62 | N39: =L39*M39 -> 0 | P39: =J39+N39 -> 0
B40: February | D40: ='16. RTSR - Historical Wholesale'!D39 -> 0 | E40: =E39 -> 3.3765 | F40: =D40*E40 -> 0 | H40: ='16. RTSR - Historical Wholesale'!H39 -> 0 | I40: =I39 -> 0.7167 | J40: =H40*I40 -> 0 | L40: ='16. RTSR - Historical Wholesale'!L39 -> 0 | M40: =M39 -> 1.62 | N40: =L40*M40 -> 0 | P40: 0
B41: March | D41: ='16. RTSR - Historical Wholesale'!D40 -> 0 | E41: =E40 -> 3.3765 | F41: 0 | H41: ='16. RTSR - Historical Wholesale'!H40 -> 0 | I41: =I40 -> 0.7167 | J41: 0 | L41: ='16. RTSR - Historical Wholesale'!L40 -> 0 | M41: =M40 -> 1.62 | N41: 0 | P41: 0
B42: April | D42: ='16. RTSR - Historical Wholesale'!D41 -> 0 | E42: 3.3765 | F42: 0 | H42: ='16. RTSR - Historical Wholesale'!H41 -> 0 | I42: 0.7167 | J42: 0 | L42: ='16. RTSR - Historical Wholesale'!L41 -> 0 | M42: =M41 -> 1.62 | N42: 0 | P42: 0
B43: May | D43: ='16. RTSR - Historical Wholesale'!D42 -> 0 | E43: 3.3765 | F43: 0 | H43: ='16. RTSR - Historical Wholesale'!H42 -> 0 | I43: 0.7167 | J43: 0 | L43: ='16. RTSR - Historical Wholesale'!L42 -> 0 | M43: 1.62 | N43: 0 | P43: 0
B44: June | D44: ='16. RTSR - Historical Wholesale'!D43 -> 0 | E44: 3.3765 | F44: 0 | H44: ='16. RTSR - Historical Wholesale'!H43 -> 0 | I44: 0.7167 | J44: 0 | L44: ='16. RTSR - Historical Wholesale'!L43 -> 0 | M44: 1.62 | N44: 0 | P44: 0
B45: July | D45: ='16. RTSR - Historical Wholesale'!D44 -> 0 | E45: 3.3765 | F45: 0 | H45: ='16. RTSR - Historical Wholesale'!H44 -> 0 | I45: 0.7167 | J45: 0 | L45: ='16. RTSR - Historical Wholesale'!L44 -> 0 | M45: 1.62 | N45: 0 | P45: 0
B46: August | D46: ='16. RTSR - Historical Wholesale'!D45 -> 0 | E46: 3.3765 | F46: 0 | H46: ='16. RTSR - Historical Wholesale'!H45 -> 0 | I46: 0.7167 | J46: 0 | L46: ='16. RTSR - Historical Wholesale'!L45 -> 0 | M46: 1.62 | N46: 0 | P46: 0
B47: September | D47: ='16. RTSR - Historical Wholesale'!D46 -> 0 | E47: 3.3765 | F47: 0 | H47: ='16. RTSR - Historical Wholesale'!H46 -> 0 | I47: 0.7167 | J47: 0 | L47: ='16. RTSR - Historical Wholesale'!L46 -> 0 | M47: 1.62 | N47: 0 | P47: 0
B48: October | D48: ='16. RTSR - Historical Wholesale'!D47 -> 0 | E48: 3.3765 | F48: 0 | H48: ='16. RTSR - Historical Wholesale'!H47 -> 0 | I48: 0.7167 | J48: 0 | L48: ='16. RTSR - Historical Wholesale'!L47 -> 0 | M48: 1.62 | N48: 0 | P48: 0
B49: November | D49: ='16. RTSR - Historical Wholesale'!D48 -> 0 | E49: 3.3765 | F49: 0 | H49: ='16. RTSR - Historical Wholesale'!H48 -> 0 | I49: 0.7167 | J49: 0 | L49: ='16. RTSR - Historical Wholesale'!L48 -> 0 | M49: 1.62 | N49: 0 | P49: 0
B50: December | D50: ='16. RTSR - Historical Wholesale'!D49 -> 0 | E50: 3.3765 | F50: 0 | H50: ='16. RTSR - Historical Wholesale'!H49 -> 0 | I50: 0.7167 | J50: 0 | L50: ='16. RTSR - Historical Wholesale'!L49 -> 0 | M50: 1.62 | N50: 0 | P50: 0
B52: Total | D52: =SUM(D39:D50) -> 0 | E52: =IF(D52<>0,F52/D52,0) -> 0 | F52: =SUM(F39:F50) -> 0 | H52: =SUM(H39:H50) -> 0 | I52: =IF(H52<>0,J52/H52,0) -> 0 | J52: =SUM(J39:J50) -> 0 | L52: =SUM(L39:L50) -> 0 | M52: =IF(L52<>0,N52/L52,0) -> 0 | N52: =SUM(N39:N50) -> 0 | P52: =SUM(P39:P50) -> 0
B54: ='16. RTSR - Historical Wholesale'!B53 -> Add Extra Host Here (I) | D54: Network | H54: Line Connection | L54: Transformation Connection | P54: Total Line
B56: Month | D56: Units Billed | E56: Rate | F56: Amount | H56: Units Billed | I56: Rate | J56: Amount | L56: Units Billed | M56: Rate | N56: Amount | P56: Amount
B58: January | D58: ='16. RTSR - Historical Wholesale'!D57 -> 0 | E58: ='15. RTSR - UTRs & Sub-Tx'!G50 -> 0 | F58: =D58*E58 -> 0 | H58: ='16. RTSR - Historical Wholesale'!H57 -> 0 | I58: ='15. RTSR - UTRs & Sub-Tx'!G52 -> 0 | J58: =H58*I58 -> 0 | L58: ='16. RTSR - Historical Wholesale'!L57 -> 0 | M58: ='15. RTSR - UTRs & Sub-Tx'!G54 -> 0 | N58: =L58*M58 -> 0 | P58: =J58+N58 -> 0
B59: February | D59: ='16. RTSR - Historical Wholesale'!D58 -> 0 | E59: =E58 -> 0 | F59: =D59*E59 -> 0 | H59: ='16. RTSR - Historical Wholesale'!H58 -> 0 | I59: =I58 -> 0 | J59: =H59*I59 -> 0 | L59: ='16. RTSR - Historical Wholesale'!L58 -> 0 | M59: =M58 -> 0 | N59: =L59*M59 -> 0 | P59: 0
B60: March | D60: ='16. RTSR - Historical Wholesale'!D59 -> 0 | E60: =E59 -> 0 | F60: 0 | H60: ='16. RTSR - Historical Wholesale'!H59 -> 0 | I60: =I59 -> 0 | J60: 0 | L60: ='16. RTSR - Historical Wholesale'!L59 -> 0 | M60: =M59 -> 0 | N60: 0 | P60: 0
B61: April | D61: ='16. RTSR - Historical Wholesale'!D60 -> 0 | E61: 0 | F61: 0 | H61: ='16. RTSR - Historical Wholesale'!H60 -> 0 | I61: 0 | J61: 0 | L61: ='16. RTSR - Historical Wholesale'!L60 -> 0 | M61: =M60 -> 0 | N61: 0 | P61: 0
B62: May | D62: ='16. RTSR - Historical Wholesale'!D61 -> 0 | E62: 0 | F62: 0 | H62: ='16. RTSR - Historical Wholesale'!H61 -> 0 | I62: 0 | J62: 0 | L62: ='16. RTSR - Historical Wholesale'!L61 -> 0 | M62: 0 | N62: 0 | P62: 0
B63: June | D63: ='16. RTSR - Historical Wholesale'!D62 -> 0 | E63: 0 | F63: 0 | H63: ='16. RTSR - Historical Wholesale'!H62 -> 0 | I63: 0 | J63: 0 | L63: ='16. RTSR - Historical Wholesale'!L62 -> 0 | M63: 0 | N63: 0 | P63: 0
B64: July | D64: ='16. RTSR - Historical Wholesale'!D63 -> 0 | E64: 0 | F64: 0 | H64: ='16. RTSR - Historical Wholesale'!H63 -> 0 | I64: 0 | J64: 0 | L64: ='16. RTSR - Historical Wholesale'!L63 -> 0 | M64: 0 | N64: 0 | P64: 0
B65: August | D65: ='16. RTSR - Historical Wholesale'!D64 -> 0 | E65: 0 | F65: 0 | H65: ='16. RTSR - Historical Wholesale'!H64 -> 0 | I65: 0 | J65: 0 | L65: ='16. RTSR - Historical Wholesale'!L64 -> 0 | M65: 0 | N65: 0 | P65: 0
B66: September | D66: ='16. RTSR - Historical Wholesale'!D65 -> 0 | E66: 0 | F66: 0 | H66: ='16. RTSR - Historical Wholesale'!H65 -> 0 | I66: 0 | J66: 0 | L66: ='16. RTSR - Historical Wholesale'!L65 -> 0 | M66: 0 | N66: 0 | P66: 0
B67: October | D67: ='16. RTSR - Historical Wholesale'!D66 -> 0 | E67: 0 | F67: 0 | H67: ='16. RTSR - Historical Wholesale'!H66 -> 0 | I67: 0 | J67: 0 | L67: ='16. RTSR - Historical Wholesale'!L66 -> 0 | M67: 0 | N67: 0 | P67: 0
B68: November | D68: ='16. RTSR - Historical Wholesale'!D67 -> 0 | E68: 0 | F68: 0 | H68: ='16. RTSR - Historical Wholesale'!H67 -> 0 | I68: 0 | J68: 0 | L68: ='16. RTSR - Historical Wholesale'!L67 -> 0 | M68: 0 | N68: 0 | P68: 0
B69: December | D69: ='16. RTSR - Historical Wholesale'!D68 -> 0 | E69: 0 | F69: 0 | H69: ='16. RTSR - Historical Wholesale'!H68 -> 0 | I69: 0 | J69: 0 | L69: ='16. RTSR - Historical Wholesale'!L68 -> 0 | M69: 0 | N69: 0 | P69: 0
B71: Total | D71: =SUM(D58:D69) -> 0 | E71: =IF(D71<>0,F71/D71,0) -> 0 | F71: =SUM(F58:F69) -> 0 | H71: =SUM(H58:H69) -> 0 | I71: =IF(H71<>0,J71/H71,0) -> 0 | J71: =SUM(J58:J69) -> 0 | L71: =SUM(L58:L69) -> 0 | M71: =IF(L71<>0,N71/L71,0) -> 0 | N71: =SUM(N58:N69) -> 0 | P71: =SUM(P58:P69) -> 0
B73: ='16. RTSR - Historical Wholesale'!B72 -> Add Extra Host Here (II) | D73: Network | H73: Line Connection | L73: Transformation Connection | P73: Total Line
B75: Month | D75: Units Billed | E75: Rate | F75: Amount | H75: Units Billed | I75: Rate | J75: Amount | L75: Units Billed | M75: Rate | N75: Amount | P75: Amount
B77: January | D77: ='16. RTSR - Historical Wholesale'!D76 -> 0 | E77: ='15. RTSR - UTRs & Sub-Tx'!G65 -> 0 | F77: =D77*E77 -> 0 | H77: ='16. RTSR - Historical Wholesale'!H76 -> 0 | I77: ='15. RTSR - UTRs & Sub-Tx'!G67 -> 0 | J77: =H77*I77 -> 0 | L77: ='16. RTSR - Historical Wholesale'!L76 -> 0 | M77: ='15. RTSR - UTRs & Sub-Tx'!G69 -> 0 | N77: =L77*M77 -> 0 | P77: =J77+N77 -> 0
B78: February | D78: ='16. RTSR - Historical Wholesale'!D77 -> 0 | E78: =E77 -> 0 | F78: =D78*E78 -> 0 | H78: ='16. RTSR - Historical Wholesale'!H77 -> 0 | I78: =I77 -> 0 | J78: =H78*I78 -> 0 | L78: ='16. RTSR - Historical Wholesale'!L77 -> 0 | M78: =M77 -> 0 | N78: =L78*M78 -> 0 | P78: 0
B79: March | D79: ='16. RTSR - Historical Wholesale'!D78 -> 0 | E79: =E78 -> 0 | F79: 0 | H79: ='16. RTSR - Historical Wholesale'!H78 -> 0 | I79: =I78 -> 0 | J79: 0 | L79: ='16. RTSR - Historical Wholesale'!L78 -> 0 | M79: =M78 -> 0 | N79: 0 | P79: 0
B80: April | D80: ='16. RTSR - Historical Wholesale'!D79 -> 0 | E80: 0 | F80: 0 | H80: ='16. RTSR - Historical Wholesale'!H79 -> 0 | I80: 0 | J80: 0 | L80: ='16. RTSR - Historical Wholesale'!L79 -> 0 | M80: =M79 -> 0 | N80: 0 | P80: 0
B81: May | D81: ='16. RTSR - Historical Wholesale'!D80 -> 0 | E81: 0 | F81: 0 | H81: ='16. RTSR - Historical Wholesale'!H80 -> 0 | I81: 0 | J81: 0 | L81: ='16. RTSR - Historical Wholesale'!L80 -> 0 | M81: 0 | N81: 0 | P81: 0
B82: June | D82: ='16. RTSR - Historical Wholesale'!D81 -> 0 | E82: 0 | F82: 0 | H82: ='16. RTSR - Historical Wholesale'!H81 -> 0 | I82: 0 | J82: 0 | L82: ='16. RTSR - Historical Wholesale'!L81 -> 0 | M82: 0 | N82: 0 | P82: 0
B83: July | D83: ='16. RTSR - Historical Wholesale'!D82 -> 0 | E83: 0 | F83: 0 | H83: ='16. RTSR - Historical Wholesale'!H82 -> 0 | I83: 0 | J83: 0 | L83: ='16. RTSR - Historical Wholesale'!L82 -> 0 | M83: 0 | N83: 0 | P83: 0
B84: August | D84: ='16. RTSR - Historical Wholesale'!D83 -> 0 | E84: 0 | F84: 0 | H84: ='16. RTSR - Historical Wholesale'!H83 -> 0 | I84: 0 | J84: 0 | L84: ='16. RTSR - Historical Wholesale'!L83 -> 0 | M84: 0 | N84: 0 | P84: 0
B85: September | D85: ='16. RTSR - Historical Wholesale'!D84 -> 0 | E85: 0 | F85: 0 | H85: ='16. RTSR - Historical Wholesale'!H84 -> 0 | I85: 0 | J85: 0 | L85: ='16. RTSR - Historical Wholesale'!L84 -> 0 | M85: 0 | N85: 0 | P85: 0
B86: October | D86: ='16. RTSR - Historical Wholesale'!D85 -> 0 | E86: 0 | F86: 0 | H86: ='16. RTSR - Historical Wholesale'!H85 -> 0 | I86: 0 | J86: 0 | L86: ='16. RTSR - Historical Wholesale'!L85 -> 0 | M86: 0 | N86: 0 | P86: 0
B87: November | D87: ='16. RTSR - Historical Wholesale'!D86 -> 0 | E87: 0 | F87: 0 | H87: ='16. RTSR - Historical Wholesale'!H86 -> 0 | I87: 0 | J87: 0 | L87: ='16. RTSR - Historical Wholesale'!L86 -> 0 | M87: 0 | N87: 0 | P87: 0
B88: December | D88: ='16. RTSR - Historical Wholesale'!D87 -> 0 | E88: 0 | F88: 0 | H88: ='16. RTSR - Historical Wholesale'!H87 -> 0 | I88: 0 | J88: 0 | L88: ='16. RTSR - Historical Wholesale'!L87 -> 0 | M88: 0 | N88: 0 | P88: 0
B90: Total | D90: =SUM(D77:D88) -> 0 | E90: =IF(D90<>0,F90/D90,0) -> 0 | F90: =SUM(F77:F88) -> 0 | H90: =SUM(H77:H88) -> 0 | I90: =IF(H90<>0,J90/H90,0) -> 0 | J90: =SUM(J77:J88) -> 0 | L90: =SUM(L77:L88) -> 0 | M90: =IF(L90<>0,N90/L90,0) -> 0 | N90: =SUM(N77:N88) -> 0 | P90: =SUM(P77:P88) -> 0
B92: Total | D92: Network | H92: Line Connection | L92: Transformation Connection | P92: Total Line
B94: Month | D94: Units Billed | E94: Rate | F94: Amount | H94: Units Billed | I94: Rate | J94: Amount | L94: Units Billed | M94: Rate | N94: Amount | P94: Amount
B96: January | D96: =D20+D39+D58+D77 -> 3903.39 | E96: =IF(D96<>0,F96/D96,0) -> 3.82 | F96: =F20+F39+F58+F77 -> 14910.9498 | H96: =H20+H39+H58+H77 -> 0 | I96: =IF(H96<>0,J96/H96,0) -> 0 | J96: =J20+J39+J58+J77 -> 0 | L96: =L20+L39+L58+L77 -> 4041.62 | M96: =IF(L96<>0,N96/L96,0) -> 1.98 | N96: =N20+N39+N58+N77 -> 8002.4076 | P96: =J96+N96 -> 8002.4076
B97: February | D97: =D21+D40+D59+D78 -> 4401 | E97: 3.82 | F97: =F21+F40+F59+F78 -> 16811.82 | H97: =H21+H40+H59+H78 -> 0 | I97: 0 | J97: =J21+J40+J59+J78 -> 0 | L97: =L21+L40+L59+L78 -> 4478.91 | M97: 1.98 | N97: =N21+N40+N59+N78 -> 8868.2418 | P97: 8868.2418
B98: March | D98: 4123.96 | E98: 3.82 | F98: 15753.5272 | H98: 0 | I98: 0 | J98: 0 | L98: 4263.24 | M98: 1.98 | N98: 8441.2152 | P98: 8441.2152
B99: April | D99: 3504.68 | E99: 3.82 | F99: 13387.8776 | H99: 0 | I99: 0 | J99: 0 | L99: 3596.21 | M99: 1.98 | N99: 7120.4958 | P99: 7120.4958
B100: May | D100: 3015.97 | E100: 3.82 | F100: 11521.0054 | H100: 0 | I100: 0 | J100: 0 | L100: 3388.1 | M100: 1.98 | N100: 6708.438 | P100: 6708.438
B101: June | D101: 3017.9 | E101: 3.82 | F101: 11528.378 | H101: 0 | I101: 0 | J101: 0 | L101: 3550.27 | M101: 1.98 | N101: 7029.5346 | P101: 7029.5346
B102: July | D102: 2934.98 | E102: 3.82 | F102: 11211.6236 | H102: 0 | I102: 0 | J102: 0 | L102: 3452.97 | M102: 1.98 | N102: 6836.8806 | P102: 6836.8806
B103: August | D103: 3485.95 | E103: 3.82 | F103: 13316.329 | H103: 0 | I103: 0 | J103: 0 | L103: 3802.16 | M103: 1.98 | N103: 7528.2768 | P103: 7528.2768
B104: September | D104: 3431.12 | E104: 3.82 | F104: 13106.8784 | H104: 0 | I104: 0 | J104: 0 | L104: 4035.21 | M104: 1.98 | N104: 7989.7158 | P104: 7989.7158
B105: October | D105: 2509.09 | E105: 3.82 | F105: 9584.7238 | H105: 0 | I105: 0 | J105: 0 | L105: 3057.83 | M105: 1.98 | N105: 6054.5034 | P105: 6054.5034
B106: November | D106: 3871.07 | E106: 3.82 | F106: 14787.4874 | H106: 0 | I106: 0 | J106: 0 | L106: 3870.81 | M106: 1.98 | N106: 7664.2038 | P106: 7664.2038
B107: December | D107: 3646 | E107: 3.82 | F107: 13927.72 | H107: 0 | I107: 0 | J107: 0 | L107: 3978.91 | M107: 1.98 | N107: 7878.2418 | P107: 7878.2418
B109: Total | D109: =SUM(D96:D107) -> 41845.11 | E109: =IF(D109<>0,F109/D109,0) -> 3.82 | F109: =SUM(F96:F107) -> 159848.3202 | H109: =SUM(H96:H107) -> 0 | I109: =IF(H109<>0,J109/H109,0) -> 0 | J109: =SUM(J96:J107) -> 0 | L109: =SUM(L96:L107) -> 45516.24 | M109: =IF(L109<>0,N109/L109,0) -> 1.98 | N109: =SUM(N96:N107) -> 90122.1552 | P109: =SUM(P96:P107) -> 90122.1552
N111: Transformer Allowance Credit (if applicable) | P111: ='15. RTSR - UTRs & Sub-Tx'!G95 -> 0
N113: Total including deduction for Transformer Allowance Credit | P113: =P109+P111 -> 90122.1552

Sheet 18. RTSR - Forecast Wholesale
B13: The purpose of this sheet is to calculate the expected billing when forecasted 2015 Uniform Transmission Rates are applied against historical 2013 transmission units.
B16: IESO | D16: Network | H16: Line Connection | L16: Transformation Connection | P16: Total Line
B18: Month | D18: Units Billed | E18: Rate | F18: Amount | H18: Units Billed | I18: Rate | J18: Amount | L18: Units Billed | M18: Rate | N18: Amount | P18: Amount
B20: January | D20: ='16. RTSR - Historical Wholesale'!D19 -> 3903.39 | E20: ='15. RTSR - UTRs & Sub-Tx'!I22 -> 3.82 | F20: =D20*E20 -> 14910.9498 | H20: ='16. RTSR - Historical Wholesale'!H19 -> 0 | I20: ='15. RTSR - UTRs & Sub-Tx'!I24 -> 0.82 | J20: =H20*I20 -> 0 | L20: ='16. RTSR - Historical Wholesale'!L19 -> 4041.62 | M20: ='15. RTSR - UTRs & Sub-Tx'!I26 -> 1.98 | N20: =L20*M20 -> 8002.4076 | P20: =J20+N20 -> 8002.4076
B21: February | D21: ='16. RTSR - Historical Wholesale'!D20 -> 4401 | E21: =E20 -> 3.82 | F21: 16811.82 | H21: ='16. RTSR - Historical Wholesale'!H20 -> 0 | I21: =I20 -> 0.82 | J21: 0 | L21: ='16. RTSR - Historical Wholesale'!L20 -> 4478.91 | M21: =M20 -> 1.98 | N21: 8868.2418 | P21: 8868.2418
B22: March | D22: ='16. RTSR - Historical Wholesale'!D21 -> 4123.96 | E22: 3.82 | F22: 15753.5272 | H22: ='16. RTSR - Historical Wholesale'!H21 -> 0 | I22: 0.82 | J22: 0 | L22: ='16. RTSR - Historical Wholesale'!L21 -> 4263.24 | M22: 1.98 | N22: 8441.2152 | P22: 8441.2152
B23: April | D23: ='16. RTSR - Historical Wholesale'!D22 -> 3504.68 | E23: 3.82 | F23: 13387.8776 | H23: ='16. RTSR - Historical Wholesale'!H22 -> 0 | I23: 0.82 | J23: 0 | L23: ='16. RTSR - Historical Wholesale'!L22 -> 3596.21 | M23: 1.98 | N23: 7120.4958 | P23: 7120.4958
B24: May | D24: ='16. RTSR - Historical Wholesale'!D23 -> 3015.97 | E24: 3.82 | F24: 11521.0054 | H24: ='16. RTSR - Historical Wholesale'!H23 -> 0 | I24: 0.82 | J24: 0 | L24: ='16. RTSR - Historical Wholesale'!L23 -> 3388.1 | M24: 1.98 | N24: 6708.438 | P24: 6708.438
B25: June | D25: ='16. RTSR - Historical Wholesale'!D24 -> 3017.9 | E25: 3.82 | F25: 11528.378 | H25: ='16. RTSR - Historical Wholesale'!H24 -> 0 | I25: 0.82 | J25: 0 | L25: ='16. RTSR - Historical Wholesale'!L24 -> 3550.27 | M25: 1.98 | N25: 7029.5346 | P25: 7029.5346
B26: July | D26: ='16. RTSR - Historical Wholesale'!D25 -> 2934.98 | E26: 3.82 | F26: 11211.6236 | H26: ='16. RTSR - Historical Wholesale'!H25 -> 0 | I26: 0.82 | J26: 0 | L26: ='16. RTSR - Historical Wholesale'!L25 -> 3452.97 | M26: 1.98 | N26: 6836.8806 | P26: 6836.8806
B27: August | D27: ='16. RTSR - Historical Wholesale'!D26 -> 3485.95 | E27: 3.82 | F27: 13316.329 | H27: ='16. RTSR - Historical Wholesale'!H26 -> 0 | I27: 0.82 | J27: 0 | L27: ='16. RTSR - Historical Wholesale'!L26 -> 3802.16 | M27: 1.98 | N27: 7528.2768 | P27: 7528.2768
B28: September | D28: ='16. RTSR - Historical Wholesale'!D27 -> 3431.12 | E28: 3.82 | F28: 13106.8784 | H28: ='16. RTSR - Historical Wholesale'!H27 -> 0 | I28: 0.82 | J28: 0 | L28: ='16. RTSR - Historical Wholesale'!L27 -> 4035.21 | M28: 1.98 | N28: 7989.7158 | P28: 7989.7158
B29: October | D29: ='16. RTSR - Historical Wholesale'!D28 -> 2509.09 | E29: 3.82 | F29: 9584.7238 | H29: ='16. RTSR - Historical Wholesale'!H28 -> 0 | I29: 0.82 | J29: 0 | L29: ='16. RTSR - Historical Wholesale'!L28 -> 3057.83 | M29: 1.98 | N29: 6054.5034 | P29: 6054.5034
B30: November | D30: ='16. RTSR - Historical Wholesale'!D29 -> 3871.07 | E30: 3.82 | F30: 14787.4874 | H30: ='16. RTSR - Historical Wholesale'!H29 -> 0 | I30: 0.82 | J30: 0 | L30: ='16. RTSR - Historical Wholesale'!L29 -> 3870.81 | M30: 1.98 | N30: 7664.2038 | P30: 7664.2038
B31: December | D31: ='16. RTSR - Historical Wholesale'!D30 -> 3646 | E31: 3.82 | F31: 13927.72 | H31: ='16. RTSR - Historical Wholesale'!H30 -> 0 | I31: 0.82 | J31: 0 | L31: ='16. RTSR - Historical Wholesale'!L30 -> 3978.91 | M31: 1.98 | N31: 7878.2418 | P31: 7878.2418
B33: Total | D33: =SUM(D20:D31) -> 41845.11 | E33: =IF(D33<>0,F33/D33,0) -> 3.82 | F33: =SUM(F20:F31) -> 159848.3202 | H33: =SUM(H20:H31) -> 0 | I33: =IF(H33<>0,J33/H33,0) -> 0 | J33: =SUM(J20:J31) -> 0 | L33: =SUM(L20:L31) -> 45516.24 | M33: =IF(L33<>0,N33/L33,0) -> 1.98 | N33: =SUM(N20:N31) -> 90122.1552 | P33: =SUM(P20:P31) -> 90122.1552
B35: Hydro One | D35: Network | H35: Line Connection | L35: Transformation Connection | P35: Total Line
B37: Month | D37: Units Billed | E37: Rate | F37: Amount | H37: Units Billed | I37: Rate | J37: Amount | L37: Units Billed | M37: Rate | N37: Amount | P37: Amount
B39: January | D39: ='16. RTSR - Historical Wholesale'!D38 -> 0 | E39: ='15. RTSR - UTRs & Sub-Tx'!I35+'15. RTSR - UTRs & Sub-Tx'!I79 -> 3.3765 | F39: =D39*E39 -> 0 | H39: ='16. RTSR - Historical Wholesale'!H38 -> 0 | I39: ='15. RTSR - UTRs & Sub-Tx'!I37+'15. RTSR - UTRs & Sub-Tx'!I81 -> 0.7167 | J39: =H39*I39 -> 0 | L39: ='16. RTSR - Historical Wholesale'!L38 -> 0 | M39: ='15. RTSR - UTRs & Sub-Tx'!I39 -> 1.62 | N39: =L39*M39 -> 0 | P39: =J39+N39 -> 0
B40: February | D40: ='16. RTSR - Historical Wholesale'!D39 -> 0 | E40: =E39 -> 3.3765 | F40: 0 | H40: ='16. RTSR - Historical Wholesale'!H39 -> 0 | I40: =I39 -> 0.7167 | J40: 0 | L40: ='16. RTSR - Historical Wholesale'!L39 -> 0 | M40: =M39 -> 1.62 | N40: 0 | P40: 0
B41: March | D41: ='16. RTSR - Historical Wholesale'!D40 -> 0 | E41: 3.3765 | F41: 0 | H41: ='16. RTSR - Historical Wholesale'!H40 -> 0 | I41: 0.7167 | J41: 0 | L41: ='16. RTSR - Historical Wholesale'!L40 -> 0 | M41: 1.62 | N41: 0 | P41: 0
B42: April | D42: ='16. RTSR - Historical Wholesale'!D41 -> 0 | E42: 3.3765 | F42: 0 | H42: ='16. RTSR - Historical Wholesale'!H41 -> 0 | I42: 0.7167 | J42: 0 | L42: ='16. RTSR - Historical Wholesale'!L41 -> 0 | M42: 1.62 | N42: 0 | P42: 0
B43: May | D43: ='16. RTSR - Historical Wholesale'!D42 -> 0 | E43: 3.3765 | F43: 0 | H43: ='16. RTSR - Historical Wholesale'!H42 -> 0 | I43: 0.7167 | J43: 0 | L43: ='16. RTSR - Historical Wholesale'!L42 -> 0 | M43: 1.62 | N43: 0 | P43: 0
B44: June | D44: ='16. RTSR - Historical Wholesale'!D43 -> 0 | E44: 3.3765 | F44: 0 | H44: ='16. RTSR - Historical Wholesale'!H43 -> 0 | I44: 0.7167 | J44: 0 | L44: ='16. RTSR - Historical Wholesale'!L43 -> 0 | M44: 1.62 | N44: 0 | P44: 0
B45: July | D45: ='16. RTSR - Historical Wholesale'!D44 -> 0 | E45: 3.3765 | F45: 0 | H45: ='16. RTSR - Historical Wholesale'!H44 -> 0 | I45: 0.7167 | J45: 0 | L45: ='16. RTSR - Historical Wholesale'!L44 -> 0 | M45: 1.62 | N45: 0 | P45: 0
B46: August | D46: ='16. RTSR - Historical Wholesale'!D45 -> 0 | E46: 3.3765 | F46: 0 | H46: ='16. RTSR - Historical Wholesale'!H45 -> 0 | I46: 0.7167 | J46: 0 | L46: ='16. RTSR - Historical Wholesale'!L45 -> 0 | M46: 1.62 | N46: 0 | P46: 0
B47: September | D47: ='16. RTSR - Historical Wholesale'!D46 -> 0 | E47: 3.3765 | F47: 0 | H47: ='16. RTSR - Historical Wholesale'!H46 -> 0 | I47: 0.7167 | J47: 0 | L47: ='16. RTSR - Historical Wholesale'!L46 -> 0 | M47: 1.62 | N47: 0 | P47: 0
B48: October | D48: ='16. RTSR - Historical Wholesale'!D47 -> 0 | E48: 3.3765 | F48: 0 | H48: ='16. RTSR - Historical Wholesale'!H47 -> 0 | I48: 0.7167 | J48: 0 | L48: ='16. RTSR - Historical Wholesale'!L47 -> 0 | M48: 1.62 | N48: 0 | P48: 0
B49: November | D49: ='16. RTSR - Historical Wholesale'!D48 -> 0 | E49: 3.3765 | F49: 0 | H49: ='16. RTSR - Historical Wholesale'!H48 -> 0 | I49: 0.7167 | J49: 0 | L49: ='16. RTSR - Historical Wholesale'!L48 -> 0 | M49: 1.62 | N49: 0 | P49: 0
B50: December | D50: ='16. RTSR - Historical Wholesale'!D49 -> 0 | E50: 3.3765 | F50: 0 | H50: ='16. RTSR - Historical Wholesale'!H49 -> 0 | I50: 0.7167 | J50: 0 | L50: ='16. RTSR - Historical Wholesale'!L49 -> 0 | M50: 1.62 | N50: 0 | P50: 0
B52: Total | D52: =SUM(D39:D50) -> 0 | E52: =IF(D52<>0,F52/D52,0) -> 0 | F52: =SUM(F39:F50) -> 0 | H52: =SUM(H39:H50) -> 0 | I52: =IF(H52<>0,J52/H52,0) -> 0 | J52: =SUM(J39:J50) -> 0 | L52: =SUM(L39:L50) -> 0 | M52: =IF(L52<>0,N52/L52,0) -> 0 | N52: =SUM(N39:N50) -> 0 | P52: =SUM(P39:P50) -> 0
B54: ='16. RTSR - Historical Wholesale'!B53 -> Add Extra Host Here (I) | D54: Network | H54: Line Connection | L54: Transformation Connection | P54: Total Line
B56: Month | D56: Units Billed | E56: Rate | F56: Amount | H56: Units Billed | I56: Rate | J56: Amount | L56: Units Billed | M56: Rate | N56: Amount | P56: Amount
B58: January | D58: ='16. RTSR - Historical Wholesale'!D57 -> 0 | E58: ='15. RTSR - UTRs & Sub-Tx'!I50 -> 0 | F58: =D58*E58 -> 0 | H58: ='16. RTSR - Historical Wholesale'!H57 -> 0 | I58: ='15. RTSR - UTRs & Sub-Tx'!I52 -> 0 | J58: =H58*I58 -> 0 | L58: ='16. RTSR - Historical Wholesale'!L57 -> 0 | M58: ='15. RTSR - UTRs & Sub-Tx'!I54 -> 0 | N58: =L58*M58 -> 0 | P58: =J58+N58 -> 0
B59: February | D59: ='16. RTSR - Historical Wholesale'!D58 -> 0 | E59: =E58 -> 0 | F59: 0 | H59: ='16. RTSR - Historical Wholesale'!H58 -> 0 | I59: =I58 -> 0 | J59: 0 | L59: ='16. RTSR - Historical Wholesale'!L58 -> 0 | M59: =M58 -> 0 | N59: 0 | P59: 0
B60: March | D60: ='16. RTSR - Historical Wholesale'!D59 -> 0 | E60: 0 | F60: 0 | H60: ='16. RTSR - Historical Wholesale'!H59 -> 0 | I60: 0 | J60: 0 | L60: ='16. RTSR - Historical Wholesale'!L59 -> 0 | M60: 0 | N60: 0 | P60: 0
B61: April | D61: ='16. RTSR - Historical Wholesale'!D60 -> 0 | E61: 0 | F61: 0 | H61: ='16. RTSR - Historical Wholesale'!H60 -> 0 | I61: 0 | J61: 0 | L61: ='16. RTSR - Historical Wholesale'!L60 -> 0 | M61: 0 | N61: 0 | P61: 0
B62: May | D62: ='16. RTSR - Historical Wholesale'!D61 -> 0 | E62: 0 | F62: 0 | H62: ='16. RTSR - Historical Wholesale'!H61 -> 0 | I62: 0 | J62: 0 | L62: ='16. RTSR - Historical Wholesale'!L61 -> 0 | M62: 0 | N62: 0 | P62: 0
B63: June | D63: ='16. RTSR - Historical Wholesale'!D62 -> 0 | E63: 0 | F63: 0 | H63: ='16. RTSR - Historical Wholesale'!H62 -> 0 | I63: 0 | J63: 0 | L63: ='16. RTSR - Historical Wholesale'!L62 -> 0 | M63: 0 | N63: 0 | P63: 0
B64: July | D64: ='16. RTSR - Historical Wholesale'!D63 -> 0 | E64: 0 | F64: 0 | H64: ='16. RTSR - Historical Wholesale'!H63 -> 0 | I64: 0 | J64: 0 | L64: ='16. RTSR - Historical Wholesale'!L63 -> 0 | M64: 0 | N64: 0 | P64: 0
B65: August | D65: ='16. RTSR - Historical Wholesale'!D64 -> 0 | E65: 0 | F65: 0 | H65: ='16. RTSR - Historical Wholesale'!H64 -> 0 | I65: 0 | J65: 0 | L65: ='16. RTSR - Historical Wholesale'!L64 -> 0 | M65: 0 | N65: 0 | P65: 0
B66: September | D66: ='16. RTSR - Historical Wholesale'!D65 -> 0 | E66: 0 | F66: 0 | H66: ='16. RTSR - Historical Wholesale'!H65 -> 0 | I66: 0 | J66: 0 | L66: ='16. RTSR - Historical Wholesale'!L65 -> 0 | M66: 0 | N66: 0 | P66: 0
B67: October | D67: ='16. RTSR - Historical Wholesale'!D66 -> 0 | E67: 0 | F67: 0 | H67: ='16. RTSR - Historical Wholesale'!H66 -> 0 | I67: 0 | J67: 0 | L67: ='16. RTSR - Historical Wholesale'!L66 -> 0 | M67: 0 | N67: 0 | P67: 0
B68: November | D68: ='16. RTSR - Historical Wholesale'!D67 -> 0 | E68: 0 | F68: 0 | H68: ='16. RTSR - Historical Wholesale'!H67 -> 0 | I68: 0 | J68: 0 | L68: ='16. RTSR - Historical Wholesale'!L67 -> 0 | M68: 0 | N68: 0 | P68: 0
B69: December | D69: ='16. RTSR - Historical Wholesale'!D68 -> 0 | E69: 0 | F69: 0 | H69: ='16. RTSR - Historical Wholesale'!H68 -> 0 | I69: 0 | J69: 0 | L69: ='16. RTSR - Historical Wholesale'!L68 -> 0 | M69: 0 | N69: 0 | P69: 0
B71: Total | D71: =SUM(D58:D69) -> 0 | E71: =IF(D71<>0,F71/D71,0) -> 0 | F71: =SUM(F58:F69) -> 0 | H71: =SUM(H58:H69) -> 0 | I71: =IF(H71<>0,J71/H71,0) -> 0 | J71: =SUM(J58:J69) -> 0 | L71: =SUM(L58:L69) -> 0 | M71: =IF(L71<>0,N71/L71,0) -> 0 | N71: =SUM(N58:N69) -> 0 | P71: =SUM(P58:P69) -> 0
B73: ='16. RTSR - Historical Wholesale'!B72 -> Add Extra Host Here (II) | D73: Network | H73: Line Connection | L73: Transformation Connection | P73: Total Line
B75: Month | D75: Units Billed | E75: Rate | F75: Amount | H75: Units Billed | I75: Rate | J75: Amount | L75: Units Billed | M75: Rate | N75: Amount | P75: Amount
B77: January | D77: ='16. RTSR - Historical Wholesale'!D76 -> 0 | E77: ='15. RTSR - UTRs & Sub-Tx'!I65 -> 0 | F77: =D77*E77 -> 0 | H77: ='16. RTSR - Historical Wholesale'!H76 -> 0 | I77: ='15. RTSR - UTRs & Sub-Tx'!I67 -> 0 | J77: =H77*I77 -> 0 | L77: ='16. RTSR - Historical Wholesale'!L76 -> 0 | M77: ='15. RTSR - UTRs & Sub-Tx'!I69 -> 0 | N77: =L77*M77 -> 0 | P77: =J77+N77 -> 0
B78: February | D78: ='16. RTSR - Historical Wholesale'!D77 -> 0 | E78: =E77 -> 0 | F78: 0 | H78: ='16. RTSR - Historical Wholesale'!H77 -> 0 | I78: =I77 -> 0 | J78: 0 | L78: ='16. RTSR - Historical Wholesale'!L77 -> 0 | M78: =M77 -> 0 | N78: 0 | P78: 0
B79: March | D79: ='16. RTSR - Historical Wholesale'!D78 -> 0 | E79: 0 | F79: 0 | H79: ='16. RTSR - Historical Wholesale'!H78 -> 0 | I79: 0 | J79: 0 | L79: ='16. RTSR - Historical Wholesale'!L78 -> 0 | M79: 0 | N79: 0 | P79: 0
B80: April | D80: ='16. RTSR - Historical Wholesale'!D79 -> 0 | E80: 0 | F80: 0 | H80: ='16. RTSR - Historical Wholesale'!H79 -> 0 | I80: 0 | J80: 0 | L80: ='16. RTSR - Historical Wholesale'!L79 -> 0 | M80: 0 | N80: 0 | P80: 0
B81: May | D81: ='16. RTSR - Historical Wholesale'!D80 -> 0 | E81: 0 | F81: 0 | H81: ='16. RTSR - Historical Wholesale'!H80 -> 0 | I81: 0 | J81: 0 | L81: ='16. RTSR - Historical Wholesale'!L80 -> 0 | M81: 0 | N81: 0 | P81: 0
B82: June | D82: ='16. RTSR - Historical Wholesale'!D81 -> 0 | E82: 0 | F82: 0 | H82: ='16. RTSR - Historical Wholesale'!H81 -> 0 | I82: 0 | J82: 0 | L82: ='16. RTSR - Historical Wholesale'!L81 -> 0 | M82: 0 | N82: 0 | P82: 0
B83: July | D83: ='16. RTSR - Historical Wholesale'!D82 -> 0 | E83: 0 | F83: 0 | H83: ='16. RTSR - Historical Wholesale'!H82 -> 0 | I83: 0 | J83: 0 | L83: ='16. RTSR - Historical Wholesale'!L82 -> 0 | M83: 0 | N83: 0 | P83: 0
B84: August | D84: ='16. RTSR - Historical Wholesale'!D83 -> 0 | E84: 0 | F84: 0 | H84: ='16. RTSR - Historical Wholesale'!H83 -> 0 | I84: 0 | J84: 0 | L84: ='16. RTSR - Historical Wholesale'!L83 -> 0 | M84: 0 | N84: 0 | P84: 0
B85: September | D85: ='16. RTSR - Historical Wholesale'!D84 -> 0 | E85: 0 | F85: 0 | H85: ='16. RTSR - Historical Wholesale'!H84 -> 0 | I85: 0 | J85: 0 | L85: ='16. RTSR - Historical Wholesale'!L84 -> 0 | M85: 0 | N85: 0 | P85: 0
B86: October | D86: ='16. RTSR - Historical Wholesale'!D85 -> 0 | E86: 0 | F86: 0 | H86: ='16. RTSR - Historical Wholesale'!H85 -> 0 | I86: 0 | J86: 0 | L86: ='16. RTSR - Historical Wholesale'!L85 -> 0 | M86: 0 | N86: 0 | P86: 0
B87: November | D87: ='16. RTSR - Historical Wholesale'!D86 -> 0 | E87: 0 | F87: 0 | H87: ='16. RTSR - Historical Wholesale'!H86 -> 0 | I87: 0 | J87: 0 | L87: ='16. RTSR - Historical Wholesale'!L86 -> 0 | M87: 0 | N87: 0 | P87: 0
B88: December | D88: ='16. RTSR - Historical Wholesale'!D87 -> 0 | E88: 0 | F88: 0 | H88: ='16. RTSR - Historical Wholesale'!H87 -> 0 | I88: 0 | J88: 0 | L88: ='16. RTSR - Historical Wholesale'!L87 -> 0 | M88: 0 | N88: 0 | P88: 0
B90: Total | D90: =SUM(D77:D88) -> 0 | E90: =IF(D90<>0,F90/D90,0) -> 0 | F90: =SUM(F77:F88) -> 0 | H90: =SUM(H77:H88) -> 0 | I90: =IF(H90<>0,J90/H90,0) -> 0 | J90: =SUM(J77:J88) -> 0 | L90: =SUM(L77:L88) -> 0 | M90: =IF(L90<>0,N90/L90,0) -> 0 | N90: =SUM(N77:N88) -> 0 | P90: =SUM(P77:P88) -> 0
B92: Total | D92: Network | H92: Line Connection | L92: Transformation Connection | P92: Total Line
B94: Month | D94: Units Billed | E94: Rate | F94: Amount | H94: Units Billed | I94: Rate | J94: Amount | L94: Units Billed | M94: Rate | N94: Amount | P94: Amount
B96: January | D96: =D20+D39 -> 3903.39 | E96: =IF(D96<>0,F96/D96,0) -> 3.82 | F96: =F20+F39 -> 14910.9498 | H96: =H20+H39 -> 0 | I96: =IF(H96<>0,J96/H96,0) -> 0 | J96: =J20+J39 -> 0 | L96: =L20+L39 -> 4041.62 | M96: =IF(L96<>0,N96/L96,0) -> 1.98 | N96: =N20+N39 -> 8002.4076 | P96: =J96+N96 -> 8002.4076
B97: February | D97: 4401 | E97: 3.82 | F97: 16811.82 | H97: 0 | I97: 0 | J97: 0 | L97: 4478.91 | M97: 1.98 | N97: 8868.2418 | P97: 8868.2418
B98: March | D98: 4123.96 | E98: 3.82 | F98: 15753.5272 | H98: 0 | I98: 0 | J98: 0 | L98: 4263.24 | M98: 1.98 | N98: 8441.2152 | P98: 8441.2152
B99: April | D99: 3504.68 | E99: 3.82 | F99: 13387.8776 | H99: 0 | I99: 0 | J99: 0 | L99: 3596.21 | M99: 1.98 | N99: 7120.4958 | P99: 7120.4958
B100: May | D100: 3015.97 | E100: 3.82 | F100: 11521.0054 | H100: 0 | I100: 0 | J100: 0 | L100: 3388.1 | M100: 1.98 | N100: 6708.438 | P100: 6708.438
B101: June | D101: 3017.9 | E101: 3.82 | F101: 11528.378 | H101: 0 | I101: 0 | J101: 0 | L101: 3550.27 | M101: 1.98 | N101: 7029.5346 | P101: 7029.5346
B102: July | D102: 2934.98 | E102: 3.82 | F102: 11211.6236 | H102: 0 | I102: 0 | J102: 0 | L102: 3452.97 | M102: 1.98 | N102: 6836.8806 | P102: 6836.8806
B103: August | D103: 3485.95 | E103: 3.82 | F103: 13316.329 | H103: 0 | I103: 0 | J103: 0 | L103: 3802.16 | M103: 1.98 | N103: 7528.2768 | P103: 7528.2768
B104: September | D104: 3431.12 | E104: 3.82 | F104: 13106.8784 | H104: 0 | I104: 0 | J104: 0 | L104: 4035.21 | M104: 1.98 | N104: 7989.7158 | P104: 7989.7158
B105: October | D105: 2509.09 | E105: 3.82 | F105: 9584.7238 | H105: 0 | I105: 0 | J105: 0 | L105: 3057.83 | M105: 1.98 | N105: 6054.5034 | P105: 6054.5034
B106: November | D106: 3871.07 | E106: 3.82 | F106: 14787.4874 | H106: 0 | I106: 0 | J106: 0 | L106: 3870.81 | M106: 1.98 | N106: 7664.2038 | P106: 7664.2038
B107: December | D107: 3646 | E107: 3.82 | F107: 13927.72 | H107: 0 | I107: 0 | J107: 0 | L107: 3978.91 | M107: 1.98 | N107: 7878.2418 | P107: 7878.2418
B109: Total | D109: =SUM(D96:D107) -> 41845.11 | E109: =IF(D109<>0,F109/D109,0) -> 3.82 | F109: =SUM(F96:F107) -> 159848.3202 | H109: =SUM(H96:H107) -> 0 | I109: =IF(H109<>0,J109/H109,0) -> 0 | J109: =SUM(J96:J107) -> 0 | L109: =SUM(L96:L107) -> 45516.24 | M109: =IF(L109<>0,N109/L109,0) -> 1.98 | N109: =SUM(N96:N107) -> 90122.1552 | P109: =SUM(P96:P107) -> 90122.1552
N111: Transformer Allowance Credit (if applicable) | P111: ='15. RTSR - UTRs & Sub-Tx'!I95 -> 0
N113: Total including deduction for Transformer Allowance Credit | P113: =P109+P111 -> 90122.1552

Sheet 19. RTSR Ntwrk to Curren WS
A13: The purpose of this sheet is to re-align the current RTS Network Rates to recover current wholesale network costs.
A16: Rate Class | B16: Rate Description | C16: Unit | E16: Current RTSR-Network | G16: Loss Adjusted Billed kWh | I16: Loss Adjusted Billed kW | K16: Billed Amount | M16: Billed Amount % | O16: Current Wholesale Billing | Q16: Proposed RTSR Network
A19: RESIDENTIAL | B19: Retail Transmission Rate - Network Service Rate | C19: $/kWh | E19: 0.0064 | G19: 10447879.56 | I19: 0 | K19: =IF(E19="", "", IF(C19="$/kWh", E19*G19, E19*I19)) -> 66866.42919 | M19: =IF(ISERROR(K19/SUM(K19:K100)),"",K19/SUM(K19:K100)) -> 0.3276355423 | O19: =IF(ISERROR('17. RTSR - Current Wholesale'!$F$109*M19), "", '17. RTSR - Current Wholesale'!$F$109*M19) -> 52371.99107 | Q19: =IF(C19="","",IF(C19="$/kWh",IF(G19<>0,O19/G19,),IF(I19<>0,O19/I19,0))) -> 0.005012690926
A20: GENERAL SERVICE LESS THAN 50 KW | B20: Retail Transmission Rate - Network Service Rate | C20: $/kWh | E20: 0.0057 | G20: 5587898.182 | I20: 0 | K20: =IF(E20="", "", IF(C20="$/kWh", E20*G20, E20*I20)) -> 31851.01964 | M20: =IF(ISERROR(K20/SUM(K19:K100)),"",K20/SUM(K19:K100)) -> 0.1560652515 | O20: =IF(ISERROR('17. RTSR - Current Wholesale'!$F$109*M20), "", '17. RTSR - Current Wholesale'!$F$109*M20) -> 24946.7683 | Q20: =IF(C20="","",IF(C20="$/kWh",IF(G20<>0,O20/G20,),IF(I20<>0,O20/I20,0))) -> 0.004464427856
A21: GENERAL SERVICE 50 TO 4,999 KW | B21: Retail Transmission Rate - Network Service Rate | C21: $/kW | E21: 2.3157 | G21: 0 | I21: 19319 | K21: =IF(E21="", "", IF(C21="$/kWh", E21*G21, E21*I21)) -> 44737.0083 | M21: =IF(ISERROR(K21/SUM(K19:K100)),"",K21/SUM(K19:K100)) -> 0.2192046764 | O21: =IF(ISERROR('17. RTSR - Current Wholesale'!$F$109*M21), "", '17. RTSR - Current Wholesale'!$F$109*M21) -> 35039.49931 | Q21: =IF(C21="","",IF(C21="$/kWh",IF(G21<>0,O21/G21,),IF(I21<>0,O21/I21,0))) -> 1.813732559
A22: GENERAL SERVICE 50 TO 4,999 KW | B22: Retail Transmission Rate - Network Service Rate - Interval Metered | C22: $/kW | E22: 2.4567 | G22: 0 | I22: 23650 | K22: =IF(E22="", "", IF(C22="$/kWh", E22*G22, E22*I22)) -> 58100.955 | M22: =IF(ISERROR(K22/SUM(K19:K100)),"",K22/SUM(K19:K100)) -> 0.2846860245 | O22: =IF(ISERROR('17. RTSR - Current Wholesale'!$F$109*M22), "", '17. RTSR - Current Wholesale'!$F$109*M22) -> 45506.5828 | Q22: =IF(C22="","",IF(C22="$/kWh",IF(G22<>0,O22/G22,),IF(I22<>0,O22/I22,0))) -> 1.924168406
A23: STREET LIGHTING | B23: Retail Transmission Rate - Network Service Rate | C23: $/kW | E23: 1.7465 | G23: 0 | I23: 1450 | K23: =IF(E23="", "", IF(C23="$/kWh", E23*G23, E23*I23)) -> 2532.425 | M23: =IF(ISERROR(K23/SUM(K19:K100)),"",K23/SUM(K19:K100)) -> 0.01240850526 | O23: =IF(ISERROR('17. RTSR - Current Wholesale'!$F$109*M23), "", '17. RTSR - Current Wholesale'!$F$109*M23) -> 1983.478722 | Q23: =IF(C23="","",IF(C23="$/kWh",IF(G23<>0,O23/G23,),IF(I23<>0,O23/I23,0))) -> 1.36791636

Sheet 20. RTSR Adj Conn to Current WS
A13: The purpose of this sheet is to re-align the current RTS Connection Rates to recover current wholesale connection costs.
A16: Rate Class | B16: Rate Description | C16: Unit | E16: Current RTSR-Connection | G16: Loss Adjusted Billed kWh | I16: Loss Adjusted Billed kW | K16: Billed Amount | M16: Billed Amount % | O16: Current Wholesale Billing | Q16: Proposed RTSR Connection
A19: RESIDENTIAL | B19: Retail Transmission Rate - Transformation Connection Service Rate | C19: $/kWh | E19: 0.0038 | G19: 10447879.56 | I19: 0 | K19: =IF(E19="", "", IF(C19="$/kWh", E19*G19, E19*I19)) -> 39701.94233 | M19: =IF(ISERROR(K19/SUM(K19:K100)),"",K19/SUM(K19:K100)) -> 0.4492004944 | O19: =IF(ISERROR('17. RTSR - Current Wholesale'!$P$113*M19), "", '17. RTSR - Current Wholesale'!$P$113*M19) -> 40482.91667 | Q19: =IF(C19="","",IF(C19="$/kWh",IF(G19<>0,O19/G19,),IF(I19<>0,O19/I19,0))) -> 0.003874749555
A20: GENERAL SERVICE LESS THAN 50 KW | B20: Retail Transmission Rate - Transformation Connection Service Rate | C20: $/kWh | E20: 0.0033 | G20: 5587898.182 | I20: 0 | K20: =IF(E20="", "", IF(C20="$/kWh", E20*G20, E20*I20)) -> 18440.064 | M20: =IF(ISERROR(K20/SUM(K19:K100)),"",K20/SUM(K19:K100)) -> 0.2086367915 | O20: =IF(ISERROR('17. RTSR - Current Wholesale'!$P$113*M20), "", '17. RTSR - Current Wholesale'!$P$113*M20) -> 18802.79731 | Q20: =IF(C20="","",IF(C20="$/kWh",IF(G20<>0,O20/G20,),IF(I20<>0,O20/I20,0))) -> 0.003364914087
A21: GENERAL SERVICE 50 TO 4,999 KW | B21: Retail Transmission Rate - Line and Transformation Connection Service Rate | C21: $/kW | E21: 1.3121 | G21: 0 | I21: 19319 | K21: =IF(E21="", "", IF(C21="$/kWh", E21*G21, E21*I21)) -> 25348.4599 | M21: =IF(ISERROR(K21/SUM(K19:K100)),"",K21/SUM(K19:K100)) -> 0.2868005959 | O21: =IF(ISERROR('17. RTSR - Current Wholesale'!$P$113*M21), "", '17. RTSR - Current Wholesale'!$P$113*M21) -> 25847.08782 | Q21: =IF(C21="","",IF(C21="$/kWh",IF(G21<>0,O21/G21,),IF(I21<>0,O21/I21,0))) -> 1.337910234
A22: GENERAL SERVICE 50 TO 4,999 KW | B22: Retail Transmission Rate - Line and Transformation Connection Service Rate - Interval Metered | C22: $/kW | E22: 1.4501 | G22: 0 | I22: 2360.19 | K22: =IF(E22="", "", IF(C22="$/kWh", E22*G22, E22*I22)) -> 3422.511519 | M22: =IF(ISERROR(K22/SUM(K19:K100)),"",K22/SUM(K19:K100)) -> 0.03872339176 | O22: =IF(ISERROR('17. RTSR - Current Wholesale'!$P$113*M22), "", '17. RTSR - Current Wholesale'!$P$113*M22) -> 3489.835522 | Q22: =IF(C22="","",IF(C22="$/kWh",IF(G22<>0,O22/G22,),IF(I22<>0,O22/I22,0))) -> 1.478624823
A23: STREET LIGHTING | B23: Retail Transmission Rate - Line and Transformation Connection Service Rate | C23: $/kW | E23: 1.0142 | G23: 0 | I23: 1450 | K23: =IF(E23="", "", IF(C23="$/kWh", E23*G23, E23*I23)) -> 1470.59 | M23: =IF(ISERROR(K23/SUM(K19:K100)),"",K23/SUM(K19:K100)) -> 0.01663872638 | O23: =IF(ISERROR('17. RTSR - Current Wholesale'!$P$113*M23), "", '17. RTSR - Current Wholesale'!$P$113*M23) -> 1499.517881 | Q23: =IF(C23="","",IF(C23="$/kWh",IF(G23<>0,O23/G23,),IF(I23<>0,O23/I23,0))) -> 1.034150263

Sheet 21. RTSR Adj Ntwk to Forcast WS
A13: The purpose of this sheet is to update the re-align RTS Network Rates to recover forecast wholesale network costs.
A16: Rate Class | B16: Rate Description | C16: Unit | E16: Adjusted RTSR-Network | G16: Loss Adjusted Billed kWh | I16: Loss Adjusted Billed kW | K16: Billed Amount | M16: Billed Amount % | O16: Forecast Wholesale Billing | Q16: Proposed RTSR Network
A19: RESIDENTIAL | B19: Retail Transmission Rate - Network Service Rate | C19: $/kWh | E19: 0.005012690926 | G19: 10447879.56 | I19: 0 | K19: =IF(E19="", "", IF(C19="$/kWh", E19*G19, E19*I19)) -> 52371.99107 | M19: =IF(ISERROR(K19/SUM(K19:K100)),"",K19/SUM(K19:K100)) -> 0.3276355423 | O19: =IF(ISERROR('18. RTSR - Forecast Wholesale'!$F$109*M19), "", '18. RTSR - Forecast Wholesale'!$F$109*M19) -> 52371.99107 | Q19: =IF(C19="","",IF(C19="$/kWh",IF(G19<>0,O19/G19,),IF(I19<>0,O19/I19,0))) -> 0.005012690926
A20: GENERAL SERVICE LESS THAN 50 KW | B20: Retail Transmission Rate - Network Service Rate | C20: $/kWh | E20: 0.004464427856 | G20: 5587898.182 | I20: 0 | K20: =IF(E20="", "", IF(C20="$/kWh", E20*G20, E20*I20)) -> 24946.7683 | M20: =IF(ISERROR(K20/SUM(K19:K100)),"",K20/SUM(K19:K100)) -> 0.1560652515 | O20: =IF(ISERROR('18. RTSR - Forecast Wholesale'!$F$109*M20), "", '18. RTSR - Forecast Wholesale'!$F$109*M20) -> 24946.7683 | Q20: =IF(C20="","",IF(C20="$/kWh",IF(G20<>0,O20/G20,),IF(I20<>0,O20/I20,0))) -> 0.004464427856
A21: GENERAL SERVICE 50 TO 4,999 KW | B21: Retail Transmission Rate - Network Service Rate | C21: $/kW | E21: 1.813732559 | G21: 0 | I21: 19319 | K21: =IF(E21="", "", IF(C21="$/kWh", E21*G21, E21*I21)) -> 35039.49931 | M21: =IF(ISERROR(K21/SUM(K19:K100)),"",K21/SUM(K19:K100)) -> 0.2192046764 | O21: =IF(ISERROR('18. RTSR - Forecast Wholesale'!$F$109*M21), "", '18. RTSR - Forecast Wholesale'!$F$109*M21) -> 35039.49931 | Q21: =IF(C21="","",IF(C21="$/kWh",IF(G21<>0,O21/G21,),IF(I21<>0,O21/I21,0))) -> 1.813732559
A22: GENERAL SERVICE 50 TO 4,999 KW | B22: Retail Transmission Rate - Network Service Rate - Interval Metered | C22: $/kW | E22: 1.924168406 | G22: 0 | I22: 23650 | K22: =IF(E22="", "", IF(C22="$/kWh", E22*G22, E22*I22)) -> 45506.5828 | M22: =IF(ISERROR(K22/SUM(K19:K100)),"",K22/SUM(K19:K100)) -> 0.2846860245 | O22: =IF(ISERROR('18. RTSR - Forecast Wholesale'!$F$109*M22), "", '18. RTSR - Forecast Wholesale'!$F$109*M22) -> 45506.5828 | Q22: =IF(C22="","",IF(C22="$/kWh",IF(G22<>0,O22/G22,),IF(I22<>0,O22/I22,0))) -> 1.924168406
A23: STREET LIGHTING | B23: Retail Transmission Rate - Network Service Rate | C23: $/kW | E23: 1.36791636 | G23: 0 | I23: 1450 | K23: =IF(E23="", "", IF(C23="$/kWh", E23*G23, E23*I23)) -> 1983.478722 | M23: =IF(ISERROR(K23/SUM(K19:K100)),"",K23/SUM(K19:K100)) -> 0.01240850526 | O23: =IF(ISERROR('18. RTSR - Forecast Wholesale'!$F$109*M23), "", '18. RTSR - Forecast Wholesale'!$F$109*M23) -> 1983.478722 | Q23: =IF(C23="","",IF(C23="$/kWh",IF(G23<>0,O23/G23,),IF(I23<>0,O23/I23,0))) -> 1.36791636

Sheet 22. RTSR Adj Conn. to Forcst WS
A13: The purpose of this sheet is to update the re-aligned RTS Connection Rates to recover forecast wholesale connection costs.
A16: Rate Class | B16: Rate Description | C16: Unit | E16: Adjusted RTSR-Connection | G16: Loss Adjusted Billed kWh | I16: Loss Adjusted Billed kW | K16: Billed Amount | M16: Billed Amount % | O16: Forecast Wholesale Billing | Q16: Proposed RTSR Connection
A19: RESIDENTIAL | B19: Retail Transmission Rate - Transformation Connection Service Rate | C19: $/kWh | E19: 0.003874749555 | G19: 10447879.56 | I19: 0 | K19: =IF(E19="", "", IF(C19="$/kWh", E19*G19, E19*I19)) -> 40482.91667 | M19: =IF(ISERROR(K19/SUM(K19:K100)),"",K19/SUM(K19:K100)) -> 0.4492004944 | O19: =IF(ISERROR('18. RTSR - Forecast Wholesale'!$P$113*M19), "", '18. RTSR - Forecast Wholesale'!$P$113*M19) -> 40482.91667 | Q19: =IF(C19="","",IF(C19="$/kWh",IF(G19<>0,O19/G19,),IF(I19<>0,O19/I19,0))) -> 0.003874749555
A20: GENERAL SERVICE LESS THAN 50 KW | B20: Retail Transmission Rate - Transformation Connection Service Rate | C20: $/kWh | E20: 0.003364914087 | G20: 5587898.182 | I20: 0 | K20: =IF(E20="", "", IF(C20="$/kWh", E20*G20, E20*I20)) -> 18802.79731 | M20: =IF(ISERROR(K20/SUM(K19:K100)),"",K20/SUM(K19:K100)) -> 0.2086367915 | O20: =IF(ISERROR('18. RTSR - Forecast Wholesale'!$P$113*M20), "", '18. RTSR - Forecast Wholesale'!$P$113*M20) -> 18802.79731 | Q20: =IF(C20="","",IF(C20="$/kWh",IF(G20<>0,O20/G20,),IF(I20<>0,O20/I20,0))) -> 0.003364914087
A21: GENERAL SERVICE 50 TO 4,999 KW | B21: Retail Transmission Rate - Line and Transformation Connection Service Rate | C21: $/kW | E21: 1.337910234 | G21: 0 | I21: 19319 | K21: =IF(E21="", "", IF(C21="$/kWh", E21*G21, E21*I21)) -> 25847.08782 | M21: =IF(ISERROR(K21/SUM(K19:K100)),"",K21/SUM(K19:K100)) -> 0.2868005959 | O21: =IF(ISERROR('18. RTSR - Forecast Wholesale'!$P$113*M21), "", '18. RTSR - Forecast Wholesale'!$P$113*M21) -> 25847.08782 | Q21: =IF(C21="","",IF(C21="$/kWh",IF(G21<>0,O21/G21,),IF(I21<>0,O21/I21,0))) -> 1.337910234
A22: GENERAL SERVICE 50 TO 4,999 KW | B22: Retail Transmission Rate - Line and Transformation Connection Service Rate - Interval Metered | C22: $/kW | E22: 1.478624823 | G22: 0 | I22: 2360.19 | K22: =IF(E22="", "", IF(C22="$/kWh", E22*G22, E22*I22)) -> 3489.835522 | M22: =IF(ISERROR(K22/SUM(K19:K100)),"",K22/SUM(K19:K100)) -> 0.03872339176 | O22: =IF(ISERROR('18. RTSR - Forecast Wholesale'!$P$113*M22), "", '18. RTSR - Forecast Wholesale'!$P$113*M22) -> 3489.835522 | Q22: =IF(C22="","",IF(C22="$/kWh",IF(G22<>0,O22/G22,),IF(I22<>0,O22/I22,0))) -> 1.478624823
A23: STREET LIGHTING | B23: Retail Transmission Rate - Line and Transformation Connection Service Rate | C23: $/kW | E23: 1.034150263 | G23: 0 | I23: 1450 | K23: =IF(E23="", "", IF(C23="$/kWh", E23*G23, E23*I23)) -> 1499.517881 | M23: =IF(ISERROR(K23/SUM(K19:K100)),"",K23/SUM(K19:K100)) -> 0.01663872638 | O23: =IF(ISERROR('18. RTSR - Forecast Wholesale'!$P$113*M23), "", '18. RTSR - Forecast Wholesale'!$P$113*M23) -> 1499.517881 | Q23: =IF(C23="","",IF(C23="$/kWh",IF(G23<>0,O23/G23,),IF(I23<>0,O23/I23,0))) -> 1.034150263

Sheet 23. RTSR Final 2015 RTS Rates
A13: This sheet lists proposed RTSRs for all classes. No input required.
A16: Rate Class | B16: Rate Description | C16: Unit | E16: Proposed Retail Transmission Rate
A19: RESIDENTIAL | B19: Retail Transmission Rate - Network Service Rate | C19: $/kWh | E19: 0.005012690926
A20: RESIDENTIAL | B20: Retail Transmission Rate - Transformation Connection Service Rate | C20: $/kWh | E20: 0.003874749555
A21: GENERAL SERVICE LESS THAN 50 KW | B21: Retail Transmission Rate - Network Service Rate | C21: $/kWh | E21: 0.004464427856
A22: GENERAL SERVICE LESS THAN 50 KW | B22: Retail Transmission Rate - Transformation Connection Service Rate | C22: $/kWh | E22: 0.003364914087
A23: GENERAL SERVICE 50 TO 4,999 KW | B23: Retail Transmission Rate - Network Service Rate | C23: $/kW | E23: 1.813732559
A24: GENERAL SERVICE 50 TO 4,999 KW | B24: Retail Transmission Rate - Line and Transformation Connection Service Rate | C24: $/kW | E24: 1.337910234
A25: GENERAL SERVICE 50 TO 4,999 KW | B25: Retail Transmission Rate - Network Service Rate - Interval Metered | C25: $/kW | E25: 1.924168406
A26: GENERAL SERVICE 50 TO 4,999 KW | B26: Retail Transmission Rate - Line and Transformation Connection Service Rate - Interval Metered | C26: $/kW | E26: 1.478624823
A27: STREET LIGHTING | B27: Retail Transmission Rate - Network Service Rate | C27: $/kW | E27: 1.36791636
A28: STREET LIGHTING | B28: Retail Transmission Rate - Line and Transformation Connection Service Rate | C28: $/kW | E28: 1.034150263

Sheet 24. Rev2Cost_GDPIPI
Y1: FALSE | Z1: 0 | AC1: NO
Y2: TRUE
A12: If applicable, please enter any adjustments related to the revenue to cost ratio model into columns C and E. The Price Escalator and Stretch Factor have been set at the 2014 values and will be updated by Board staff at a later date.
A15: Price Escalator | B15: 0.017 | C15: Choose Stretch Factor Group | E15: IV
A16: Productivity Factor | B16: 0 | C16: Associated Stretch Factor Value | E16: =IF(E15="I", 0%, IF(E15="II", 0.15%, IF(E15="III", 0.3%, IF(E15="IV", 0.45%, 0.6%)))) -> 0.0045
A17: Price Cap Index | B17: =B15-B16-E16 -> 0.0125
B19: Current MFC | C19: MFC Adjustment from R/C Model | D19: Current Volumetric Charge | E19: DVR Adjustment from R/C Model | F19: Price Cap Index to be Applied to MFC and DVR | G19: Proposed MFC | H19: Proposed Volumetric Charge
A20: Rate Class
A22: RESIDENTIAL | B22: 34.58 | D22: 0.0137 | F22: =$B$17 -> 0.0125 | G22: =ROUND(SUM(B22,C22)*(1+F22),2) -> 35.01 | H22: =ROUND(SUM(D22,E22)*(1+F22),4) -> 0.0139
A23: GENERAL SERVICE LESS THAN 50 KW | B23: 75.36 | D23: 0.0095 | F23: =$B$17 -> 0.0125 | G23: =ROUND(SUM(B23,C23)*(1+F23),2) -> 76.3 | H23: =ROUND(SUM(D23,E23)*(1+F23),4) -> 0.0096
A24: GENERAL SERVICE 50 TO 4,999 KW | B24: 557.28 | D24: 2.2075 | F24: =$B$17 -> 0.0125 | G24: =ROUND(SUM(B24,C24)*(1+F24),2) -> 564.25 | H24: =ROUND(SUM(D24,E24)*(1+F24),4) -> 2.2351
A25: STREET LIGHTING | B25: 12.08 | D25: 14.8903 | F25: =$B$17 -> 0.0125 | G25: =ROUND(SUM(B25,C25)*(1+F25),2) -> 12.23 | H25: =ROUND(SUM(D25,E25)*(1+F25),4) -> 15.0764
A26: microFIT | B26: 5.4 | G26: =ROUND(SUM(B26,C26)*(1+F26),2) -> 5.4

Sheet 24. hidden (hidden)
A1: Rate Class | B1: MFC Adjustment from R/C Model | C1: DVR Adjustment from R/C Model
A2: RESIDENTIAL | B2: 34.58 | D2: 0.0137
A3: GENERAL SERVICE LESS THAN 50 KW | B3: 75.36 | D3: 0.0095
A4: GENERAL SERVICE 50 TO 4,999 KW | B4: 557.28 | D4: 2.2075
A5: STREET LIGHTING | B5: 12.08 | D5: 14.8903
A6: microFIT | B6: 5.4

Sheet 25. Other Charges & LF
A11: Please enter the following charges as found on your most recent Board-Approved Tariff Schedule. The standard Allowance rates have been included as default entries. If you have different rates, please make the appropriate corrections in the applicable cells below. As well, please enter the current Specific Service Charges below. The standard Retail Service Charges have been entered below. If you have different rates, please make the appropriate corrections in columns A, C or D as applicable (cells are unlocked).
C13: UNIT | D13: RATE
A15: ALLOWANCES
A17: Transformer Allowance for Ownership - per kW of billing demand/month | C17: $/kW | D17: -0.29
A20: Primary Metering Allowance for transformer losses – applied to measured demand and energy | C20: % | D20: -1
A22: SPECIFIC SERVICE CHARGES
A24: APPLICATION
A26: The application of these rates and charges shall be in accordance with the Licence of the Distributor and any Code or Order of the Board, and amendments thereto as approved by the Board, which may be applicable to the administration of this schedule.
A27: No charges to meet the costs of any work or service done or furnished for the purpose of the distribution of electricity shall be made except as permitted by this schedule, unless required by the Distributor’s Licence or a Code or Order of the Board, and amendments thereto as approved by the Board, or as specified herein.
A28: It should be noted that this schedule does not list any charges, assessments or credits that are required by law to be invoiced by a distributor and that are not subject to Board approval, such as the Debt Retirement Charge, the Global Adjustment, the Ontario Clean Energy Benefit and the HST.
A30: Customer Administration
A31: Returned cheque (plus bank charges) | C31: $ | D31: 25
A32: Account set up charge/change of occupancy charge (plus credit agency costs if applicable) | C32: $ | D32: 25
A33: Special meter reads | C33: $ | D33: 25
A67: Non-Payment of Account
A68: Late Payment – per month | C68: % | D68: 1.5
A69: Late Payment – per annum | C69: % | D69: 19.56
A70: Collection of account charge – no disconnection | C70: $ | D70: 25
A71: Disconnect/Reconnect at meter – during regular hours | C71: $ | D71: 28
A72: Disconnect/Reconnect Charge – At Meter – After Hours | C72: $ | D72: 315
A73: Disconnect/Reconnect at pole – during regular hours | C73: $ | D73: 28
A74: Disconnect/Reconnect at pole – after regular hours | C74: $ | D74: 315
A116: RETAIL SERVICE CHARGES (if applicable)
A118: The application of these rates and charges shall be in accordance with the Licence of the Distributor and any Code or Order of the Board, and amendments thereto as approved by the Board, which may be applicable to the administration of this schedule.
A120: No rates and charges for the distribution of electricity and charges to meet the costs of any work or service done or furnished for the purpose of the distribution of electricity shall be made except as permitted by this schedule, unless required by the Distributor’s Licence or a Code or Order of the Board, and amendments thereto as approved by the Board, or as specified herein.
A122: Unless specifically noted, this schedule does not contain any charges for the electricity commodity, be it under the Regulated Price Plan, a contract with a retailer or the wholesale market price, as applicable.
A124: It should be noted that this schedule does not list any charges, assessments, or credits that are required by law to be invoiced by a distributor and that are not subject to Board approval, such as the Debt Retirement Charge, the Global Adjustment, the Ontario Clean Energy Benefit and the HST.
A126: Retail Service Charges refer to services provided by a distributor to retailers or customers related to the supply of competitive electricity.
A128: One-time charge, per retailer, to establish the service agreement between the distributor and the retailer | C128: $ | D128: 100
A129: Monthly Fixed Charge, per retailer | C129: $ | D129: 20
A130: Monthly Variable Charge, per customer, per retailer | C130: $/cust. | D130: 0.5
A131: Distributor-consolidated billing monthly charge, per customer, per retailer | C131: $/cust. | D131: 0.3
A132: Retailer-consolidated billing monthly credit, per customer, per retailer | C132: $/cust. | D132: -0.3
A133: Service Transaction Requests (STR)
A134: Request fee, per request, applied to the requesting party | C134: $ | D134: 0.25
A135: Processing fee, per request, applied to the requesting party | C135: $ | D135: 0.5
A136: Request for customer information as outlined in Section 10.6.3 and Chapter 11 of the Retail
A137: Settlement Code directly to retailers and customers, if not delivered electronically through the
A138: Electronic Business Transaction (EBT) system, applied to the requesting party
A139: Up to twice a year | C139: $ | D139: no charge
A140: More than twice a year, per request (plus incremental delivery costs) | C140: $ | D140: 2
A143: LOSS FACTORS
A145: If the distributor is not capable of prorating changed loss factors jointly with distribution rates, the revised loss factors will be implemented upon the first subsequent billing for each billing cycle.
A148: Total Loss Factor – Secondary Metered Customer < 5,000 kW | D148: 1.0778 | H148: TLF_Secondary_LT_5000kW
A149: Distribution Loss Factor - Primary Metered Customer < 5,000 kW | D149: 1.0671 | H149: TLF_Primary_LT_5000kW

Sheet 26. Proposed Rates
Z1: 3
L5: =ROUND(LEN(B5), -2) / 100 -> 0
L9: =ROUND(LEN(B9), -2) / 100 -> 0
B12: In the Green Cells below, enter any proposed rate riders that are not already included in this model (e.g: ICM rate riders). In column B, the rate rider descriptions must begin with "Rate Rider for". In column C, choose the associated unit from the drop-down menu. In column D, enter the rate. All rate riders with a "$" unit will be rounded to 2 decimal places and all others will be rounded to 4 decimal places.
A20: RESIDENTIAL | B20: RESIDENTIAL SERVICE CLASSIFICATION | C20: Unit | D20: Rate
A21: RESIDENTIAL
A22: RESIDENTIAL
A23: RESIDENTIAL
A24: RESIDENTIAL
A25: RESIDENTIAL
A26: RESIDENTIAL
A27: RESIDENTIAL
A28: RESIDENTIAL
A29: RESIDENTIAL
A30: RESIDENTIAL
A32: GENERAL SERVICE LESS THAN 50 KW | B32: GENERAL SERVICE LESS THAN 50 KW SERVICE CLASSIFICATION | C32: Unit | D32: Rate
A33: GENERAL SERVICE LESS THAN 50 KW
A34: GENERAL SERVICE LESS THAN 50 KW
A35: GENERAL SERVICE LESS THAN 50 KW
A36: GENERAL SERVICE LESS THAN 50 KW
A37: GENERAL SERVICE LESS THAN 50 KW
A38: GENERAL SERVICE LESS THAN 50 KW
A39: GENERAL SERVICE LESS THAN 50 KW
A40: GENERAL SERVICE LESS THAN 50 KW
A41: GENERAL SERVICE LESS THAN 50 KW
A42: GENERAL SERVICE LESS THAN 50 KW
A44: GENERAL SERVICE 50 TO 4,999 KW | B44: GENERAL SERVICE 50 TO 4,999 KW SERVICE CLASSIFICATION | C44: Unit | D44: Rate
A45: GENERAL SERVICE 50 TO 4,999 KW
A46: GENERAL SERVICE 50 TO 4,999 KW
A47: GENERAL SERVICE 50 TO 4,999 KW
A48: GENERAL SERVICE 50 TO 4,999 KW
A49: GENERAL SERVICE 50 TO 4,999 KW
A50: GENERAL SERVICE 50 TO 4,999 KW
A51: GENERAL SERVICE 50 TO 4,999 KW
A52: GENERAL SERVICE 50 TO 4,999 KW
A53: GENERAL SERVICE 50 TO 4,999 KW
A54: GENERAL SERVICE 50 TO 4,999 KW
A56: STREET LIGHTING | B56: STREET LIGHTING SERVICE CLASSIFICATION | C56: Unit | D56: Rate
A57: STREET LIGHTING
A58: STREET LIGHTING
A59: STREET LIGHTING
A60: STREET LIGHTING
A61: STREET LIGHTING
A62: STREET LIGHTING
A63: STREET LIGHTING
A64: STREET LIGHTING
A65: STREET LIGHTING
A66: STREET LIGHTING
A68: microFIT | B68: microFIT SERVICE CLASSIFICATION | C68: Unit | D68: Rate
A69: microFIT
A70: microFIT
A71: microFIT
A72: microFIT
A73: microFIT
A74: microFIT
A75: microFIT
A76: microFIT
A77: microFIT
A78: microFIT
B82: PROPOSED MONTHLY RATES AND CHARGES - Regulatory Component
A84: Wholesale Market Service Rate | B84: Wholesale Market Service Rate | C84: $/kWh | D84: 0.0044
A85: Rural or Remote Electricity Rate Protection Charge (RRRP) | B85: Rural or Remote Electricity Rate Protection Charge (RRRP) | C85: $/kWh | D85: 0.0013
A86: Standard Supply Service - Administrative Charge (if applicable) | B86: Standard Supply Service - Administrative Charge (if applicable) | C86: $ | D86: 0.25

Sheet 26. Hidden (hidden)
A1: RESIDENTIAL | B1: RESIDENTIAL SERVICE CLASSIFICATION | C1: Unit | D1: Rate
A2: RESIDENTIAL
A3: RESIDENTIAL
A4: RESIDENTIAL
A5: RESIDENTIAL
A6: RESIDENTIAL
A7: RESIDENTIAL
A8: RESIDENTIAL
A9: RESIDENTIAL
A10: RESIDENTIAL
A11: RESIDENTIAL
A13: GENERAL SERVICE LESS THAN 50 KW | B13: GENERAL SERVICE LESS THAN 50 KW SERVICE CLASSIFICATION | C13: Unit | D13: Rate
A14: GENERAL SERVICE LESS THAN 50 KW
A15: GENERAL SERVICE LESS THAN 50 KW
A16: GENERAL SERVICE LESS THAN 50 KW
A17: GENERAL SERVICE LESS THAN 50 KW
A18: GENERAL SERVICE LESS THAN 50 KW
A19: GENERAL SERVICE LESS THAN 50 KW
A20: GENERAL SERVICE LESS THAN 50 KW
A21: GENERAL SERVICE LESS THAN 50 KW
A22: GENERAL SERVICE LESS THAN 50 KW
A23: GENERAL SERVICE LESS THAN 50 KW
A25: GENERAL SERVICE 50 TO 4,999 KW | B25: GENERAL SERVICE 50 TO 4,999 KW SERVICE CLASSIFICATION | C25: Unit | D25: Rate
A26: GENERAL SERVICE 50 TO 4,999 KW
A27: GENERAL SERVICE 50 TO 4,999 KW
A28: GENERAL SERVICE 50 TO 4,999 KW
A29: GENERAL SERVICE 50 TO 4,999 KW
A30: GENERAL SERVICE 50 TO 4,999 KW
A31: GENERAL SERVICE 50 TO 4,999 KW
A32: GENERAL SERVICE 50 TO 4,999 KW
A33: GENERAL SERVICE 50 TO 4,999 KW
A34: GENERAL SERVICE 50 TO 4,999 KW
A35: GENERAL SERVICE 50 TO 4,999 KW
A37: STREET LIGHTING | B37: STREET LIGHTING SERVICE CLASSIFICATION | C37: Unit | D37: Rate
A38: STREET LIGHTING
A39: STREET LIGHTING
A40: STREET LIGHTING
A41: STREET LIGHTING
A42: STREET LIGHTING
A43: STREET LIGHTING
A44: STREET LIGHTING
A45: STREET LIGHTING
A46: STREET LIGHTING
A47: STREET LIGHTING
A49: microFIT | B49: microFIT SERVICE CLASSIFICATION | C49: Unit | D49: Rate
A50: microFIT
A51: microFIT
A52: microFIT
A53: microFIT
A54: microFIT
A55: microFIT
A56: microFIT
A57: microFIT
A58: microFIT
A59: microFIT
B63: PROPOSED MONTHLY RATES AND CHARGES - Regulatory Component
A65: Wholesale Market Service Rate | B65: Wholesale Market Service Rate | C65: $/kWh | D65: 0.0044
A66: Rural or Remote Electricity Rate Protection Charge (RRRP) | B66: Rural or Remote Electricity Rate Protection Charge (RRRP) | C66: $/kWh | D66: 0.0013
A67: Standard Supply Service - Administrative Charge (if applicable) | B67: Standard Supply Service - Administrative Charge (if applicable) | C67: $ | D67: 0.25

Sheet 27. Final Tariff Schedule
A1: hidden column | B1: ='1. Information Sheet'!F14 -> Atikokan Hydro Inc. | F1: hidden column | Z1: 3
A2: for rate classes | B2: TARIFF OF RATES AND CHARGES | F2: for proposed
B3: ="Effective and Implementation Date " & TEXT('1. Information Sheet'!F26, "mmmm dd, yyyy") -> Effective and Implementation Date May 01, 2015 | F3: labeliing
B5: This schedule supersedes and replaces all previously
B6: approved schedules of Rates, Charges and Loss Factors | L6: =ROUND(LEN(B6), -2) / 100 -> 1
B7: =IF(LEN('1. Information Sheet'!F18)=0, "Please enter your assigned EB# on Sheet 1", '1. Information Sheet'!F18) -> ED:2014-0056
B9: RESIDENTIAL SERVICE CLASSIFICATION
B11: This classification applies to an account taking electricity at 750 volts or less where the electricity is used exclusively in a separate metered living accommodation. Customers shall be residing in single-dwelling units that consist of a detached house or one unit of a semi-detached, duplex, triplex or quadruplex house, with a residential zoning. Separately metered dwellings within a town house complex or apartment building also qualify as residential customers. All customers are single-phase. Further servicing details are available in the distributor’s Conditions of Service. This classification applies to an account taking electricity at 750 volts or less where the electricity is used exclusively in a separate metered living accommodation. Customers shall be residing in single-dwelling units that consist of a detached house or one unit of a semi-detached, duplex, triplex or quadruplex house, with a residential zoning. Separately metered dwellings within a town house complex or apartment building also qualify as residential customers. All customers are single-phase. Further servicing details are available in the distributor’s Conditions of Service. | L11: =ROUND(LEN(B11), -2) / 100 -> 12
B13: APPLICATION
B15: The application of these rates and charges shall be in accordance with the Licence of the Distributor and any Code or Order of the Board, and amendments thereto as approved by the Board, which may be applicable to the administration of this schedule. | L15: =ROUND(LEN(B15), -2) / 100 -> 3
B17: No rates and charges for the distribution of electricity and charges to meet the costs of any work or service done or furnished for the purpose of the distribution of electricity shall be made except as permitted by this schedule, unless required by the Distributor's Licence or a Code or Order of the Board, and amendments thereto as approved by the Board, or as specified herein. | L17: =ROUND(LEN(B17), -2) / 100 -> 4
B19: Unless specifically noted, this schedule does not contain any charges for the electricity commodity, be it under the Regulated Price Plan, a contract with a retailer or the wholesale market price, as applicable. In addition, the charges in the MONTHLY RATES AND CHARGES - Regulatory Component of this schedule do not apply to a customer that is an embedded wholesale market participant. | L19: =ROUND(LEN(B19), -2) / 100 -> 4
B21: It should be noted that this schedule does not list any charges or assessments that are required by law to be charged by a distributor and that are not subject to Board approval, such as the Debt Retirement Charge, charges for Ministry of Energy Conservation and Renewable Energy Program, the Provincial Benefit and any applicable taxes. | L21: =ROUND(LEN(B21), -2) / 100 -> 3
B23: MONTHLY RATES AND CHARGES - Delivery Component
A25: RESIDENTIAL | B25: Service Charge | D25: $ | E25: 35.01 | K25: 1_P_MSC
A26: RESIDENTIAL | B26: Rate Rider for Disposition of Residual Historical Smart Meter Costs - effective until August 31, 2015 | D26: $ | E26: 0.48 | K26: 1_P_MSC_Rate_Rider_1
A27: RESIDENTIAL | B27: Rate Rider for Disposition of Residual Incremental Historical Smart Meter Costs - effective until August 31, 2015 | D27: $ | E27: 2.79 | K27: 1_P_MSC_Rate_Rider_2
A28: RESIDENTIAL | B28: Rate Rider for Recovery of Stranded Meter Assets - effective until August 31, 2015 | D28: $ | E28: 0.39 | K28: 1_P_MSC_Rate_Rider_3
A29: RESIDENTIAL | B29: Rate Rider for Recovery of Smart Meter Incremental Revenue Requirement - in effect until the effective date of the next cost of service-based rate order | D29: $ | E29: 1.06 | K29: 1_P_MSC_Rate_Rider_4
A30: RESIDENTIAL | B30: Rate Rider for Smart Metering Entity Charge - effective until October 31, 2018 | D30: $ | E30: 0.79 | K30: 1_P_SMEC
A31: RESIDENTIAL | B31: Distribution Volumetric Rate | D31: $/kWh | E31: 0.0139 | K31: 1_P_VC_1
A32: RESIDENTIAL | B32: Rate Rider for Deferral/Variance Account (2012) - effective unitl April 30, 2016 | D32: $/kWh | E32: 0.0009 | K32: 1_P_VC_DEFVAR_kWh_1
A33: RESIDENTIAL | B33: Rate Rider for Disposition of Global Adjustment Sub-Account (2012) - effective until April 30, 2016 Applicable only for Non-RPP Customers | D33: $/kWh | E33: 0.0004 | K33: 1_P_VC_GA_Rate_Rider_kWh_1
A34: RESIDENTIAL | B34: Rate Rider for Disposition of Deferral/Variance Accounts (2015) - effective until April 30, 2019 | D34: $/kWh | E34: -0.0019 | K34: 1_P_VC_DEFVAR_kWh_2
A35: RESIDENTIAL | B35: Retail Transmission Rate - Network Service Rate | D35: $/kWh | E35: 0.005012690926 | K35: 1_P_RTSR_Network
A36: RESIDENTIAL | B36: Retail Transmission Rate - Transformation Connection Service Rate | D36: $/kWh | E36: 0.003874749555 | K36: 1_P_RTSR_Transformer_Connection
A37: RESIDENTIAL
A38: RESIDENTIAL | B38: MONTHLY RATES AND CHARGES - Regulatory Component
A39: RESIDENTIAL
A40: RESIDENTIAL | B40: Wholesale Market Service Rate | D40: $/kWh | E40: 0.0044 | K40: 1_P_WMSR
A41: RESIDENTIAL | B41: Rural or Remote Electricity Rate Protection Charge (RRRP) | D41: $/kWh | E41: 0.0013 | K41: 1_P_RRPC
A42: RESIDENTIAL | B42: Standard Supply Service - Administrative Charge (if applicable) | D42: $ | E42: 0.25 | K42: 1_P_SSS
B44: GENERAL SERVICE LESS THAN 50 KW SERVICE CLASSIFICATION
B46: This classification applies to a non-residential account taking electricity at 750 volts or less whose average monthly maximum demand is less than, or is forecast to be less than, 50 kW. Further servicing details are available in the distributor's Conditions of Service | L46: =ROUND(LEN(B46), -2) / 100 -> 3
B48: APPLICATION
B50: The application of these rates and charges shall be in accordance with the Licence of the Distributor and any Code or Order of the Board, and amendments thereto as approved by the Board, which may be applicable to the administration of this schedule. | L50: =ROUND(LEN(B50), -2) / 100 -> 3
B52: No rates and charges for the distribution of electricity and charges to meet the costs of any work or service done or furnished for the purpose of the distribution of electricity shall be made except as permitted by this schedule, unless required by the Distributor's Licence or a Code or Order of the Board, and amendments thereto as approved by the Board, or as specified herein. | L52: =ROUND(LEN(B52), -2) / 100 -> 4
B54: Unless specifically noted, this schedule does not contain any charges for the electricity commodity, be it under the Regulated Price Plan, a contract with a retailer or the wholesale market price, as applicable. In addition, the charges in the MONTHLY RATES AND CHARGES - Regulatory Component of this schedule do not apply to a customer that is an embedded wholesale market participant. | L54: =ROUND(LEN(B54), -2) / 100 -> 4
B56: It should be noted that this schedule does not list any charges or assessments that are required by law to be charged by a distributor and that are not subject to Board approval, such as the Debt Retirement Charge, charges for Ministry of Energy Conservation and Renewable Energy Program, the Provincial Benefit and any applicable taxes. | L56: =ROUND(LEN(B56), -2) / 100 -> 3
B58: MONTHLY RATES AND CHARGES - Delivery Component
A60: GENERAL SERVICE LESS THAN 50 KW | B60: Service Charge | D60: $ | E60: 76.3 | K60: 2_P_MSC
A61: GENERAL SERVICE LESS THAN 50 KW | B61: Rate Rider for Disposition of Residual Historical Smart Meter Costs - effective until August 31, 2015 | D61: $ | E61: 0.78 | K61: 2_P_MSC_Rate_Rider_1
A62: GENERAL SERVICE LESS THAN 50 KW | B62: Rate Rider for Disposition of Residual Incremental Historical Smart Meter Costs - effective until August 31, 2015 | D62: $ | E62: 3.21 | K62: 2_P_MSC_Rate_Rider_2
A63: GENERAL SERVICE LESS THAN 50 KW | B63: Rate Rider for Recovery of Stranded Meter Assets - effective until August 31, 2015 | D63: $ | E63: 0.39 | K63: 2_P_MSC_Rate_Rider_3
A64: GENERAL SERVICE LESS THAN 50 KW | B64: Rate Rider for Recovery of Smart Meter Incremental Revenue Requirement - in effect until the effective date of the next cost of service-based rate order | D64: $ | E64: 1.39 | K64: 2_P_MSC_Rate_Rider_4
A65: GENERAL SERVICE LESS THAN 50 KW | B65: Rate Rider for Smart Metering Entity Charge - effective until October 31, 2018 | D65: $ | E65: 0.79 | K65: 2_P_SMEC
A66: GENERAL SERVICE LESS THAN 50 KW | B66: Distribution Volumetric Rate | D66: $/kWh | E66: 0.0096 | K66: 2_P_VC_1
A67: GENERAL SERVICE LESS THAN 50 KW | B67: Rate Rider for Deferral/Variance Account Disposition (2012) - effective until April 30, 2016 | D67: $/kWh | E67: 0.0007 | K67: 2_P_VC_DEFVAR_kWh_1
A68: GENERAL SERVICE LESS THAN 50 KW | B68: Rate Rider for Disposition of Global Adjustment Sub-Account (2012) - effective until April 30, 2016 Applicable only for Non-RPP Customers | D68: $/kWh | E68: 0.0004 | K68: 2_P_VC_GA_Rate_Rider_kWh_1
A69: GENERAL SERVICE LESS THAN 50 KW | B69: Rate Rider for Tax Change (2015) - effective until April 29, 2016 | D69: $/kWh | E69: 0.0037 | K69: 2_P_VC_Rate_Rider_kWh_2
A70: GENERAL SERVICE LESS THAN 50 KW | B70: Rate Rider for Disposition of Deferral/Variance Accounts (2015) - effective until April 30, 2019 | D70: $/kWh | E70: -0.0019 | K70: 2_P_VC_DEFVAR_kWh_2
A71: GENERAL SERVICE LESS THAN 50 KW | B71: Rate Rider for Disposition of Deferral/Variance Accounts (2015) - effective until April 30, 2019 Applicable only for Non RPP Customers | D71: $/kWh | E71: 0.0097 | K71: 2_P_VC_DEFVAR_kWh_3
A72: GENERAL SERVICE LESS THAN 50 KW | B72: Retail Transmission Rate - Network Service Rate | D72: $/kWh | E72: 0.004464427856 | K72: 2_P_RTSR_Network
A73: GENERAL SERVICE LESS THAN 50 KW | B73: Retail Transmission Rate - Transformation Connection Service Rate | D73: $/kWh | E73: 0.003364914087 | K73: 2_P_RTSR_Transformer_Connection
A74: GENERAL SERVICE LESS THAN 50 KW
A75: GENERAL SERVICE LESS THAN 50 KW | B75: MONTHLY RATES AND CHARGES - Regulatory Component
A76: GENERAL SERVICE LESS THAN 50 KW
A77: GENERAL SERVICE LESS THAN 50 KW | B77: Wholesale Market Service Rate | D77: $/kWh | E77: 0.0044 | K77: 2_P_WMSR
A78: GENERAL SERVICE LESS THAN 50 KW | B78: Rural or Remote Electricity Rate Protection Charge (RRRP) | D78: $/kWh | E78: 0.0013 | K78: 2_P_RRPC
A79: GENERAL SERVICE LESS THAN 50 KW | B79: Standard Supply Service - Administrative Charge (if applicable) | D79: $ | E79: 0.25 | K79: 2_P_SSS
B81: GENERAL SERVICE 50 TO 4,999 KW SERVICE CLASSIFICATION
B83: This classification applies to a non residential account whose average monthly maxiumum demand used for billing purposes is equal to or greater than, or is forecast to be equal to or greater than, 50kW but less than 5,000kW. Further servicing details are available in the distributor's Conditions of Service. | L83: =ROUND(LEN(B83), -2) / 100 -> 3
B85: APPLICATION
B87: The application of these rates and charges shall be in accordance with the Licence of the Distributor and any Code or Order of the Board, and amendments thereto as approved by the Board, which may be applicable to the administration of this schedule. | L87: =ROUND(LEN(B87), -2) / 100 -> 3
B89: No rates and charges for the distribution of electricity and charges to meet the costs of any work or service done or furnished for the purpose of the distribution of electricity shall be made except as permitted by this schedule, unless required by the Distributor's Licence or a Code or Order of the Board, and amendments thereto as approved by the Board, or as specified herein. | L89: =ROUND(LEN(B89), -2) / 100 -> 4
B91: Unless specifically noted, this schedule does not contain any charges for the electricity commodity, be it under the Regulated Price Plan, a contract with a retailer or the wholesale market price, as applicable. In addition, the charges in the MONTHLY RATES AND CHARGES - Regulatory Component of this schedule do not apply to a customer that is an embedded wholesale market participant. | L91: =ROUND(LEN(B91), -2) / 100 -> 4
B93: It should be noted that this schedule does not list any charges or assessments that are required by law to be charged by a distributor and that are not subject to Board approval, such as the Debt Retirement Charge, charges for Ministry of Energy Conservation and Renewable Energy Program, the Provincial Benefit and any applicable taxes. | L93: =ROUND(LEN(B93), -2) / 100 -> 3
B95: MONTHLY RATES AND CHARGES - Delivery Component
A97: GENERAL SERVICE 50 TO 4,999 KW | B97: Service Charge | D97: $ | E97: 564.25 | K97: 3_P_MSC
A98: GENERAL SERVICE 50 TO 4,999 KW | B98: Rate Rider for Disposition of Residual Historical Smart Meter Costs - effective until August 31, 2015 | D98: $ | E98: 3.8 | K98: 3_P_MSC_Rate_Rider_1
A99: GENERAL SERVICE 50 TO 4,999 KW | B99: Rate Rider for Disposition of Residual Incremental Historical Smart Meter Costs - effective until August 31, 2015 | D99: $ | E99: 6.12 | K99: 3_P_MSC_Rate_Rider_2
A100: GENERAL SERVICE 50 TO 4,999 KW | B100: Rate Rider for Recovery of Stranded Meter Assets - effective until August 31, 2015 | D100: $ | E100: 0.39 | K100: 3_P_MSC_Rate_Rider_3
A101: GENERAL SERVICE 50 TO 4,999 KW | B101: Rate Rider for Recovery of Smart Meter Incremental Revenue Requirement - in effect until the effective date of the next cost of service-based rate order | D101: $ | E101: 3.71 | K101: 3_P_MSC_Rate_Rider_4
A102: GENERAL SERVICE 50 TO 4,999 KW | B102: Distribution Volumetric Rate | D102: $/kW | E102: 2.2351 | K102: 3_P_VC_1
A103: GENERAL SERVICE 50 TO 4,999 KW | B103: Rate Rider for Disposition of Deferral/Variance Accounts (2012) - effective until April 30, 2016 | D103: $/kW | E103: 0.1984 | K103: 3_P_VC_DEFVAR_kW_1
A104: GENERAL SERVICE 50 TO 4,999 KW | B104: Rider for Global Adjustment Sub-Account Disposition (2012) - effective until April 30, 2016 Applicable only for Non-RPP Customers | D104: $/kW | E104: 0.141 | K104: 3_P_VC_GA_Rate_Rider_kW_1
A105: GENERAL SERVICE 50 TO 4,999 KW | B105: Rate Rider for Tax Change (2015) - effective until April 29, 2016 | D105: $/kW | E105: 0.0189 | K105: 3_P_VC_Rate_Rider_kW_2
A106: GENERAL SERVICE 50 TO 4,999 KW | B106: Rate Rider for Disposition of Deferral/Variance Accounts (2015) - effective until April 30, 2019 | D106: $/kW | E106: -0.704 | K106: 3_P_VC_DEFVAR_kW_2
A107: GENERAL SERVICE 50 TO 4,999 KW | B107: Rate Rider for Disposition of Deferral/Variance Accounts (2015) - effective until April 30, 2019 Applicable only for Non RPP Customers | D107: $/kW | E107: 3.6538 | K107: 3_P_VC_DEFVAR_kW_3
A108: GENERAL SERVICE 50 TO 4,999 KW | B108: Rate Rider for Recovery of Lost Revenue Adjustment Mechanism Variance Account (LRAMVA) (2015) - effective until April 30, 2016 | D108: $/kW | E108: 0.0216 | K108: 3_P_VC_Rate_Rider_kW_5
A109: GENERAL SERVICE 50 TO 4,999 KW | B109: Retail Transmission Rate - Network Service Rate | D109: $/kW | E109: 1.813732559 | K109: 3_P_RTSR_Network
A110: GENERAL SERVICE 50 TO 4,999 KW | B110: Retail Transmission Rate - Line and Transformation Connection Service Rate | D110: $/kW | E110: 1.337910234 | K110: 3_P_RTSR_Connection
A111: GENERAL SERVICE 50 TO 4,999 KW | B111: Retail Transmission Rate - Network Service Rate - Interval Metered | D111: $/kW | E111: 1.924168406 | K111: 3_P_RTSR_Network_Interval
A112: GENERAL SERVICE 50 TO 4,999 KW | B112: Retail Transmission Rate - Line and Transformation Connection Service Rate - Interval Metered | D112: $/kW | E112: 1.478624823 | K112: 3_P_RTSR_Connection_Interval
A113: GENERAL SERVICE 50 TO 4,999 KW
A114: GENERAL SERVICE 50 TO 4,999 KW | B114: MONTHLY RATES AND CHARGES - Regulatory Component
A115: GENERAL SERVICE 50 TO 4,999 KW
A116: GENERAL SERVICE 50 TO 4,999 KW | B116: Wholesale Market Service Rate | D116: $/kWh | E116: 0.0044 | K116: 3_P_WMSR
A117: GENERAL SERVICE 50 TO 4,999 KW | B117: Rural or Remote Electricity Rate Protection Charge (RRRP) | D117: $/kWh | E117: 0.0013 | K117: 3_P_RRPC
A118: GENERAL SERVICE 50 TO 4,999 KW | B118: Standard Supply Service - Administrative Charge (if applicable) | D118: $ | E118: 0.25 | K118: 3_P_SSS
B120: STREET LIGHTING SERVICE CLASSIFICATION
B122: This classification applies to an account for roadway lighting with a Municipality, Regional Municipality, Ministry of Transportation and private roadway lighting, controlled by photo cells. The consumption for these customers will be based on the calculated connected load times the required lighting times established in the approved OEB street lighting load shape template. Further servicing details are available in the distributor's Conditions of Service. | L122: =ROUND(LEN(B122), -2) / 100 -> 5
B124: APPLICATION
B126: The application of these rates and charges shall be in accordance with the Licence of the Distributor and any Code or Order of the Board, and amendments thereto as approved by the Board, which may be applicable to the administration of this schedule. | L126: =ROUND(LEN(B126), -2) / 100 -> 3
B128: No rates and charges for the distribution of electricity and charges to meet the costs of any work or service done or furnished for the purpose of the distribution of electricity shall be made except as permitted by this schedule, unless required by the Distributor's Licence or a Code or Order of the Board, and amendments thereto as approved by the Board, or as specified herein. | L128: =ROUND(LEN(B128), -2) / 100 -> 4
B130: Unless specifically noted, this schedule does not contain any charges for the electricity commodity, be it under the Regulated Price Plan, a contract with a retailer or the wholesale market price, as applicable. In addition, the charges in the MONTHLY RATES AND CHARGES - Regulatory Component of this schedule do not apply to a customer that is an embedded wholesale market participant. | L130: =ROUND(LEN(B130), -2) / 100 -> 4
B132: It should be noted that this schedule does not list any charges or assessments that are required by law to be charged by a distributor and that are not subject to Board approval, such as the Debt Retirement Charge, charges for Ministry of Energy Conservation and Renewable Energy Program, the Provincial Benefit and any applicable taxes. | L132: =ROUND(LEN(B132), -2) / 100 -> 3
B134: MONTHLY RATES AND CHARGES - Delivery Component
A136: STREET LIGHTING | B136: Service Charge (per connection) | D136: $ | E136: 12.23 | K136: 4_P_MSC
A137: STREET LIGHTING | B137: Distribution Volumetric Rate | D137: $/kW | E137: 15.0764 | K137: 4_P_VC_1
A138: STREET LIGHTING | B138: Rate Rider for Disposition of Deferral/Variance Accounts (2012) - effective until April 30, 2016 | D138: $/kW | E138: 1.4517 | K138: 4_P_VC_DEFVAR_kW_1
A139: STREET LIGHTING | B139: Rider for Global Adjustment Sub-Account Disposition (2012) - effective until April 30, 2016 Applicable only for Non-RPP Customers | D139: $/kW | E139: 0.1329 | K139: 4_P_VC_GA_Rate_Rider_kW_1
A140: STREET LIGHTING | B140: Rate Rider for Disposition of Deferral/Variance Accounts (2015) - effective until April 30, 2019 | D140: $/kW | E140: -0.6634 | K140: 4_P_VC_DEFVAR_kW_2
A141: STREET LIGHTING | B141: Rate Rider for Disposition of Deferral/Variance Accounts (2015) - effective until April 30, 2019 Applicable only for Non RPP Customers | D141: $/kW | E141: 3.4429 | K141: 4_P_VC_DEFVAR_kW_3
A142: STREET LIGHTING | B142: Rate Rider for Recovery of Lost Revenue Adjustment Mechanism Variance Account (LRAMVA) (2015) - effective until April 30, 2016 | D142: $/kW | E142: 0.0008 | K142: 4_P_VC_Rate_Rider_kW_4
A143: STREET LIGHTING | B143: Retail Transmission Rate - Network Service Rate | D143: $/kW | E143: 1.36791636 | K143: 4_P_RTSR_Network
A144: STREET LIGHTING | B144: Retail Transmission Rate - Line and Transformation Connection Service Rate | D144: $/kW | E144: 1.034150263 | K144: 4_P_RTSR_Connection
A145: STREET LIGHTING
A146: STREET LIGHTING | B146: MONTHLY RATES AND CHARGES - Regulatory Component
A147: STREET LIGHTING
A148: STREET LIGHTING | B148: Wholesale Market Service Rate | D148: $/kWh | E148: 0.0044 | K148: 4_P_WMSR
A149: STREET LIGHTING | B149: Rural or Remote Electricity Rate Protection Charge (RRRP) | D149: $/kWh | E149: 0.0013 | K149: 4_P_RRPC
A150: STREET LIGHTING | B150: Standard Supply Service - Administrative Charge (if applicable) | D150: $ | E150: 0.25 | K150: 4_P_SSS
B152: MICROFIT SERVICE CLASSIFICATION
B154: This classification applies to an electricity generation facility contracted under the Ontario Power Authority's microFIT program and connected to the distributor's distribution system. Further servicing details are available in the distributor's Conditions of Service. | L154: =ROUND(LEN(B154), -2) / 100 -> 3
B156: APPLICATION
B158: The application of these rates and charges shall be in accordance with the Licence of the Distributor and any Code or Order of the Board, and amendments thereto as approved by the Board, which may be applicable to the administration of this schedule. | L158: =ROUND(LEN(B158), -2) / 100 -> 3
B160: No rates and charges for the distribution of electricity and charges to meet the costs of any work or service done or furnished for the purpose of the distribution of electricity shall be made except as permitted by this schedule, unless required by the Distributor's Licence or a Code or Order of the Board, and amendments thereto as approved by the Board, or as specified herein. | L160: =ROUND(LEN(B160), -2) / 100 -> 4
B162: Unless specifically noted, this schedule does not contain any charges for the electricity commodity, be it under the Regulated Price Plan, a contract with a retailer or the wholesale market price, as applicable. In addition, the charges in the MONTHLY RATES AND CHARGES - Regulatory Component of this schedule do not apply to a customer that is an embedded wholesale market participant. | L162: =ROUND(LEN(B162), -2) / 100 -> 4
B164: It should be noted that this schedule does not list any charges or assessments that are required by law to be charged by a distributor and that are not subject to Board approval, such as the Debt Retirement Charge, charges for Ministry of Energy Conservation and Renewable Energy Program, the Provincial Benefit and any applicable taxes. | L164: =ROUND(LEN(B164), -2) / 100 -> 3
B166: MONTHLY RATES AND CHARGES - Delivery Component
A168: MICROFIT | B168: Service Charge | D168: $ | E168: 5.4 | K168: 5_P_MSC
A169: MICROFIT
B170: ALLOWANCES
A171: MICROFIT
B172: Transformer Allowance for Ownership - per kW of billing demand/month | D172: $/kW | E172: -0.29
B173: Primary Metering Allowance for transformer losses – applied to measured demand and energy | D173: % | E173: -1
B175: SPECIFIC SERVICE CHARGES
B177: The application of these rates and charges shall be in accordance with the Licence of the Distributor and any Code or Order of the Board, and amendments thereto as approved by the Board, which may be applicable to the administration of this schedule.
B179: No charges to meet the costs of any work or service done or furnished for the purpose of the distribution of electricity shall be made except as permitted by this schedule, unless required by the Distributor’s Licence or a Code or Order of the Board, and amendments thereto as approved by the Board, or as specified herein.
B181: It should be noted that this schedule does not list any charges, assessments, or credits that are required by law to be invoiced by a distributor and that are not subject to Board approval, such as the Debt Retirement Charge, the Global Adjustment, the Ontario Clean Energy Benefit and the HST.
B183: Customer Administration
B184: Returned cheque (plus bank charges) | D184: $ | E184: 25
B185: Account set up charge/change of occupancy charge (plus credit agency costs if applicable) | D185: $ | E185: 25
B186: Special meter reads | D186: $ | E186: 25
B189: Non-Payment of Account
B190: Late Payment – per month | D190: % | E190: 1.5
B191: Late Payment – per annum | D191: % | E191: 19.56
B192: Collection of account charge – no disconnection | D192: $ | E192: 25
B193: Disconnect/Reconnect at meter – during regular hours | D193: $ | E193: 28
B194: Disconnect/Reconnect Charge – At Meter – After Hours | D194: $ | E194: 315
B195: Disconnect/Reconnect at pole – during regular hours | D195: $ | E195: 28
B196: Disconnect/Reconnect at pole – after regular hours | D196: $ | E196: 315
B199: RETAIL SERVICE CHARGES (if applicable)
B201: The application of these rates and charges shall be in accordance with the Licence of the Distributor and any Code or Order of the Board, and amendments thereto as approved by the Board, which may be applicable to the administration of this schedule.
B203: No rates and charges for the distribution of electricity and charges to meet the costs of any work or service done or furnished for the purpose of the distribution of electricity shall be made except as permitted by this schedule, unless required by the Distributor’s Licence or a Code or Order of the Board, and amendments thereto as approved by the Board, or as specified herein.
B205: Unless specifically noted, this schedule does not contain any charges for the electricity commodity, be it under the Regulated Price Plan, a contract with a retailer or the wholesale market price, as applicable.
B207: It should be noted that this schedule does not list any charges, assessments, or credits that are required by law to be invoiced by a distributor and that are not subject to Board approval, such as the Debt Retirement Charge, the Global Adjustment, the Ontario Clean Energy Benefit and the HST.
B209: Retail Service Charges refer to services provided by a distributor to retailers or customers related to the supply of competitive electricity.
B211: One-time charge, per retailer, to establish the service agreement between the distributor and the retailer | D211: $ | E211: 100
B212: Monthly Fixed Charge, per retailer | D212: $ | E212: 20
B213: Monthly Variable Charge, per customer, per retailer | D213: $/cust. | E213: 0.5
B214: Distributor-consolidated billing monthly charge, per customer, per retailer | D214: $/cust. | E214: 0.3
B215: Retailer-consolidated billing monthly credit, per customer, per retailer | D215: $/cust. | E215: -0.3
B216: Service Transaction Requests (STR)
B217: Request fee, per request, applied to the requesting party | D217: $ | E217: 0.25
B218: Processing fee, per request, applied to the requesting party | D218: $ | E218: 0.5
B219: Request for customer information as outlined in Section 10.6.3 and Chapter 11 of the Retail
B220: Settlement Code directly to retailers and customers, if not delivered electronically through the
B221: Electronic Business Transaction (EBT) system, applied to the requesting party
B222: Up to twice a year | D222: $ | E222: no charge
B223: More than twice a year, per request (plus incremental delivery costs) | D223: $ | E223: 2
B225: LOSS FACTORS
B227: If the distributor is not capable of prorating changed loss factors jointly with distribution rates, the revised loss factors will be implemented upon the first subsequent billing for each billing cycle.
B229: Total Loss Factor – Secondary Metered Customer < 5,000 kW | E229: 1.0778 | K229: TLF_Secondary_LT_5000kW
B230: Distribution Loss Factor - Primary Metered Customer < 5,000 kW | E230: 1.0671

Sheet 14. Bill Impacts (hidden)
Z1: =MATCH(A13, '3. Rate Class Selection'!B19:B40,0) -> 1 | AA1: =VLOOKUP(A13, lists!AO:AP,2,0) -> kWh
A11: Choose a Rate Class from the drop-down menu below and click UPDATE. For Street Lighting and USL classes, please ensure that the number of customers is manually entered into cells B30 and B31. Click the UPDATE button to refresh the sheet.
A13: RESIDENTIAL | F13: =IF(ISERROR(SEARCH("MicroFit",A13,1))=FALSE,"Bill impact presentation for this class does not exist.", "") -> 
A15: Consumption | B15: =730*D15*B17 -> 3650000 | C15: kWh | D15: 10000 | E15: =IF(AA1 = "kWh", "", "kW") -> 
A16: RPP Tier One | B16: 600 | C16: kWh | E16: 1
A17: Load Factor | B17: 0.5
A18: Loss Factor | B18: 1
B21: CURRENT ESTIMATED BILL | E21: PROPOSED ESTIMATED BILL
B22: Volume | C22: Current Rate ($) | D22: Current Charge ($) | E22: Volume | F22: Proposed Rate ($) | G22: Proposed Charge ($) | I22: Change ($) | J22: Change (%) | K22: % of Total RPP Bill | L22: % of Total TOU Bill
A23: Energy First Tier (kWh) | B23: 3650000 | C23: 0.075 | D23: =B23*C23 -> 273750 | E23: =B23 -> 3650000 | F23: =C23 -> 0.075 | G23: =E23*F23 -> 273750 | I23: =G23-D23 -> 0 | J23: =I23/D23 -> 0 | K23: =G23/G48 -> 0.8646078577
A24: Energy Second Tier (kWh) | B24: 0 | C24: 0.088 | D24: =B24*C24 -> 0 | E24: =B24 -> 0 | F24: =C24 -> 0.088 | G24: =E24*F24 -> 0 | I24: =G24-D24 -> 0 | J24: 0 | K24: =G24/G48 -> 0
A26: TOU - Off Peak | B26: =0.64*$B$15*$B$18 -> 2336000 | C26: 0.065 | D26: =C26*B26 -> 151840 | E26: =B26 -> 2336000 | F26: =C26 -> 0.065 | G26: =F26*E26 -> 151840 | I26: =G26-D26 -> 0 | J26: =I26/D26 -> 0 | L26: =G26/G54 -> 0.449726096
A27: TOU - Mid Peak | B27: =0.18*$B$15*$B$18 -> 657000 | C27: 0.1 | D27: =C27*B27 -> 65700 | E27: =B27 -> 657000 | F27: =C27 -> 0.1 | G27: =F27*E27 -> 65700 | H27: =G27*F27 -> 6570 | I27: =G27-D27 -> 0 | J27: =I27/D27 -> 0 | L27: =G27/G54 -> 0.1945930223
A28: TOU - On Peak | B28: =0.18*$B$15*$B$18 -> 657000 | C28: 0.117 | D28: 76869 | F28: =C28 -> 0.117 | G28: =F28*E28 -> 0 | H28: =G28*F28 -> 0 | J28: =I28/D28 -> 0 | L28: =G28/G54 -> 0
A30: Service Charge | B30: 1 | D30: 0 | G30: =F30*E30 -> 0 | H30: 0 | J30: 0 | K30: 0 | L30: 0
A31: Service Charge Rate Rider(s) | B31: 1 | C31: 0 | D31: 0 | F31: 0 | G31: 0 | H31: 0 | J31: 0 | K31: 0 | L31: 0
A32: Distribution Volumetric Rate | B32: 10000 | D32: 0 | E32: =B32 -> 10000 | G32: 0 | H32: 0 | I32: =G32-D32 -> 0 | J32: 0 | K32: 0 | L32: 0
A33: Low Voltage Volumetric Rate | B33: 10000 | D33: 0 | G33: 0 | H33: 0 | J33: 0 | K33: 0 | L33: 0
A34: Distribution Volumetric Rate Rider(s) | B34: 10000 | C34: 0 | D34: 0 | F34: 1.2025 | G34: 0 | H34: 0 | J34: 0 | K34: =G34/G48 -> 0 | L34: =G34/G54 -> 0
A35: Total: Distribution | D35: =ROUND(SUM(D30:D34),2) -> 0 | G35: =ROUND(SUM(G30:G34),2) -> 0 | J35: 0 | K35: =G35/G48 -> 0 | L35: =G35/G54 -> 0
A36: Total: Retail Transmission
A37: Sub-Total: Delivery (Distribution and Retail Transmission) | D37: =SUM(D36,D35) -> 0 | G37: =SUM(G36,G35) -> 0 | J37: 0 | K37: =G37/G48 -> 0 | L37: =G37/G54 -> 0
A38: Wholesale Market Service Rate | B38: 3650000 | C38: 0 | D38: =B38*C38 -> 0 | F38: =C38 -> 0 | G38: =E38*F38 -> 0 | J38: 0 | K38: 0 | L38: 0
A39: Rural Rate Protection Charge | B39: 3650000 | C39: 0 | D39: =B39*C39 -> 0 | E39: 3650000 | F39: 0 | G39: =E39*F39 -> 0 | I39: =G39-D39 -> 0 | J39: 0 | K39: 0 | L39: 0
A40: Standard Supply Service – Administration Charge (if applicable) | B40: 1 | C40: 0 | D40: =B40*C40 -> 0 | E40: 1 | F40: 0 | G40: =E40*F40 -> 0 | I40: =G40-D40 -> 0 | J40: 0 | K40: 0 | L40: 0
A41: Sub-Total: Regulatory | D41: =SUM(D38:D40) -> 0 | G41: =SUM(G38:H40) -> 0 | I41: =G41-D41 -> 0 | J41: 0 | K41: 0 | L41: 0
A42: Debt Retirement Charge (DRC) | B42: 3650000 | C42: 0.007 | D42: =B42*C42 -> 25550 | E42: =B42 -> 3650000 | F42: =C42 -> 0.007 | G42: =E42*F42 -> 25550 | I42: =G42-D42 -> 0 | J42: =I42/D42 -> 0 | K42: =G42/G48 -> 0.08069673339 | L42: =G42/G54 -> 0.07567506422
A44: Total Bill on RPP (before taxes) | D44: 299300 | G44: 311325 | I44: =G44-D44 -> 12025 | J44: =I44/D44 -> 0.04017707985 | K44: =G44/G48 -> 0.9832841691
A45: HST | C45: 0.13 | D45: =C45*D44 -> 38909 | F45: =C45 -> 0.13 | G45: =F45*G44 -> 40472.25 | I45: =G45-D45 -> 1563.25 | J45: =I45/D45 -> 0.04017707985 | K45: =G45/G48 -> 0.127826942
A46: Total Bill (including HST) | D46: =D45+D44 -> 338209 | G46: =G45+G44 -> 351797.25 | I46: =G46-D46 -> 13588.25 | J46: =I46/D46 -> 0.04017707985 | K46: =G46/G48 -> 1.111111111
A47: Ontario Clean Energy Benefit (OCEB) | C47: -0.1 | D47: =-0.1*D46 -> -33820.9 | F47: =C47 -> -0.1 | G47: =-0.1*G46 -> -35179.725 | I47: =G47-D47 -> -1358.825 | J47: =I47/D47 -> 0.04017707985 | K47: =G47/G48 -> -0.1111111111
A48: Total Bill on RPP (including OCEB) | D48: =D46+D47 -> 304388.1 | G48: =G46+G47 -> 316617.525 | I48: =G48-D48 -> 12229.425 | J48: =I48/D48 -> 0.04017707985 | K48: =G48/G48 -> 1
A50: Total Bill on TOU (before taxes) | D50: 319959 | G50: 331984 | I50: =G50-D50 -> 12025 | J50: =I50/D50 -> 0.03758294031 | L50: =G50/G54 -> 0.9832841691
A51: HST | C51: 0.13 | D51: =C51*D50 -> 41594.67 | F51: =C51 -> 0.13 | G51: =F51*G50 -> 43157.92 | I51: =G51-D51 -> 1563.25 | J51: =I51/D51 -> 0.03758294031 | L51: =G51/G54 -> 0.127826942
A52: Total Bill (including HST) | D52: =D51+D50 -> 361553.67 | G52: =G51+G50 -> 375141.92 | I52: =G52-D52 -> 13588.25 | J52: =I52/D52 -> 0.03758294031 | L52: =G52/G54 -> 1.111111111
A53: Ontario Clean Energy Benefit (OCEB) | C53: -0.1 | D53: =-0.1*D52 -> -36155.367 | F53: =C53 -> -0.1 | G53: =-0.1*G52 -> -37514.192 | I53: =G53-D53 -> -1358.825 | J53: =I53/D53 -> 0.03758294031 | L53: =G53/G54 -> -0.1111111111
A54: Total Bill on TOU (including OCEB) | D54: =D52+D53 -> 325398.303 | G54: =G52+G53 -> 337627.728 | I54: =G54-D54 -> 12229.425 | J54: =I54/D54 -> 0.03758294031 | L54: =G54/G54 -> 1
A57: Applicants must provide bill impacts for residential at 800 kWh and GS<50kW at 2000 kWh. In addition, their filing should cover the range that is relevant to their service territory, class by class. A general guideline of consumption levels follows: Residential (kWh) - 100, 250, 500, 800, 1000, 1500, 2000 GS<50kW (kWh) - 1000, 2000, 5000, 10000, 15000 GS>50kW (kW) 100, 500, 1000 Large User - range appropriate for utility Street/Sentinel Lighting Classes and USL - 150 kWh and 1 kW, range appropriate for utility.

Sheet 28. Bill Impacts
S1: 1 | Z1: =MATCH(C14, '3. Rate Class Selection'!B19:B40,0) -> 1 | AA1: =VLOOKUP(C14, lists!AO:AP,2,0) -> kWh
A14: Rate Class | C14: RESIDENTIAL
A16: Loss Factor | E16: 1.0778
A18: Consumption | C18: kWh | E18: 581
A20: If Billed on a kW basis:
A21: Demand | C21: kW
E25: Current Board-Approved | I25: Proposed | M25: Impact
E26: Rate | F26: Volume | G26: Charge | I26: Rate | J26: Volume | K26: Charge | M26: $ Change | N26: % Change
E27: ($) | G27: ($) | I27: ($) | K27: ($)
A28: Monthly Service Charge | E28: 34.58 | F28: 1 | G28: =F28*E28 -> 34.58 | I28: 35.01 | J28: 1 | K28: =J28*I28 -> 35.01 | M28: =K28-G28 -> 0.43 | N28: =IF((G28)=0,"",(M28/G28)) -> 0.01243493349
A29: Distribution Volumetric Rate | E29: 0.0137 | F29: 581 | G29: =F29*E29 -> 7.9597 | I29: 0.0139 | J29: =F29 -> 581 | K29: =J29*I29 -> 8.0759 | M29: 0.1162 | N29: 0.01459854015
A30: Fixed Rate Riders | E30: 4.72 | F30: 1 | G30: =F30*E30 -> 4.72 | I30: 4.72 | J30: 1 | K30: =J30*I30 -> 4.72 | M30: 0 | N30: 0
A31: Volumetric Rate Riders | E31: 0 | F31: 581 | G31: =F31*E31 -> 0 | I31: 0 | J31: =F31 -> 581 | K31: =J31*I31 -> 0 | M31: 0
A32: Sub-Total A (excluding pass through) | G32: =SUM(G28:G31) -> 47.2597 | K32: =SUM(K28:K31) -> 47.8059 | M32: 0.5462 | N32: 0.01155741573
A33: Line Losses on Cost of Power | E33: =E45*0.64+E46*0.18+E47*0.18 -> 0.08392 | F33: =E18*(E16-1) -> 45.2018 | G33: =E33*F33 -> 3.793335056 | I33: =I45*0.64+I46*0.18+I47*0.18 -> 0.08392 | J33: =F33 -> 45.2018 | K33: =I33*J33 -> 3.793335056 | M33: 0 | N33: 0
A34: Total Deferral/Variance Account Rate Riders | E34: 0.0009 | F34: 581 | G34: =F34*E34 -> 0.5229 | I34: -0.001 | J34: =F34 -> 581 | K34: =J34*I34 -> -0.581 | M34: -1.1039 | N34: -2.111111111
A35: Low Voltage Service Charge | F35: 581 | G35: =F35*E35 -> 0 | J35: =F35 -> 581 | K35: =J35*I35 -> 0 | M35: 0
A36: Smart Meter Entity Charge | E36: 0.79 | F36: 1 | G36: =F36*E36 -> 0.79 | I36: 0.79 | J36: =F36 -> 1 | K36: =J36*I36 -> 0.79 | M36: 0 | N36: 0
A37: Sub-Total B - Distribution (includes Sub-Total A) | G37: =SUM(G32:G36) -> 52.36593506 | K37: =SUM(K32:K36) -> 51.80823506 | M37: =K37-G37 -> -0.5577 | N37: =IF((G37)=0,"",(M37/G37)) -> -0.01065005331
A38: RTSR - Network | E38: 0.0064 | F38: 626.2018 | G38: =F38*E38 -> 4.00769152 | I38: 0.005 | J38: =F38 -> 626.2018 | K38: =J38*I38 -> 3.131009 | M38: -0.87668252 | N38: -0.21875
A39: RTSR - Connection and/or Line and Transformation Connection | E39: 0.0038 | F39: 626.2018 | G39: =F39*E39 -> 2.37956684 | I39: 0.0039 | J39: =F39 -> 626.2018 | K39: =J39*I39 -> 2.44218702 | M39: 0.06262018 | N39: 0.02631578947
A40: Sub-Total C - Delivery (including Sub-Total B) | G40: =SUM(G37:G39) -> 58.75319342 | K40: =SUM(K37:K39) -> 57.38143108 | M40: -1.37176234 | N40: -0.02334787712
A41: Wholesale Market Service Charge (WMSC) | E41: 0.0044 | F41: =E18*E16 -> 626.2018 | G41: =F41*E41 -> 2.75528792 | I41: 0.0044 | J41: =E18*E16 -> 626.2018 | K41: =J41*I41 -> 2.75528792 | M41: 0 | N41: 0
A42: Rural and Remote Rate Protection (RRRP) | E42: 0.0013 | F42: =E18*E16 -> 626.2018 | G42: 0.81406234 | I42: 0.0013 | J42: =E18*E16 -> 626.2018 | K42: 0.81406234 | M42: 0 | N42: 0
A43: Standard Supply Service Charge | E43: 0.25 | F43: 1 | G43: 0.25 | I43: 0.25 | J43: 1 | K43: 0.25 | M43: 0 | N43: 0
A44: Debt Retirement Charge (DRC) | E44: 0.007 | F44: =E18 -> 581 | G44: 4.067 | I44: 0.007 | J44: =E18 -> 581 | K44: 4.067 | M44: 0 | N44: 0
A45: TOU - Off Peak | E45: 0.067 | F45: 371.84 | G45: 24.91328 | I45: 0.067 | J45: =F45 -> 371.84 | K45: 24.91328 | M45: 0 | N45: 0
A46: TOU - Mid Peak | E46: 0.104 | F46: 104.58 | G46: 10.87632 | I46: 0.104 | J46: =F46 -> 104.58 | K46: 10.87632 | M46: 0 | N46: 0
A47: TOU - On Peak | E47: 0.124 | F47: 104.58 | G47: 12.96792 | I47: 0.124 | J47: =F47 -> 104.58 | K47: 12.96792 | M47: 0 | N47: 0
A49: Total Bill on TOU (before Taxes) | G49: =SUM(G40:G44,G45:G47) -> 115.3970637 | K49: =SUM(K40:K44,K45:K47) -> 114.0253013 | M49: =K49-G49 -> -1.37176234 | N49: =IF((G49)=0,"",(M49/G49)) -> -0.01188732448
A50: HST | E50: 0.13 | G50: =G49*E50 -> 15.00161828 | I50: 0.13 | K50: =K49*I50 -> 14.82328917 | M50: -0.1783291042 | N50: -0.01188732448
A51: Total Bill (including HST) | G51: =G49+G50 -> 130.398682 | K51: =K49+K50 -> 128.8485905 | M51: -1.550091444 | N51: -0.01188732448
A52: Ontario Clean Energy Benefit 1 | G52: =ROUND(-G51*10%,2) -> -13.04 | K52: =ROUND(-K51*10%,2) -> -12.88 | M52: 0.16 | N52: -0.01226993865
A53: Total Bill on TOU (including OCEB) | G53: =G51+G52 -> 117.358682 | K53: =K51+K52 -> 115.9685905 | M53: -1.390091444 | N53: -0.01184481132
A58: Note: For distributors who have a majority of customers on Tiered pricing, please provide a separate bill impact for such customers.

Sheet lists (hidden)
A1: DISTRIBUTED GENERATION [DGEN] | B1: Embedded Distributor | C1: =COUNTA(B1:B17) -> 4 | I1: A Standby Service Charge will be applied for a month where standby power is not provided. The applicable rate is the approved Distribution Volumetric Rate of the applicable service class and is applied to gross metered demand or contracted amount, whichever is greater. A monthly administration charge of $200, for simple metering arrangements, or $500, for complex metering arrangements, will also be applied. | L1: Loss Factors | N1: Units | O1: Units1 | P1: Units2 | Z1: Account History | AA1: Account set up charge/change of occupancy charge (plus credit agency costs if applicable) | AB1: Total Loss Factor – Embedded Distributor – Hydro One Networks Inc. | AL1: Algoma Power Inc. | AM1: Algoma Power Inc. | AO1: DISTRIBUTED GENERATION [DGEN] | AP1: kW | AT1: Sub-Total: Delivery (Distribution and Retail Transmission)
A2: EMBEDDED DISTRIBUTOR | B2: General Service 3,000 to 4,999 kW | I2: Distribution Volumetric Rate | L2: Total Loss Factor – Primary Metered Customer | N2: $ | O2: $/kWh | P2: $ | Z2: Account set up charge/change of occupancy charge | AA2: Administrative Billing Charge | AB2: Total Loss Factor – Primary Metered Customer | AL2: Atikokan Hydro Inc. | AM2: Atikokan Hydro Inc. | AO2: EMBEDDED DISTRIBUTOR | AP2: kW | AT2: Wholesale Market Service Rate | AW2: =AU2*AV2 -> 0 | AX2: =AU2 -> 0 | AY2: 0 | AZ2: =AX2*AY2 -> 0 | BB2: =AZ2-AW2 -> 0 | BC2: =BB2/AW2 -> 
A3: EMBEDDED DISTRIBUTOR | B3: General Service 1,000 to 4,999 kW | I3: Distribution Volumetric Rate - $/kW of contracted amount | L3: Total Loss Factor – Primary Metered Customer < 5,000 kW | N3: $/kWh | O3: $/kW | P3: % | W3: MSC | Z3: Account set up charge/change of occupancy charge (plus credit agency costs if applicable – Residential) | AA3: Bell Canada Pole Rentals | AB3: Total Loss Factor – Primary Metered Customer < 5,000 kW | AL3: Bluewater Power Distribution Corporation | AM3: Bluewater Power Distribution Corporation | AO3: EMBEDDED DISTRIBUTOR | AP3: kW | AT3: Rural or Remote Electricity Rate Protection Charge (RRRP) | AW3: =AU3*AV3 -> 0 | AX3: 0 | AY3: 0 | AZ3: =AX3*AY3 -> 0 | BB3: =AZ3-AW3 -> 0 | BC3: =BB3/AW3 -> 
A4: FARMS - SINGLE PHASE ENERGY-BILLED [F1] | B4: General Service Equal To Or Greater Than 1,500 kW - Interval Metered | I4: Distribution Wheeling Service Rate | L4: Total Loss Factor – Primary Metered Customer > 5,000 kW | N4: $/kW | O4: $/kVA | W4: SM_Rate_Adder | Z4: Account set up charge/change of occupancy charge (plus credit agency costs if applicable) | AA4: Clearance Pole Attachment charge $/pole/year | AB4: Total Loss Factor – Primary Metered Customer > 5,000 kW | AL4: Brant County Power Inc. | AM4: Brant County Power Inc. | AO4: FARMS - SINGLE PHASE ENERGY-BILLED [F1] | AP4: kWh | AT4: Standard Supply Service – Administration Charge (if applicable) | AW4: =AU4*AV4 -> 0 | AX4: 0 | AY4: 0 | AZ4: =AX4*AY4 -> 0 | BB4: =AZ4-AW4 -> 0 | BC4: =BB4/AW4 -> 
A5: FARMS - THREE PHASE ENERGY-BILLED [F3] | I5: Electricity Rate | L5: Total Loss Factor – Secondary Metered Customer | N5: $/kVA | W5: MSC_Rate_Rider_ | Z5: Arrears certificate | AA5: Collection of account charge – no disconnection | AB5: Total Loss Factor – Secondary Metered Customer | AL5: Brantford Power Inc. | AM5: Brantford Power Inc. | AO5: FARMS - THREE PHASE ENERGY-BILLED [F3] | AP5: kWh | AT5: Sub-Total: Regulatory | AW5: =SUM(AW2:AW4) -> 0 | AZ5: =SUM(AZ2:BA4) -> 0 | BB5: =AZ5-AW5 -> 0 | BC5: =BB5/AW5 -> 
A6: GENERAL SERVICE - COMMERCIAL | I6: Electricity Rate - All Additional kWh | L6: Total Loss Factor – Secondary Metered Customer < 5,000 kW | W6: VC | Z6: Arrears certificate (credit reference) | AA6: Collection of account charge – no disconnection – after regular hours | AB6: Total Loss Factor – Secondary Metered Customer < 5,000 kW | AL6: Burlington Hydro Inc. | AM6: Burlington Hydro Inc. | AO6: GENERAL SERVICE - COMMERCIAL | AP6: kW | AT6: Debt Retirement Charge (DRC) | AW6: =AU6*AV6 -> 0 | AX6: =AU6 -> 0 | AY6: =AV6 -> 0 | AZ6: =AX6*AY6 -> 0 | BB6: =AZ6-AW6 -> 0 | BC6: =BB6/AW6 -> 
A7: GENERAL SERVICE - INSTITUTIONAL | I7: Electricity Rate - First 250 kWh | AL7: Cambridge and North Dumfries Hydro Inc. | AM7: Cambridge and North Dumfries Hydro Inc. | AO7: GENERAL SERVICE - INSTITUTIONAL | AP7: kW
A8: GENERAL SERVICE 1,000 TO 2,999 KW | I8: Electricity Rate -All Additional kWh | L8: Total Loss Factor – Secondary Metered Customer > 5,000 kW | W8: VC_Rate_Rider_ | Z8: Charge to certify cheque | AA8: Collection of account charge – no disconnection - during regular business hours | AB8: Total Loss Factor – Secondary Metered Customer > 5,000 kW | AL8: Canadian Niagara Power Inc. | AM8: Canadian Niagara Power Inc. | AO8: GENERAL SERVICE 1,000 TO 2,999 KW | AP8: kW | AT8: Total Bill on RPP (before taxes) | BB8: =AZ8-AW8 -> 0
A9: GENERAL SERVICE 1,000 TO 4,999 KW | I9: Electricity Rate First 1,000 kWh | L9: Distribution Loss Factor - Secondary Metered Customer < 5,000 kW | W9: VC_GA_Rate_Rider_kW_ | Z9: Collection of Account Charge – No Disconnection | AA9: Collection of account charge – no disconnection – during regular hours | AL9: Centre Wellington Hydro Ltd. | AM9: Centre Wellington Hydro Ltd. | AO9: GENERAL SERVICE 1,000 TO 4,999 KW | AP9: kW | AT9: HST | AW9: =AV9*AW8 -> 0 | AY9: =AV9 -> 0 | AZ9: =AY9*AZ8 -> 0 | BB9: =AZ9-AW9 -> 0 | BC9: =BB9/AW9 -> 
A10: GENERAL SERVICE 1,000 TO 4,999 KW - INTERVAL METERS | I10: Electricity Rate First 25,000 kWh | L10: Distribution Loss Factor - Secondary Metered Customer > 5,000 kW | W10: VC_LV_Rate | Z10: Credit Card Convenience Charge | AA10: Collection/Disconnection/Load Limiter/Reconnection – if in Community | AL10: Chapleau Public Utilities Corporation | AM10: Chapleau Public Utilities Corporation | AO10: GENERAL SERVICE 1,000 TO 4,999 KW - INTERVAL METERS | AP10: kW | AT10: Total Bill (including HST) | AW10: =AW9+AW8 -> 0 | AZ10: =AZ9+AZ8 -> 0 | BB10: =AZ10-AW10 -> 0 | BC10: =BB10/AW10 -> 
A11: GENERAL SERVICE 1,000 TO 4,999 KW (CO-GENERATION) | I11: Electricity Rate First 6,000 kWh | L11: Distribution Loss Factor - Primary Metered Customer < 5,000 kW | W11: RTSR_Network | Z11: Credit check (plus credit agency costs) | AA11: Credit Card Convenience Charge | AL11: Collus PowerStream Corporation | AM11: Collus PowerStream Corporation | AO11: GENERAL SERVICE 1,000 TO 4,999 KW (CO-GENERATION) | AP11: kW | AT11: Ontario Clean Energy Benefit (OCEB) | AW11: =-0.1*AW10 -> 0 | AY11: =AV11 -> 0 | AZ11: =-0.1*AZ10 -> 0 | BB11: =AZ11-AW11 -> 0 | BC11: =BB11/AW11 -> 
A12: GENERAL SERVICE 1,500 TO 4,999 KW | I12: Electricity Rate Next 1,500 kWh | L12: Distribution Loss Factor - Primary Metered Customer > 5,000 kW | W12: RTSR_Connection | Z12: Credit reference Letter | AA12: Disconnect/Reconnect at meter – after regular hours | AL12: Cooperative Hydro Embrun Inc. | AM12: Cooperative Hydro Embrun Inc. | AO12: GENERAL SERVICE 1,500 TO 4,999 KW | AP12: kW | AT12: Total Bill on RPP (including OCEB) | AW12: =AW10+AW11 -> 0 | AZ12: =AZ10+AZ11 -> 0 | BB12: =AZ12-AW12 -> 0 | BC12: =BB12/AW12 -> 
A13: GENERAL SERVICE 2,500 TO 4,999 KW | I13: General Service 1,500 to 4,999 kW customer | AL13: E.L.K. Energy Inc. | AM13: E.L.K. Energy Inc. | AO13: GENERAL SERVICE 2,500 TO 4,999 KW | AP13: kW
A14: GENERAL SERVICE 3,000 TO 4,999 KW | I14: General Service 50 to 1,499 kW customer | L14: Total Loss Factor - Embedded Distributor | W14: RTSR_Network_Interval | Z14: Credit reference/credit check (plus credit agency costs – General Service) | AA14: Disconnect/Reconnect at meter – during regular hours | AL14: Enersource Hydro Mississauga Inc. | AM14: Enersource Hydro Mississauga Inc. | AO14: GENERAL SERVICE 3,000 TO 4,999 KW | AP14: kW | AT14: Total Bill on TOU (before taxes) | BB14: =AZ14-AW14 -> 0
A15: GENERAL SERVICE 3,000 TO 4,999 KW - INTERMEDIATE USE | I15: General Service Large Use customer | L15: Total Loss Factor – Embedded Distributor – Hydro One Networks Inc. | W15: RTSR_Connection_Interval | Z15: Credit Reference/credit check (plus credit agency costs) | AA15: Disconnect/Reconnect at pole – after regular hours | AL15: Entegrus Powerlines Inc. | AM15: Entegrus Powerlines Inc. | AO15: GENERAL SERVICE 3,000 TO 4,999 KW - INTERMEDIATE USE | AP15: kW | AT15: HST | AW15: =AV15*AW14 -> 0 | AY15: =AV15 -> 0 | AZ15: =AY15*AZ14 -> 0 | BB15: =AZ15-AW15 -> 0 | BC15: =BB15/AW15 -> 
A16: GENERAL SERVICE 3,000 TO 4,999 KW - INTERVAL METERED | E16: 1.0778 | I16: Green Energy Act Initiatives Funding Adder - effective until the date of the next cost of service-based rate order | W16: RTSR_Network_Interval_GR1000kW | Z16: Dispute Test – Commercial self contained -- MC | AA16: Disconnect/Reconnect at pole – during regular hours | AL16: Entegrus Powerlines Inc. - Dutton Service Area | AM16: Entegrus Powerlines Inc. - Dutton Service Area | AO16: GENERAL SERVICE 3,000 TO 4,999 KW - INTERVAL METERED | AP16: kW | AT16: Total Bill (including HST) | AW16: =AW15+AW14 -> 0 | AZ16: =AZ15+AZ14 -> 0 | BB16: =AZ16-AW16 -> 0 | BC16: =BB16/AW16 -> 
A17: GENERAL SERVICE 3,000 TO 4,999 KW - TIME OF USE | I17: Green Energy Act Plan Funding Adder | W17: RTSR_Connection_Interval_GR1000kW | Z17: Dispute Test – Commercial TT -- MC | AA17: Disconnect/Reconnect Charge – At Meter – After Hours | AL17: Entegrus Powerlines Inc. - former Chatham-Kent Hydro Service Area | AM17: Entegrus Powerlines Inc. - former Chatham-Kent Hydro Service Area | AO17: GENERAL SERVICE 3,000 TO 4,999 KW - TIME OF USE | AP17: kW | AT17: Ontario Clean Energy Benefit (OCEB) | AW17: =-0.1*AW16 -> 0 | AY17: =AV17 -> 0 | AZ17: =-0.1*AZ16 -> 0 | BB17: =AZ17-AW17 -> 0 | BC17: =BB17/AW17 -> 
A18: GENERAL SERVICE 50 TO 1,000 KW | I18: Green Energy Act Plan Funding Adder - effective April 1, 2013 until March 31, 2014 | W18: RTSR_Line_Connection | Z18: Dispute Test – Residential | AA18: Disconnect/Reconnect Charge – At Meter – During Regular Hours | AL18: Entegrus Powerlines Inc. - Newbury Service Area | AM18: Entegrus Powerlines Inc. - Newbury Service Area | AO18: GENERAL SERVICE 50 TO 1,000 KW | AP18: kW | AT18: Total Bill on TOU (including OCEB) | AW18: =AW16+AW17 -> 0 | AZ18: =AZ16+AZ17 -> 0 | BB18: =AZ18-AW18 -> 0 | BC18: =BB18/AW18 -> 
A19: GENERAL SERVICE 50 TO 1,000 KW - INTERVAL METERS | I19: Green Energy Act Plan Funding Adder - effective April 1, 2014 until March 31, 2015 | W19: RTSR_Transformer_Connection | Z19: Duplicate Invoices for previous billing | AA19: Disconnect/Reconnect Charge – At Pole – After Hours | AL19: Entegrus Powerlines Inc. - Strathroy, Mount Brydges and Parkhill Service Areas | AM19: Entegrus Powerlines Inc. - Strathroy, Mount Brydges and Parkhill Service Areas | AO19: GENERAL SERVICE 50 TO 1,000 KW - INTERVAL METERS | AP19: kW
A20: GENERAL SERVICE 50 TO 1,000 KW - NON INTERVAL METERS | I20: ICM Rate Rider (2014) - in effect until the effective date of the next cost of service rates | W20: WMSR | Z20: Easement Letter | AA20: Disconnect/Reconnect Charge – At Pole – During Regular Hours | AL20: ENWIN Utilities Ltd. | AM20: ENWIN Utilities Ltd. | AO20: GENERAL SERVICE 50 TO 1,000 KW - NON INTERVAL METERS | AP20: kW
A21: GENERAL SERVICE 50 TO 1,499 KW | I21: Low Voltage Service Charge | W21: RRRP | Z21: Income Tax Letter | AA21: Disconnect/Reconnect Charges for non payment of account - At Meter After Hours | AL21: Erie Thames Powerlines Corporation | AM21: Erie Thames Powerlines Corporation | AO21: GENERAL SERVICE 50 TO 1,499 KW | AP21: kW
A22: GENERAL SERVICE 50 TO 1,499 KW - INTERVAL METERED | I22: Low Voltage Service Rate | W22: SPC | Z22: Interval Meter Interrogation | AA22: Disconnect/Reconnect charges for non payment of account – at meter after regular hours | AL22: Espanola Regional Hydro Distribution Corporation | AM22: Espanola Regional Hydro Distribution Corporation | AO22: GENERAL SERVICE 50 TO 1,499 KW - INTERVAL METERED | AP22: kW
A23: GENERAL SERVICE 50 TO 2,499 KW | I23: Low Voltage Volumetric Rate | W23: DRC | Z23: Interval meter request change | AA23: Disconnect/Reconnect Charges for non payment of account - At Meter During Regular Hours | AL23: Essex Powerlines Corporation | AM23: Essex Powerlines Corporation | AO23: GENERAL SERVICE 50 TO 2,499 KW | AP23: kW
A24: GENERAL SERVICE 50 TO 2,999 KW | I24: LRAM Rate Rider - Effective Until April 30, 2015 | W24: SSS | Z24: Legal letter | AA24: Disconnect/Reconnect charges for non payment of account – at meter during regular hours | AL24: Festival Hydro Inc. | AM24: Festival Hydro Inc. | AO24: GENERAL SERVICE 50 TO 2,999 KW | AP24: kW
A25: GENERAL SERVICE 50 TO 2,999 KW - INTERVAL METERED | I25: Minimum Distribution Charge - per KW of maximum billing demand in the previous 11 months | W25: SFLF | Z25: Legal letter charge | AA25: Disconnect/Reconnect charges for non payment of account – at pole after regular hours | AL25: Fort Frances Power Corporation | AM25: Fort Frances Power Corporation | AO25: GENERAL SERVICE 50 TO 2,999 KW - INTERVAL METERED | AP25: kW
A26: GENERAL SERVICE 50 TO 2,999 KW - TIME OF USE | B26: January | I26: Monthly Distribution Wheeling Service Rate - Dedicated LV Line | W26: DLF_Secondary_LT_5000kW | Z26: Meter dispute charge plus Measurement Canada fees (if meter found correct) | AA26: Disconnect/Reconnect charges for non payment of account – at pole during regular hours | AL26: Greater Sudbury Hydro Inc. | AM26: Greater Sudbury Hydro Inc. | AO26: GENERAL SERVICE 50 TO 2,999 KW - TIME OF USE | AP26: kW
A27: GENERAL SERVICE 50 TO 4,999 KW | B27: February | I27: Monthly Distribution Wheeling Service Rate - Hydro One Networks | W27: DLF_Secondary_GT_5000kW | Z27: Notification charge | AA27: Disconnect/Reconnection for >300 volts - after regular hours | AL27: Grimsby Power Inc. | AM27: Grimsby Power Inc. | AO27: GENERAL SERVICE 50 TO 4,999 KW | AP27: kW
A28: GENERAL SERVICE 50 TO 4,999 KW - INTERVAL METERED | B28: March | E28: 34.58 | F28: 1 | I28: 35.01 | W28: DLF_Primary_LT_5000kW | Z28: Pulling Post Dated Cheques | AA28: Disconnect/Reconnection for >300 volts - during regular hours | AL28: Guelph Hydro Electric Systems Inc. | AM28: Guelph Hydro Electric Systems Inc. | AO28: GENERAL SERVICE 50 TO 4,999 KW - INTERVAL METERED | AP28: kW
A29: GENERAL SERVICE 50 TO 4,999 KW - TIME OF USE | B29: April | E29: 0.0137 | I29: 0.0139 | W29: DLF_Primary_GT_5000kW | Z29: Request for other billing information | AA29: Disposal of Concrete Poles | AL29: Haldimand County Hydro Inc. | AM29: Haldimand County Hydro Inc. | AO29: GENERAL SERVICE 50 TO 4,999 KW - TIME OF USE | AP29: kW
A30: GENERAL SERVICE 50 TO 4,999 KW (COGENERATION) | B30: May | E30: 4.72 | F30: 1 | I30: 4.72 | W30: TLF_Secondary_LT_5000kW | Z30: Returned cheque (plus bank charges) | AA30: Dispute Test – Commercial TT -- MC | AL30: Halton Hills Hydro Inc. | AM30: Halton Hills Hydro Inc. | AO30: GENERAL SERVICE 50 TO 4,999 KW (COGENERATION) | AP30: kW
A31: GENERAL SERVICE 50 TO 4,999 KW (FORMERLY TIME OF USE) | B31: June | E31: 0 | I31: 0 | W31: TLF_Secondary_GT_5000kW | Z31: Returned cheque charge (plus bank charges) | AA31: Install/Remove load control device – after regular hours | AL31: Hearst Power Distribution Company Limited | AM31: Hearst Power Distribution Company Limited | AO31: GENERAL SERVICE 50 TO 4,999 KW (FORMERLY TIME OF USE) | AP31: kW
A32: GENERAL SERVICE 50 TO 499 KW | B32: July | I32: Rate Rider for Application of Tax Change (2014) - effective until April 30, 2015 | W32: TLF_Primary_LT_5000kW | Z32: Special Billing Service (aggregation) | AA32: Install/Remove load control device – during regular hours | AL32: Horizon Utilities Corporation | AM32: Horizon Utilities Corporation | AO32: GENERAL SERVICE 50 TO 499 KW | AP32: kW
A33: GENERAL SERVICE 50 TO 699 KW | B33: August | I33: Rate Rider for Application of Tax Change (per connection) - effective until April 30, 2015 | W33: TLF_Primary_GT_5000kW | Z33: Special Billing Service (sub-metering charge per meter) | AA33: Interval Meter Interrogation | AL33: Hydro 2000 Inc. | AM33: Hydro 2000 Inc. | AO33: GENERAL SERVICE 50 TO 699 KW | AP33: kW
A34: GENERAL SERVICE 50 TO 999 KW | B34: September | E34: 0.0004 | I34: 0 | W34: TLF_EmbeddedDistributor | Z34: Special meter reads | AA34: Interval Meter Load Management Tool Charge $/month | AL34: Hydro Hawkesbury Inc. | AM34: Hydro Hawkesbury Inc. | AO34: GENERAL SERVICE 50 TO 999 KW | AP34: kW
A35: GENERAL SERVICE 50 TO 999 KW - INTERVAL METERED | B35: October | Z35: Statement of Account | AA35: Interval meter request change | AL35: Hydro One Brampton Networks Inc. | AM35: Hydro One Brampton Networks Inc. | AO35: GENERAL SERVICE 50 TO 999 KW - INTERVAL METERED | AP35: kW
A36: GENERAL SERVICE 500 TO 4,999 KW | B36: November | E36: 0.79 | I36: 0.79 | Z36: Unprocessed Payment Charge (plus bank charges) | AA36: Late Payment – per annum | AL36: Hydro One Networks Inc. | AM36: Hydro One Networks Inc. | AO36: GENERAL SERVICE 500 TO 4,999 KW | AP36: kW
A37: GENERAL SERVICE 700 TO 4,999 KW | B37: December | I37: Rate Rider for Deferral/Variance Account Disposition (2012) - effective until April 30, 2016 | AA37: Late Payment – per month | AL37: Hydro Ottawa Limited | AM37: Hydro Ottawa Limited | AO37: GENERAL SERVICE 700 TO 4,999 KW | AP37: kW
A38: GENERAL SERVICE DEMAND BILLED (50 KW AND ABOVE) [GSD] | E38: 0.0064 | F38: 0 | I38: 0.005 | AA38: Layout fees | AL38: Innisfil Hydro Distribution Systems Limited | AM38: Innisfil Hydro Distribution Systems Limited | AO38: GENERAL SERVICE DEMAND BILLED (50 KW AND ABOVE) [GSD] | AP38: kW
A39: GENERAL SERVICE ENERGY BILLED (LESS THAN 50 KW) [GSE-METERED] | E39: 0.0038 | F39: 0 | I39: 0.0039 | AA39: Meter dispute charge plus Measurement Canada fees (if meter found correct) | AL39: Kenora Hydro Electric Corporation Ltd. | AM39: Kenora Hydro Electric Corporation Ltd. | AO39: GENERAL SERVICE ENERGY BILLED (LESS THAN 50 KW) [GSE-METERED] | AP39: kWh
A40: GENERAL SERVICE ENERGY BILLED (LESS THAN TO 50 KW) [GSE-UNMETERED] | I40: Rate Rider for Deferral/Variance Account Disposition (2014) - effective until April 30, 2015 | AA40: Meter Interrogation Charge | AL40: Kingston Hydro Corporation | AM40: Kingston Hydro Corporation | AO40: GENERAL SERVICE ENERGY BILLED (LESS THAN TO 50 KW) [GSE-UNMETERED] | AP40: kWh
A41: GENERAL SERVICE EQUAL TO OR GREATER THAN 1,500 KW | I41: Rate Rider for Deferral/Variance Account Disposition (2014) - effective until December 31, 2014 | AA41: Missed Service Appointment | AL41: Kitchener-Wilmot Hydro Inc. | AM41: Kitchener-Wilmot Hydro Inc. | AO41: GENERAL SERVICE EQUAL TO OR GREATER THAN 1,500 KW | AP41: kW
A42: GENERAL SERVICE EQUAL TO OR GREATER THAN 1,500 KW - INTERVAL METERED | I42: Rate Rider for Deferral/Variance Account Disposition (2014) - effective until December 31, 2015 | AA42: Norfolk Pole Rentals – Billed | AL42: Lakefront Utilities Inc. | AM42: Lakefront Utilities Inc. | AO42: GENERAL SERVICE EQUAL TO OR GREATER THAN 1,500 KW - INTERVAL METERED | AP42: kW
A43: GENERAL SERVICE GREATER THAN 1,000 KW | I43: Rate Rider for Deferral/Variance Account Dispositon (2012) - effective until April 30, 2016 | AA43: Optional Interval/TOU Meter charge $/month | AL43: Lakeland Power Distribution Ltd. | AM43: Lakeland Power Distribution Ltd. | AO43: GENERAL SERVICE GREATER THAN 1,000 KW | AP43: kW
A44: GENERAL SERVICE GREATER THAN 50 kW - WMP | I44: Rate Rider for Disposition of Accounting Changes Under CGAAP Account 1576 - effective until April 30, 2016 | AA44: Overtime Locate | AL44: London Hydro Inc. | AM44: London Hydro Inc. | AO44: GENERAL SERVICE GREATER THAN 50 kW - WMP | AP44: kW
A45: GENERAL SERVICE INTERMEDIATE 1,000 TO 4,999 KW | F45: 0 | I45: Rate Rider for Disposition of Deferral/Variance Accounts (2010) - effective until December 31, 2014 | AA45: Owner Requested Disconnection/Reconnection – after regular hours | AL45: Midland Power Utility Corporation | AM45: Midland Power Utility Corporation | AO45: GENERAL SERVICE INTERMEDIATE 1,000 TO 4,999 KW | AP45: kW
A46: GENERAL SERVICE INTERMEDIATE RATE CLASS 1,000 TO 4,999 KW (FORMERLY GENERAL SERVICE > 50 KW CUSTOMERS) | F46: 0 | I46: Rate Rider for Disposition of Deferral/Variance Accounts (2011) - effective until April 30, 2015 | AA46: Owner Requested Disconnection/Reconnection – during regular hours | AL46: Milton Hydro Distribution Inc. | AM46: Milton Hydro Distribution Inc. | AO46: GENERAL SERVICE INTERMEDIATE RATE CLASS 1,000 TO 4,999 KW (FORMERLY GENERAL SERVICE > 50 KW CUSTOMERS) | AP46: kW
A47: GENERAL SERVICE INTERMEDIATE RATE CLASS 1,000 TO 4,999 KW (FORMERLY LARGE USE CUSTOMERS) | F47: 0 | I47: Rate Rider for Disposition of Deferral/Variance Accounts (2011) - effective until April 30, 2016 | AA47: Returned cheque (plus bank charges) | AL47: Newmarket - Tay Power Distribution Ltd. | AM47: Newmarket - Tay Power Distribution Ltd. | AO47: GENERAL SERVICE INTERMEDIATE RATE CLASS 1,000 TO 4,999 KW (FORMERLY LARGE USE CUSTOMERS) | AP47: kW
A48: GENERAL SERVICE LESS THAN 50 KW | I48: Rate Rider for Disposition of Deferral/Variance Accounts (2012) - effective until April 30, 2014 | AA48: Rural system expansion / line connection fee | AL48: Niagara Peninsula Energy Inc. | AM48: Niagara Peninsula Energy Inc. | AO48: GENERAL SERVICE LESS THAN 50 KW | AP48: kWh
A49: GENERAL SERVICE LESS THAN 50 KW - SINGLE PHASE ENERGY-BILLED [G1] | I49: Rate Rider for Disposition of Deferral/Variance Accounts (2012) - effective until April 30, 2015 | AA49: Same Day Open Trench | AL49: Niagara-on-the-Lake Hydro Inc. | AM49: Niagara-on-the-Lake Hydro Inc. | AO49: GENERAL SERVICE LESS THAN 50 KW - SINGLE PHASE ENERGY-BILLED [G1] | AP49: kWh
A50: GENERAL SERVICE LESS THAN 50 KW - THREE PHASE ENERGY-BILLED [G3] | I50: Rate Rider for Disposition of Deferral/Variance Accounts (2012) - effective until April 30, 2016 | AA50: Scheduled Day Open Trench | AL50: Norfolk Power Distribution Inc. | AM50: Norfolk Power Distribution Inc. | AO50: GENERAL SERVICE LESS THAN 50 KW - THREE PHASE ENERGY-BILLED [G3] | AP50: kWh
A51: GENERAL SERVICE LESS THAN 50 KW - TRANSMISSION CLASS ENERGY-BILLED [T] | I51: Rate Rider for Disposition of Deferral/Variance Accounts (2012) - effective until August 31, 2014 | AA51: Service call – after regular hours | AL51: North Bay Hydro Distribution Limited | AM51: North Bay Hydro Distribution Limited | AO51: GENERAL SERVICE LESS THAN 50 KW - TRANSMISSION CLASS ENERGY-BILLED [T] | AP51: kWh
A52: GENERAL SERVICE LESS THAN 50 KW - URBAN ENERGY-BILLED [UG] | I52: Rate Rider for Disposition of Deferral/Variance Accounts (2012) - effective until December 31, 2015 | AA52: Service call – customer owned equipment | AL52: Northern Ontario Wires Inc. | AM52: Northern Ontario Wires Inc. | AO52: GENERAL SERVICE LESS THAN 50 KW - URBAN ENERGY-BILLED [UG] | AP52: kWh
A53: GENERAL SERVICE SINGLE PHASE - G1 | I53: Rate Rider for Disposition of Deferral/Variance Accounts (2012) - effective until December 31, 2016 Applicable only in the former service area of Clinton Power | AA53: Service Call – Customer-owned Equipment – After Regular Hours | AL53: Oakville Hydro Electricity Distribution Inc. | AM53: Oakville Hydro Electricity Distribution Inc. | AO53: GENERAL SERVICE SINGLE PHASE - G1 | AP53: kW
A54: GENERAL SERVICE THREE PHASE - G3 | I54: Rate Rider for Disposition of Deferral/Variance Accounts (2012) – effective until December 31, 2016 Applicable only in the former service area of Clinton Power | AA54: Service Call – Customer-owned Equipment – During Regular Hours | AL54: Orangeville Hydro Limited | AM54: Orangeville Hydro Limited | AO54: GENERAL SERVICE THREE PHASE - G3 | AP54: kW
A55: INTERMEDIATE USERS | I55: Rate Rider for Disposition of Deferral/Variance Accounts (2012) - effective until January 31, 2014 | AA55: Service Charge for onsite interrogation of interval meter due to customer phone line failure - required weekly until line repaired $ 6 | AL55: Orillia Power Distribution Corporation | AM55: Orillia Power Distribution Corporation | AO55: INTERMEDIATE USERS | AP55: kW
A56: INTERMEDIATE WITH SELF GENERATION | I56: Rate Rider for Disposition of Deferral/Variance Accounts (2012) - effective until June 30, 2014 | AA56: Service Layout - Commercial | AL56: Oshawa PUC Networks Inc. | AM56: Oshawa PUC Networks Inc. | AO56: INTERMEDIATE WITH SELF GENERATION | AP56: kW
A57: LARGE USE | I57: Rate Rider for Disposition of Deferral/Variance Accounts (2013) - Applicable only to Wholesale Market Participants - effective until April 30, 2015 | AA57: Service Layout - ResidentiaI | AL57: Ottawa River Power Corporation | AM57: Ottawa River Power Corporation | AO57: LARGE USE | AP57: kW
A58: LARGE USE - 3TS | I58: Rate Rider for Disposition of Deferral/Variance Accounts (2013) - effective until April 30, 2014 | AA58: Special Billing Service (sub-metering charge per meter) | AL58: Parry Sound Power Corporation | AM58: Parry Sound Power Corporation | AO58: LARGE USE - 3TS | AP58: kW
A59: LARGE USE - FORD ANNEX | I59: Rate Rider for Disposition of Deferral/Variance Accounts (2013) - effective until April 30, 2015 | AA59: Special meter reads | AL59: Peterborough Distribution Incorporated | AM59: Peterborough Distribution Incorporated | AO59: LARGE USE - FORD ANNEX | AP59: kW
A60: LARGE USE - REGULAR | I60: Rate Rider for Disposition of Deferral/Variance Accounts (2013) - effective until April 30, 2015 - not applicable to Wholesale Market Participants | AA60: Specific Charge for Access to the Power Poles - $/pole/year | AL60: PowerStream Inc. | AM60: PowerStream Inc. | AO60: LARGE USE - REGULAR | AP60: kW
A61: LARGE USE > 5000 KW | I61: Rate Rider for Disposition of Deferral/Variance Accounts (2013) - effective until April 30, 2017 | AA61: Specific Charge for Bell Canada Access to the Power Poles – per pole/year | AL61: PUC Distribution Inc. | AM61: PUC Distribution Inc. | AO61: LARGE USE > 5000 KW | AP61: kW
A62: microFIT | I62: Rate Rider for Disposition of Deferral/Variance Accounts (2013) - effective until August 31, 2014 | AA62: Switching for company maintenance – Charge based on Time and Materials | AL62: Renfrew Hydro Inc. | AM62: Renfrew Hydro Inc. | AO62: microFIT | AP62: $
A63: RESIDENTIAL | I63: Rate Rider for Disposition of Deferral/Variance Accounts (2013) - effective until December 31, 2014 | AA63: Temporary Service – Install & remove – overhead – no transformer | AL63: Rideau St. Lawrence Distribution Inc. | AM63: Rideau St. Lawrence Distribution Inc. | AO63: RESIDENTIAL | AP63: kWh
A64: RESIDENTIAL - HENSALL | I64: Rate Rider for Disposition of Deferral/Variance Accounts (2013) - effective until May 31, 2014 | AA64: Temporary Service – Install & remove – overhead – with transformer | AL64: Sioux Lookout Hydro Inc. | AM64: Sioux Lookout Hydro Inc. | AO64: RESIDENTIAL - HENSALL | AP64: kWh
A65: RESIDENTIAL - HIGH DENSITY [R1] | I65: Rate Rider for Disposition of Deferral/Variance Accounts (2014) - effective until December 31, 2015 | AA65: Temporary Service – Install & remove – underground – no transformer | AL65: St. Thomas Energy Inc. | AM65: St. Thomas Energy Inc. | AO65: RESIDENTIAL - HIGH DENSITY [R1] | AP65: kWh
A66: RESIDENTIAL - LOW DENSITY [R2] | I66: Rate Rider for Disposition of Deferred PILs Variance Account 1562 - effective until March 31, 2016 | AA66: Temporary service install & remove – overhead – no transformer | AL66: Thunder Bay Hydro Electricity Distribution Inc. | AM66: Thunder Bay Hydro Electricity Distribution Inc. | AO66: RESIDENTIAL - LOW DENSITY [R2] | AP66: kWh
A67: RESIDENTIAL - MEDIUM DENSITY [R1] | I67: Rate Rider for Disposition of Deferred PILs Variance Account 1562 (2012) - effective until April 30, 2015 | AA67: Temporary Service Install & Remove – Overhead – With Transformer | AL67: Tillsonburg Hydro Inc. | AM67: Tillsonburg Hydro Inc. | AO67: RESIDENTIAL - MEDIUM DENSITY [R1] | AP67: kWh
A68: RESIDENTIAL - NORMAL DENSITY [R2] | I68: Rate Rider for Disposition of Deferred PILs Variance Account 1562 (2012) - effective until April 30, 2016 | AA68: Temporary Service Install & Remove – Underground – No Transformer | AL68: Toronto Hydro-Electric System Limited | AM68: Toronto Hydro-Electric System Limited | AO68: RESIDENTIAL - NORMAL DENSITY [R2] | AP68: kWh
A69: RESIDENTIAL - TIME OF USE | I69: Rate Rider for Disposition of Deferred PILs Variance Account 1562 (2nd Installment - 2012) - effective until April 30, 2016 | AA69: Temporary service installation and removal – overhead – no transformer | AL69: Veridian Connections Inc. | AM69: Veridian Connections Inc. | AO69: RESIDENTIAL - TIME OF USE | AP69: kWh
A70: RESIDENTIAL - URBAN [UR] | I70: Rate Rider for Disposition of Deferred PILs Variance Account 1562 (per connection) (2012) - effective until April 30, 2015 | AA70: Temporary service installation and removal – overhead – with transformer | AL70: Wasaga Distribution Inc. | AM70: Wasaga Distribution Inc. | AO70: RESIDENTIAL - URBAN [UR] | AP70: kWh
A71: RESIDENTIAL REGULAR | I71: Rate Rider for Disposition of Deferred PILs Variance Account 1562 (per connection) (2012) - effective until April 30, 2016 | AA71: Temporary service installation and removal – underground – no transformer | AL71: Waterloo North Hydro Inc. | AM71: Waterloo North Hydro Inc. | AO71: RESIDENTIAL REGULAR | AP71: kWh
A72: RESIDENTIAL SUBURBAN | I72: Rate Rider for Disposition of Global Adjustment Sub-Account (2011) - effective until April 30, 2015 Applicable only for Non-RPP Customers | AL72: Welland Hydro-Electric System Corp. | AM72: Welland Hydro-Electric System Corp. | AO72: RESIDENTIAL SUBURBAN | AP72: kWh
A73: RESIDENTIAL SUBURBAN SEASONAL | I73: Rate Rider for Disposition of Global Adjustment Sub-Account (2011) - effective until April 30, 2016 Applicable only for Non-RPP Customers | AL73: Wellington North Power Inc. | AM73: Wellington North Power Inc. | AO73: RESIDENTIAL SUBURBAN SEASONAL | AP73: kWh
A74: RESIDENTIAL SUBURBAN YEAR ROUND | I74: Rate Rider for Disposition of Global Adjustment Sub-Account (2012) - effective until April 30, 2014 Applicable only for Non-RPP Customers | AL74: West Coast Huron Energy Inc. | AM74: West Coast Huron Energy Inc. | AO74: RESIDENTIAL SUBURBAN YEAR ROUND | AP74: kWh
A75: RESIDENTIAL URBAN | I75: Rate Rider for Disposition of Global Adjustment Sub-Account (2012) - effective until April 30, 2015 Applicable only for Non-RPP Customers | AL75: Westario Power Inc. | AM75: Westario Power Inc. | AO75: RESIDENTIAL URBAN | AP75: kWh
A76: RESIDENTIAL URBAN YEAR-ROUND | I76: Rate Rider for Disposition of Global Adjustment Sub-Account (2012) - effective until April 30, 2015 Applicatble only for Non-RPP Customers | AL76: Whitby Hydro Electric Corporation | AM76: Whitby Hydro Electric Corporation | AO76: RESIDENTIAL URBAN YEAR-ROUND | AP76: kWh
A77: SEASONAL RESIDENTIAL | I77: Rate Rider for Disposition of Global Adjustment Sub-Account (2012) - effective until April 30, 2016 Applicable only for Non-RPP Customers | AL77: Woodstock Hydro Services Inc. | AM77: Woodstock Hydro Services Inc. | AO77: SEASONAL RESIDENTIAL | AP77: kWh
A78: SEASONAL RESIDENTIAL - HIGH DENSITY [R3] | I78: Rate Rider for Disposition of Global Adjustment Sub-Account (2012) - effective until January 31, 2014. Applicable only for Non-RPP Customers | AO78: SEASONAL RESIDENTIAL - HIGH DENSITY [R3] | AP78: kWh
A79: SEASONAL RESIDENTIAL - NORMAL DENSITY [R4] | I79: Rate Rider for Disposition of Global Adjustment Sub-Account (2012) - effective until June 30, 2014 Applicable only for Non-RPP Customers | AO79: SEASONAL RESIDENTIAL - NORMAL DENSITY [R4] | AP79: kWh
A80: SENTINEL LIGHTING | I80: Rate Rider for Disposition of Global Adjustment Sub-Account (2012) Applicable only for Non-RPP Customers - effective until August 31, 2014 | AO80: SENTINEL LIGHTING | AP80: kW
A81: SMALL COMMERCIAL AND USL - PER CONNECTION | I81: Rate Rider for Disposition of Global Adjustment Sub-Account (2012) Applicable only to Non-RPP Customers - effective until August 31, 2014 | AO81: SMALL COMMERCIAL AND USL - PER CONNECTION | AP81: kWh
A82: SMALL COMMERCIAL AND USL - PER METER | I82: Rate Rider for Disposition of Global Adjustment Sub-Account (2013) - effective until April 30, 2014 Applicable only for Non-RPP Customers | AO82: SMALL COMMERCIAL AND USL - PER METER | AP82: kWh
A83: STANDARD A GENERAL SERVICE AIR ACCESS | I83: Rate Rider for Disposition of Global Adjustment Sub-Account (2013) - effective until April 30, 2015 Applicable only for Non-RPP Customers | AO83: STANDARD A GENERAL SERVICE AIR ACCESS | AP83: kWh
A84: STANDARD A GENERAL SERVICE ROAD/RAIL | I84: Rate Rider for Disposition of Global Adjustment Sub-Account (2013) - effective until April 30, 2015 Applicable only for Non-RPP Customers and excluding Wholesale Market Participants | AO84: STANDARD A GENERAL SERVICE ROAD/RAIL | AP84: kWh
A85: STANDARD A GRID CONNECTED | I85: Rate Rider for Disposition of Global Adjustment Sub-Account (2013) - effective until April 30, 2017 Applicable only for Non-RPP Customers | AO85: STANDARD A GRID CONNECTED | AP85: kWh
A86: STANDARD A RESIDENTIAL AIR ACCESS | I86: Rate Rider For Disposition of Global Adjustment Sub-Account (2013) - effective until August 31, 2014 Applicable only for Non-RPP Customers | AO86: STANDARD A RESIDENTIAL AIR ACCESS | AP86: kWh
A87: STANDARD A RESIDENTIAL ROAD/RAIL | I87: Rate Rider for Disposition of Global Adjustment Sub-Account (2013) - effective until December 31, 2014 Applicable only for Non-RPP Customers | AO87: STANDARD A RESIDENTIAL ROAD/RAIL | AP87: kWh
A88: STANDBY - GENERAL SERVICE 1,000 - 5,000 KW | I88: Rate Rider for Disposition of Global Adjustment Sub-Account (2013) - effective until May 31, 2014 Applicable only for Non-RPP Customers | AO88: STANDBY - GENERAL SERVICE 1,000 - 5,000 KW | AP88: kW
A89: STANDBY - GENERAL SERVICE 50 - 1,000 KW | I89: Rate Rider for Disposition of Global Adjustment Sub-Account (2014) - effective until December 31, 2014. Applicable only for Non-RPP - Class B Customers | AO89: STANDBY - GENERAL SERVICE 50 - 1,000 KW | AP89: kW
A90: STANDBY - LARGE USE | I90: Rate Rider for Disposition of Global Adjustment Sub-Account (2014) - effective until December 31, 2014. Applicable only for Non-RPP Customers | AO90: STANDBY - LARGE USE | AP90: kW
A91: STANDBY DISTRIBUTION SERVICE | I91: Rate Rider for Disposition of Global Adjustment Sub-Account (2014) - effective until December 31, 2014. Applicable only for Non-RPP Customers - Class A Customers | AO91: STANDBY DISTRIBUTION SERVICE | AP91: kW
A92: STANDBY POWER | I92: Rate Rider for Disposition of Global Adjustment Sub-Account (2014) - effective until December 31, 2014. Applicable only for Non-RPP Customers - Interval Metered | AO92: STANDBY POWER | AP92: kW
A93: STANDBY POWER - APPROVED ON AN INTERIM BASIS | I93: Rate Rider for Disposition of Global Adjustment Sub-Account (2014) - effective until December 31, 2014. Applicable only for Non-RPP Customers - Non Interval Metered | AO93: STANDBY POWER - APPROVED ON AN INTERIM BASIS | AP93: kW
A94: STANDBY POWER GENERAL SERVICE 1,500 TO 4,999 KW | I94: Rate Rider for Disposition of Global Adjustment Sub-Account (2014) - effective until December 31, 2015. Applicable only for Non-RPP Customers. | AO94: STANDBY POWER GENERAL SERVICE 1,500 TO 4,999 KW | AP94: kW
A95: STANDBY POWER GENERAL SERVICE 50 TO 1,499 KW | I95: Rate Rider for Disposition of Post Retirement Actuarial Gain - effective until March 31, 2025 | AO95: STANDBY POWER GENERAL SERVICE 50 TO 1,499 KW | AP95: kW
A96: STANDBY POWER GENERAL SERVICE LARGE USE | I96: Rate Rider for Disposition of Residual Hisotrical Smart Meter Costs - effective until April 30, 2015 | AO96: STANDBY POWER GENERAL SERVICE LARGE USE | AP96: kW
A97: STREET LIGHTING | I97: Rate Rider for Disposition of Residual Hisotrical Smart Meter Costs - effective until April 30, 2017 | AO97: STREET LIGHTING | AP97: kW
A98: SUB TRANSMISSION [ST] | I98: Rate Rider for Disposition of Residual Historical Smart Meter Costs - effective until April 30, 2014 | AO98: SUB TRANSMISSION [ST] | AP98: kW
A99: UNMETERED SCATTERED LOAD | I99: Rate Rider for Disposition of Residual Historical Smart Meter Costs - effective until April 30, 2016 | AO99: UNMETERED SCATTERED LOAD | AP99: kWh
A100: URBAN GENERAL SERVICE DEMAND BILLED (50 KW AND ABOVE) [UGD] | I100: Rate Rider for Disposition of Residual Historical Smart Meter Costs - effective until August 31, 2014 | AO100: URBAN GENERAL SERVICE DEMAND BILLED (50 KW AND ABOVE) [UGD] | AP100: kW
A101: URBAN GENERAL SERVICE ENERGY BILLED (LESS THAN 50 KW) [UGE] | I101: Rate Rider for Disposition of Residual Historical Smart Meter Costs - effective until August 31, 2015 | AO101: URBAN GENERAL SERVICE ENERGY BILLED (LESS THAN 50 KW) [UGE] | AP101: kWh
A102: WESTPORT SEWAGE TREATMENT PLANT | I102: Rate Rider for Disposition of Residual Historical Smart Meter Costs - effective until December 31, 2014 | AO102: WESTPORT SEWAGE TREATMENT PLANT | AP102: kW
A103: YEAR-ROUND RESIDENTIAL - R2 | I103: Rate Rider for Disposition of Residual Historical Smart Meter Costs – effective until December 31, 2014 | AO103: YEAR-ROUND RESIDENTIAL - R2 | AP103: kWh
I104: Rate Rider for Disposition of Residual Historical Smart Meter Costs - effective until December 31, 2015
I105: Rate Rider for Disposition of Residual Historical Smart Meter Costs - effective until December 31, 2016
I106: Rate Rider for Disposition of Residual Historical Smart Meter Costs - effective until October 31, 2014
I107: Rate Rider for Disposition of Residual Historical Smart Meter Costs - effective until September 30, 2014
I108: Rate Rider for Disposition of Residual Historical Smart Meter Costs - Non-Interval Metered - effective until April 30, 2014
I109: Rate Rider for Disposition of Residual Historical Smart Meter Costs 2 - in effect until the effective date of the next cost of service-based rate order
I110: Rate Rider for Disposition of Residual Historical Smart Meter Costs 3 - in effect until the effective date of the next cost of service-based rate order
I111: Rate Rider for Disposition of Residual Incremental Historical Smart Meter Costs - effective until August 31, 2015
I112: Rate Rider for Disposition of Stranded Meter costs - effective until April 30, 2015
I113: Rate Rider for Disposition of Stranded Meter Costs - effective until April 30, 2016
I114: Rate Rider for Disposition of Stranded Meter Costs - effective until April 30, 2017
I115: Rate Rider for Global Adjustment Sub Account Disposition - effective until April 30, 2016 Applicable only for Non RPP Customers
I116: Rate Rider for Global Adjustment Sub-Account Disposition (2014) - effective until April 28, 2016 Applicable only for Non-RPP Customers
I117: Rate Rider for Global Adjustment Sub-Account Disposition (2014) - effective until April 30, 2015 Applicable only for Non-RPP Customers
I118: Rate Rider for Global Adjustment Sub-Account Disposition (2014) - effective until December 30, 2015 Applicable only for Non-RPP Customers
I119: Rate Rider for Global Adjustment Sub-Account Disposition (2014) - effective until December 31, 2014 Applicable only for Non-RPP Customers
I120: Rate Rider for Global Adjustment Sub-Account Disposition (2014) - effective until December 31, 2015 Applicable only for Non-RPP Customers
I121: Rate Rider for Global Adjustment Sub-Account Disposition Applicable only for Non-RPP Customers - effective until April 30, 2015
I122: Rate Rider for Incremental Capital - Distribution Volumetric - effective until April 30, 2016
I123: Rate Rider for Incremental Capital - Service Charge - effective until April 30, 2016
I124: Rate Rider for Incremental Capital (2012) - effective until April 30, 2015
I125: Rate Rider for Lost Revenue Adjustment Mechanism Variance Account (LRAMVA) Recovery (2012 CDM Activities) - effective until April 30, 2015
I126: Rate Rider for Recover of Residual Historical Smart meter Costs - effective until June 30, 2014
I127: Rate Rider for Recovery of CGAAP/CWIP Differential - in effect until December 31, 2016
I128: Rate Rider for Recovery of Foregone Revenue - effective until April 30, 2015
I129: Rate Rider for Recovery of Forgone Revenue - effective until April 30, 2015
I130: Rate Rider for Recovery of Forgone Revenue - effective until December 31, 2014
I131: Rate Rider for Recovery of Green Energy Act related costs - effective until December 31, 2014
I132: Rate Rider for Recovery of Incremental Capital (2013) - in effect until the effective date of the next cost of service-based rate order
I133: Rate Rider for Recovery of Incremental Capital (2013) - in effect until the effective date of the next cost of service-based rate order
I134: Rate Rider for Recovery of Incremental Capital (2013) (per connection) - in effect until the effective date of the next cost of service-based rate order
I135: Rate Rider for Recovery of Incremental Capital (2013) (per connection)- in effect until the effective date of the next cost of service-based rate order
I136: Rate Rider for Recovery of Incremental Capital Costs
I137: Rate Rider for Recovery of Incremental Capital Costs - effective until April 30, 2015
I138: Rate Rider for Recovery of Incremental Capital Module Costs (2014) - in effect until the effective date of the next cost of service-based rate order
I139: Rate Rider for Recovery of Incremental Capital Module Costs (2014) - in effect until the effective date of the next cost of service-based rate order
I140: Rate Rider for Recovery of Lost Revenue Adjustment Mechanism ( LRAM)/Shared Savings Mechanism (SSM) (2012) - effective until August 31, 2014
I141: Rate Rider for Recovery of Lost Revenue Adjustment Mechanism (2013) - effective until December 31, 2014
I142: Rate Rider for Recovery of Lost Revenue Adjustment Mechanism (LRAM) - effective until April 30, 2016
I143: Rate Rider for Recovery of Lost Revenue Adjustment Mechanism (LRAM) (pre-2011 CDM Activities) - effective until April 30, 2015
I144: Rate Rider for Recovery of Lost Revenue Adjustment Mechanism (LRAM) (pre-2011 CDM Activities) (2013) - effective until April 30, 2015
I145: Rate Rider for Recovery of Lost Revenue Adjustment Mechanism (LRAM)/Shared Savings
I146: Rate Rider for Recovery of Lost Revenue Adjustment Mechanism (LRAM)/Shared Savings Mechanism (SSM) - effective until December 31, 2018 and applicable in the service area excluding the former service areas of Clinton Power and West Perth Power
I147: Rate Rider for Recovery of Lost Revenue Adjustment Mechanism (LRAM)/Shared Savings Mechanism (SSM) - effective until December 31, 2014 and applicable in the service area excluding the former service areas of Clinton Power and West Perth Power
I148: Rate Rider for Recovery of Lost Revenue Adjustment Mechanism (LRAM)/Shared Savings Mechanism (SSM) - effective until December 31, 2014 and applicable only in the former service area of Clinton Power
I149: Rate Rider for Recovery of Lost Revenue Adjustment Mechanism (LRAM)/Shared Savings Mechanism (SSM) - effective until December 31, 2014 and applicable only in the former service area of West Perth Power
I150: Rate Rider for Recovery of Lost Revenue Adjustment Mechanism (LRAM)/Shared Savings Mechanism (SSM) - effective until December 31, 2014 and applicable in the service area excluding the former service area of Clinton Power
I151: Rate Rider for Recovery of Lost Revenue Adjustment Mechanism (LRAM)/Shared Savings Mechanism (SSM) - effective until March 31, 2016
I152: Rate Rider for Recovery of Lost Revenue Adjustment Mechanism (LRAM)/Shared Savings Mechanism (SSM) (2012) - effective until August 31, 2014
I153: Rate Rider for Recovery of Lost Revenue Adjustment Mechanism (LRAM)/Shared Savings Mechanism (SSM) Recovery - effective until April 30, 2015
I154: Rate Rider for Recovery of Lost Revenue Adjustment Mechanism Variance Account (LRAMVA) (2014) - effective until April 30, 2015
I155: Rate Rider for Recovery of Residual Historical Smart Meter Costs - effective July 1, 2012 - April 30, 2016
I156: Rate Rider for Recovery of Smart Meter Incremental Revenue Requirement - effective until the date of the next cost of service-based rate order
I157: Rate Rider for Recovery of Smart Meter Incremental Revenue Requirement - effective until the effective date of the next cost of service-based rate order, or October 31, 2017, whichever occurs earlier
I158: Rate Rider for Recovery of Smart Meter Incremental Revenue Requirement - in effect until the effective date of the next cost of service-based rate order
I159: Rate Rider for Recovery of Smart Meter Incremental Revenue Requirement - Non-Interval Metered - in effect until the effective date of the next cost of service-based rate order
I160: Rate Rider for Recovery of Smart Meter Incremental Revenue Requirements - in effect until the effective date of the next cost of service application
I161: Rate Rider for Recovery of Smart Meter Stranded Assets - effective until April 30, 2016
I162: Rate Rider for Recovery of Storm Damage Costs - effective until August 31, 2017
I163: Rate Rider for Recovery of Stranded Assets - effective until April 30, 2016
I164: Rate Rider for Recovery of Stranded Meter Assets - effective July 1, 2012 - April 30, 2016
I165: Rate Rider for Recovery of Stranded Meter Assets – effective until April 30, 2015
I166: Rate Rider for Recovery of Stranded Meter Assets - effective until April 30, 2016
I167: Rate Rider for Recovery of Stranded Meter Assets - effective until April 30, 2017
I168: Rate Rider for Recovery of Stranded Meter Assets - effective until August 31, 2015
I169: Rate Rider for Recovery of Stranded Meter Assets - effective until August 31, 2017
I170: Rate Rider for Recovery of Stranded Meter Assets - effective until December 31, 2014
I171: Rate Rider for Recovery of Stranded Meter Assets - effective until December 31, 2015
I172: Rate Rider for Recovery of Stranded Meter Assets - effective until June 30, 2016
I173: Rate Rider for Recovery of Stranded Meter Assets - effective until March 31, 2016
I174: Rate Rider for Recovery of Stranded Meter Assets - effective until May 31, 2014
I175: Rate Rider for Reversal of Deferral/Variance Account Disposition (2011) - effective until April 30, 2015
I176: Rate Rider for Smart Meter Disposition - effective until April 30, 2016
I177: Rate Rider for Smart Meter Incremental Revenue Requirement - in effect until the effective date of the next cost of service-based rate order
I178: Rate Rider for Smart Metering Entity Charge - effective until October 31, 2018
I179: Rate Rider for Stranded Meter Cost Recovery - effective until April 30, 2017
I180: Rate Rider for Tax Change
I181: Rate Rider for Tax Change - effective until April 30, 2015
I182: Rate Rider for Tax Change (2014) - effective until April 30, 2015
I183: Retail Transmission Rate - Line and Transformation Connection Service Rate
I184: Retail Transmission Rate - Line and Transformation Connection Service Rate - (less than 1,000 kW)
I185: Retail Transmission Rate - Line and Transformation Connection Service Rate - Interval Metered
I186: Retail Transmission Rate - Line and Transformation Connection Service Rate - Interval Metered (1,000 to 4,999 kW)
I187: Retail Transmission Rate - Line and Transformation Connection Service Rate - Interval Metered (less than 1,000 kW)
I188: Retail Transmission Rate - Line and Transformation Connection Service Rate - Interval Metered < 1,000 kW
I189: Retail Transmission Rate - Line and Transformation Connection Service Rate FOR ALL SERVICE AREAS EXCEPT HENSALL
I190: Retail Transmission Rate - Line and Transformation Connection Service Rate - Interval Metered > 1,000 kW
I191: Retail Transmission Rate - Line Connection Service Rate
I192: Retail Transmission Rate - Network Service Rate
I193: Retail Transmission Rate - Network Service Rate - (less than 1,000 kW)
I194: Retail Transmission Rate - Network Service Rate - Interval Metered
I195: Retail Transmission Rate - Network Service Rate - Interval Metered (1,000 to 4,999 kW)
I196: Retail Transmission Rate - Network Service Rate - Interval Metered (less than 1,000 kW)
I197: Retail Transmission Rate - Network Service Rate - Interval Metered > 1,000 kW
I198: Retail Transmission Rate - Transformation Connection Service Rate
I199: Rider for Global Adjustment Sub-Account Disposition (2012) - effective until April 30, 2016 Applicable only for Non-RPP Customers
I200: Rural or Remote Electricity Rate Protection Charge (RRRP)
... 14 more rows

Sheet Sheet1 (hidden)
